Local authority department which incurred the expenditure,Service Division,Cost Centre,Summary of the Purpose of Expenditure,Expense Type,Expense Code,Detailed Expense Type,Date of Transaction,Transaction Number,Beneficiary,Merchant Category Number,Merchant Category,Gross Amount,VAT,Net Amount
Regeneration Economy and Growth,Corporate Property and Land,021242,Catering - County Hall,Supplies and Services,384999,Miscellaneous Expenses,01-Dec-2021,000009865249403,Amazon.co.uk RA8FJ2CD5,5969,Other expenses,8.30,1.40,6.90
Children and Young Peoples Services,Head of Early Help Inclusion & Vulnerable Children.,085956,Lumley,Transfer Payments,515002,Social Services Clients,01-Dec-2021,000009865249525,AMZNMktplace,5999,Pocket money,17.37,2.90,14.47
Children and Young Peoples Services,Head of Early Help Inclusion & Vulnerable Children.,085956,Lumley,Transfer Payments,515002,Social Services Clients,01-Dec-2021,000009865249527,AMZNMktplace,5999,Pocket money,2.85,0.48,2.37
Regeneration Economy and Growth,Business Durham CL0850,030689,Inward Investment and Aftercare,Supplies and Services,336005,Advertising E336,01-Dec-2021,000009869667515,LINKEDIN-729 7148054,7311,Advertising other than for staff,24.00,0.00,24.00
Children and Young Peoples Services,Head of Childrens Social Care,085341,High Etherley Satelite Home,Supplies and Services,328041,Clothing uniforms and laundry E328,01-Dec-2021,000009869667523,W BOYES & CO LTD BARNA,5310,Clothing uniforms and laundry,1.49,0.00,1.49
Children and Young Peoples Services,Head of Education and Skills,071801,Selby Cottage Childcare Centre,Supplies and Services,304259,Equipment and Materials,01-Dec-2021,000009869667525,WWW.ICO.ORG.UK,9399,Equipment-purchase and rental,40.00,0.00,40.00
Children and Young Peoples Services,Head of Education and Skills,071801,Selby Cottage Childcare Centre,Supplies and Services,304999,Equipment and Materials,01-Dec-2021,000009869667527,Costco Wholesale #109,7278,Misc equipment tools and materials,89.85,0.00,89.85
Children and Young Peoples Services,Head of Education and Skills,071801,Selby Cottage Childcare Centre,Supplies and Services,324117,Provisions E324,01-Dec-2021,000009869667529,ASDA GROCERIES ONLINE,5411,Catering costs - provisions,54.80,0.00,54.80
Adult and Health Services,Adults Excluded,060702,Local Safeguarding Adults Board,Supplies and Services,384999,Miscellaneous Expenses,01-Dec-2021,000009869667535,Amazon.co.uk 5B85E1W75,5969,Other expenses,19.74,3.29,16.45
Adult and Health Services,Adults Excluded,060702,Local Safeguarding Adults Board,Supplies and Services,384999,Miscellaneous Expenses,01-Dec-2021,000009869667535 - 1,Amazon.co.uk 5B85E1W75,5969,Other expenses,24.73,,24.73
Children and Young Peoples Services,Head of Childrens Social Care,085501,Child Care Cases Legal Expenses,Supplies and Services,304403,Equipment and Materials,01-Dec-2021,000009869667545,SUNDERLAND CC,7523,Other consumables,11.00,0.00,11.00
Regeneration Economy and Growth,Culture Sport and Tourism,054775,Durham Town Hall 054775,Supplies and Services,304252,Equipment and Materials,01-Dec-2021,000009869667551,WWW.FIRST-RESCUE.CO.UK,8299,Equipment-repairsserviceinsurance,205.96,34.33,171.63
Children and Young Peoples Services,Head of Childrens Social Care,085342,16 Hickstead Rise (previously 9 Cedar Ave),Supplies and Services,324117,Provisions E324,01-Dec-2021,000009869667557,TESCO STORES 2916,5411,Catering costs - provisions,100.22,0.00,100.22
Children and Young Peoples Services,Head of Childrens Social Care,085332,Middlestone Moor CU,Supplies and Services,304999,Equipment and Materials,01-Dec-2021,000009869667563,Connect Distribution S,5722,Misc equipment tools and materials,13.81,0.00,13.81
Children and Young Peoples Services,Head of Childrens Social Care,085332,Middlestone Moor CU,Supplies and Services,304999,Equipment and Materials,01-Dec-2021,000009869667565,AMZNMKTPLACE AMAZON.CO,5999,Misc equipment tools and materials,92.58,15.43,77.15
Children and Young Peoples Services,Head of Childrens Social Care,085332,Middlestone Moor CU,Supplies and Services,324117,Provisions E324,01-Dec-2021,000009869667567,HOME BARGAINS SPENNYMO,5251,Catering costs - provisions,56.91,0.00,56.91
Children and Young Peoples Services,Head of Childrens Social Care,085332,Middlestone Moor CU,Supplies and Services,324117,Provisions E324,01-Dec-2021,000009869667569,ASDA SUPERSTORE 4987,5411,Catering costs - provisions,22.25,0.00,22.25
Children and Young Peoples Services,Head of Childrens Social Care,085332,Middlestone Moor CU,Supplies and Services,324117,Provisions E324,01-Dec-2021,000009869667571,TESCO STORES 2371,5411,Catering costs - provisions,249.47,0.00,249.47
Dedicated Schools Grant BG0015,DSG Schools Block,418500,Belmont Community School 004185 - Admin,Supplies and Services,304403,Equipment and Materials,01-Dec-2021,000009869667579,AMZNMktplace,5999,Other consumables,22.52,3.75,18.77
Dedicated Schools Grant BG0015,DSG Schools Block,418506,Belmont Community School 004185 - Visual Arts,Supplies and Services,304403,Equipment and Materials,01-Dec-2021,000009869667581,AMZNMktplace,5999,Other consumables,70.11,11.69,58.42
Dedicated Schools Grant BG0015,DSG Schools Block,418506,Belmont Community School 004185 - Visual Arts,Supplies and Services,304403,Equipment and Materials,01-Dec-2021,000009869667583,AMZNMktplace,5999,Other consumables,195.99,32.67,163.32
Neighbourhoods and Climate Change,Environmental Services,010367,C&G - South Grounds Maintenance,Supplies and Services,304221,Equipment and Materials,01-Dec-2021,000009869667613,CARRS BILLINGTON SPENN,5599,Direct materials,329.50,0.00,329.50
Children and Young Peoples Services,Head of Childrens Social Care,085331,New Lea Childrens Home,Supplies and Services,304403,Equipment and Materials,01-Dec-2021,000009869667625,VALUE PRODUCTS LTD,5999,Other consumables,49.50,0.00,49.50
Children and Young Peoples Services,Head of Childrens Social Care,085380,Operations Manager LAC Resources,Supplies and Services,324117,Provisions E324,01-Dec-2021,000009869667631,ASDA GEORGE COM LEEDS,5411,Catering costs - provisions,258.95,0.00,258.95
Regeneration Economy and Growth,Culture Sport and Tourism,054233,Bishop Auckland Town Hall Library,Supplies and Services,304403,Equipment and Materials,01-Dec-2021,000009869667635,AMZNMktplace,5999,Other consumables,15.84,2.64,13.20
Regeneration Economy and Growth,Culture Sport and Tourism,054233,Bishop Auckland Town Hall Library,Supplies and Services,304403,Equipment and Materials,01-Dec-2021,000009869667635 - 1,AMZNMktplace,5999,Other consumables,0.04,,0.04
Regeneration Economy and Growth,Culture Sport and Tourism,054233,Bishop Auckland Town Hall Library,Supplies and Services,304403,Equipment and Materials,01-Dec-2021,000009869667637,AMZNMKTPLACE AMAZON.CO,5999,Other consumables,151.90,25.32,126.58
Children and Young Peoples Services,Head of Early Help Inclusion & Vulnerable Children.,085962,Aycliffe Secure - Durham,Supplies and Services,324117,Provisions E324,01-Dec-2021,000009869667659,TESCO STORES 6329,5411,Catering costs - provisions,83.97,0.00,83.97
Children and Young Peoples Services,Head of Childrens Social Care,085361,LAC & Permanence Team 1,Supplies and Services,338045,Services,01-Dec-2021,000009869667671,DARLINGTON BC INTERNET,9399,Legal expenses 338045,11.00,0.00,11.00
Children and Young Peoples Services,Head of Childrens Social Care,085362,LAC & Permanence Team 2,Supplies and Services,338045,Services,01-Dec-2021,000009869667673,GEN REGISTER OFFICE,9399,Legal expenses 338045,11.00,0.00,11.00
Neighbourhoods and Climate Change,Environmental Services,010367,C&G - South Grounds Maintenance,Supplies and Services,304403,Equipment and Materials,01-Dec-2021,000009869667695,BESCOL,5231,Other consumables,30.34,0.00,30.34
Children and Young Peoples Services,Head of Education and Skills,071732,Dean Bank Childcare,Supplies and Services,324117,Provisions E324,01-Dec-2021,000009869667733,JR HOLLAND FOODSERVICE,5499,Catering costs - provisions,715.76,0.00,715.76
Children and Young Peoples Services,Head of Education and Skills,071732,Dean Bank Childcare,Supplies and Services,304999,Equipment and Materials,01-Dec-2021,000009869667735,HOME BARGAINS SPENNYMO,5251,Misc equipment tools and materials,30.50,0.00,30.50
Children and Young Peoples Services,Head of Education and Skills,071732,Dean Bank Childcare,Supplies and Services,324117,Provisions E324,01-Dec-2021,000009869667737,ASDA GROCERIES ONLINE,5411,Catering costs - provisions,75.27,0.00,75.27
Children and Young Peoples Services,Head of Education and Skills,071732,Dean Bank Childcare,Supplies and Services,324117,Provisions E324,01-Dec-2021,000009869667739,ASDA SUPERSTORE 4987,5411,Catering costs - provisions,68.42,0.00,68.42
Regeneration Economy and Growth,Development and Housing,030771,Durham Advance Flexible Fund,Supplies and Services,348037,Subsistence E348,01-Dec-2021,000009869667765,COSTA COFFEE 43035195,5814,Subsistence,2.10,0.00,2.10
Regeneration Economy and Growth,Development and Housing,030771,Durham Advance Flexible Fund,Transport,235057,Public Transport,01-Dec-2021,000009869667771,WWW.GONORTHEAST.CO.UK,4111,Staff travelling,25.00,0.00,25.00
Children and Young Peoples Services,Head of Early Help Inclusion & Vulnerable Children.,085956,Lumley,Transfer Payments,515002,Social Services Clients,01-Dec-2021,000009869667779,AMZNMktplace,5999,Pocket money,3.94,0.66,3.28
Children and Young Peoples Services,Head of Early Help Inclusion & Vulnerable Children.,085956,Lumley,Transfer Payments,515002,Social Services Clients,01-Dec-2021,000009869667781,BOOHOO.COM,5691,Pocket money,63.00,0.00,63.00
Children and Young Peoples Services,Head of Early Help Inclusion & Vulnerable Children.,085965,Barnard,Transfer Payments,515002,Social Services Clients,01-Dec-2021,000009869667785,NEXT DIRECTORY,5965,Pocket money,22.00,0.00,22.00
Children and Young Peoples Services,Head of Early Help Inclusion & Vulnerable Children.,085956,Lumley,Supplies and Services,338057,Services,01-Dec-2021,000009869667787,SPECSAVERS,8043,Medical fees 338057,59.00,0.00,59.00
Children and Young Peoples Services,Head of Early Help Inclusion & Vulnerable Children.,085965,Barnard,Transfer Payments,515002,Social Services Clients,01-Dec-2021,000009869667789,AMZNMktplace,5999,Pocket money,12.06,2.01,10.05
Children and Young Peoples Services,Head of Early Help Inclusion & Vulnerable Children.,085965,Barnard,Transfer Payments,515002,Social Services Clients,01-Dec-2021,000009869667789 - 1,AMZNMktplace,5999,Pocket money,0.03,,0.03
Neighbourhoods and Climate Change,Environmental Services,010367,C&G - South Grounds Maintenance,Supplies and Services,304221,Equipment and Materials,01-Dec-2021,000009869667795,MKM PETERLEE,5211,Direct materials,154.02,0.00,154.02
Children and Young Peoples Services,Head of Childrens Social Care,085334,West Rainton Satelite Home,Supplies and Services,324117,Provisions E324,01-Dec-2021,000009869667831,COATES BUTCHERS,5499,Catering costs - provisions,8.98,0.00,8.98
Regeneration Economy and Growth,Development and Housing,030771,Durham Advance Flexible Fund,Supplies and Services,304221,Equipment and Materials,01-Dec-2021,000009869667865,WWW.MAPPS.ORK.UK,6300,Direct materials,96.60,0.00,96.60
Children and Young Peoples Services,Head of Childrens Social Care,085361,LAC & Permanence Team 1,Supplies and Services,338045,Services,01-Dec-2021,000009869667893,DARLINGTON BC INTERNET,9399,Legal expenses 338045,11.00,0.00,11.00
Children and Young Peoples Services,Head of Childrens Social Care,085331,New Lea Childrens Home,Supplies and Services,324117,Provisions E324,01-Dec-2021,000009869667903,TESCO STORES 6329,5411,Catering costs - provisions,25.26,0.00,25.26
Neighbourhoods and Climate Change,Environmental Services,010367,C&G - South Grounds Maintenance,Supplies and Services,304221,Equipment and Materials,01-Dec-2021,000009869667913,CARRS BILLINGTON SPENN,5599,Direct materials,114.76,0.00,114.76
Neighbourhoods and Climate Change,Environmental Services,019100,Fleet - Strategic Fleet,Supplies and Services,304403,Equipment and Materials,01-Dec-2021,000009869667917,AMZNMKTPLACE AMAZON.CO,5999,Other consumables,59.15,0.00,59.15
Children and Young Peoples Services,Head of Education and Skills,071802,Louisa Cent Nursery,Supplies and Services,324117,Provisions E324,01-Dec-2021,000009869667931,ASDA SUPERSTORE,5411,Catering costs - provisions,29.90,0.00,29.90
Children and Young Peoples Services,Head of Childrens Social Care,085334,West Rainton Satelite Home,Supplies and Services,304999,Equipment and Materials,01-Dec-2021,000009869667985,WWW.INFINITEAIR.CO.UK,7991,Misc equipment tools and materials,7.95,0.00,7.95
Children and Young Peoples Services,Head of Childrens Social Care,085334,West Rainton Satelite Home,Supplies and Services,304221,Equipment and Materials,01-Dec-2021,000009869667987,RICHARDSONS GARDEN CEN,5261,Direct materials,9.97,0.00,9.97
Children and Young Peoples Services,Head of Childrens Social Care,085334,West Rainton Satelite Home,Supplies and Services,324117,Provisions E324,01-Dec-2021,000009869667989,TESCO STORES 2371,5411,Catering costs - provisions,346.42,0.00,346.42
Children and Young Peoples Services,Head of Childrens Social Care,085363,Childrens Permanence Team,Supplies and Services,338045,Services,01-Dec-2021,000009869667991,SUNDERLAND CC,9399,Legal expenses 338045,66.00,0.00,66.00
Resources BK0010,Digital and Customer Services,065335,School Services - Implementations,Supplies and Services,304639,Equipment and Materials,01-Dec-2021,000009869668003,NETS zandparts.com,4812,Technicians-supplies,57.75,0.00,57.75
Resources BK0010,Digital and Customer Services,065335,School Services - Implementations,Supplies and Services,304639,Equipment and Materials,01-Dec-2021,000009869668005,LAPTOP-LCD-SCREEN,5732,Technicians-supplies,198.42,0.00,198.42
Resources BK0010,Digital and Customer Services,065323,Operations - Installations,Supplies and Services,304639,Equipment and Materials,01-Dec-2021,000009869668007,TOOLSTATION UK,5251,Technicians-supplies,18.85,0.00,18.85
Resources BK0010,Digital and Customer Services,065335,School Services - Implementations,Supplies and Services,304639,Equipment and Materials,01-Dec-2021,000009869668009,TOOLSTATION UK,5251,Technicians-supplies,6.98,0.00,6.98
Resources BK0010,Digital and Customer Services,065335,School Services - Implementations,Supplies and Services,304639,Equipment and Materials,01-Dec-2021,000009869668011,WWW.ALIEXPRESS.COM,5964,Technicians-supplies,94.00,0.00,94.00
Children and Young Peoples Services,Head of Early Help Inclusion & Vulnerable Children.,085801,CDYJS - Support,Supplies and Services,328041,Clothing uniforms and laundry E328,01-Dec-2021,000009869668073,PRINTERPIX UK LIMITED,5699,Clothing uniforms and laundry,11.42,0.00,11.42
Children and Young Peoples Services,Head of Education and Skills,071802,Louisa Cent Nursery,Supplies and Services,304999,Equipment and Materials,01-Dec-2021,000009869668077,HOME BARGAINS,5251,Misc equipment tools and materials,19.98,0.00,19.98
Children and Young Peoples Services,Head of Childrens Social Care,085380,Operations Manager LAC Resources,Supplies and Services,304403,Equipment and Materials,01-Dec-2021,000009869668117,AMZNMktplace,5999,Other consumables,606.79,101.20,505.59
Children and Young Peoples Services,Head of Childrens Social Care,085331,New Lea Childrens Home,Supplies and Services,324117,Provisions E324,01-Dec-2021,000009869668157,ASDA GROCERIES ONLINE,5411,Catering costs - provisions,-0.56,0.00,-0.56
Resources - C A C,Storm Arwen Emergency Costs,069002,Storm Arwen Emergency Costs,Supplies and Services,304403,Equipment and Materials,01-Dec-2021,000009869668159,AMZNMktplace,5999,Other consumables,89.82,14.97,74.85
Resources - C A C,Storm Arwen Emergency Costs,069002,Storm Arwen Emergency Costs,Supplies and Services,304403,Equipment and Materials,01-Dec-2021,000009869668159 - 1,AMZNMktplace,5999,Other consumables,0.03,,0.03
Resources - C A C,Storm Arwen Emergency Costs,069002,Storm Arwen Emergency Costs,Supplies and Services,304403,Equipment and Materials,01-Dec-2021,000009869668161,AMZNMktplace,5999,Other consumables,89.82,14.97,74.85
Resources - C A C,Storm Arwen Emergency Costs,069002,Storm Arwen Emergency Costs,Supplies and Services,304403,Equipment and Materials,01-Dec-2021,000009869668161 - 1,AMZNMktplace,5999,Other consumables,0.03,,0.03
Resources - C A C,Storm Arwen Emergency Costs,069002,Storm Arwen Emergency Costs,Supplies and Services,304403,Equipment and Materials,01-Dec-2021,000009869668163,AMZNMktplace,5999,Other consumables,89.82,14.97,74.85
Resources - C A C,Storm Arwen Emergency Costs,069002,Storm Arwen Emergency Costs,Supplies and Services,304403,Equipment and Materials,01-Dec-2021,000009869668163 - 1,AMZNMktplace,5999,Other consumables,0.03,,0.03
Resources - C A C,Storm Arwen Emergency Costs,069002,Storm Arwen Emergency Costs,Supplies and Services,304403,Equipment and Materials,01-Dec-2021,000009869668165,AMZNMktplace,5999,Other consumables,89.82,14.97,74.85
Resources - C A C,Storm Arwen Emergency Costs,069002,Storm Arwen Emergency Costs,Supplies and Services,304403,Equipment and Materials,01-Dec-2021,000009869668165 - 1,AMZNMktplace,5999,Other consumables,0.03,,0.03
Resources - C A C,Storm Arwen Emergency Costs,069002,Storm Arwen Emergency Costs,Supplies and Services,304403,Equipment and Materials,01-Dec-2021,000009869668167,AMZNMktplace,5999,Other consumables,89.82,14.97,74.85
Resources - C A C,Storm Arwen Emergency Costs,069002,Storm Arwen Emergency Costs,Supplies and Services,304403,Equipment and Materials,01-Dec-2021,000009869668167 - 1,AMZNMktplace,5999,Other consumables,0.03,,0.03
Resources - C A C,Storm Arwen Emergency Costs,069002,Storm Arwen Emergency Costs,Supplies and Services,304403,Equipment and Materials,01-Dec-2021,000009869668169,AMZNMktplace,5999,Other consumables,"3,005.99",501.00,2504.99
Resources - C A C,Storm Arwen Emergency Costs,069002,Storm Arwen Emergency Costs,Supplies and Services,304403,Equipment and Materials,01-Dec-2021,000009869668171,AMZNMktplace,5999,Other consumables,89.82,14.97,74.85
Resources - C A C,Storm Arwen Emergency Costs,069002,Storm Arwen Emergency Costs,Supplies and Services,304403,Equipment and Materials,01-Dec-2021,000009869668171 - 1,AMZNMktplace,5999,Other consumables,0.03,,0.03
Resources - C A C,Storm Arwen Emergency Costs,069002,Storm Arwen Emergency Costs,Supplies and Services,304403,Equipment and Materials,01-Dec-2021,000009869668173,AMZNMktplace,5999,Other consumables,59.90,9.98,49.92
Resources - C A C,Storm Arwen Emergency Costs,069002,Storm Arwen Emergency Costs,Supplies and Services,304403,Equipment and Materials,01-Dec-2021,000009869668175,AMZNMktplace,5999,Other consumables,29.95,4.99,24.96
Resources - C A C,Storm Arwen Emergency Costs,069002,Storm Arwen Emergency Costs,Supplies and Services,304403,Equipment and Materials,01-Dec-2021,000009869668177,AMZNMktplace,5999,Other consumables,29.95,4.99,24.96
Resources BK0010,Procurement Sales & Business Services,065500,Business Support - Management,Supplies and Services,304403,Equipment and Materials,01-Dec-2021,000009869668179,AMZNMktplace,5999,Other consumables,"1,978.02",329.67,1648.35
Resources - C A C,Storm Arwen Emergency Costs,069002,Storm Arwen Emergency Costs,Supplies and Services,304403,Equipment and Materials,01-Dec-2021,000009869668179 - 1,AMZNMktplace,5999,Other consumables,0.99,,0.99
Resources - C A C,Storm Arwen Emergency Costs,069002,Storm Arwen Emergency Costs,Supplies and Services,304403,Equipment and Materials,01-Dec-2021,000009869668181,AMZNMktplace,5999,Other consumables,89.82,14.97,74.85
Resources - C A C,Storm Arwen Emergency Costs,069002,Storm Arwen Emergency Costs,Supplies and Services,304403,Equipment and Materials,01-Dec-2021,000009869668181 - 1,AMZNMktplace,5999,Other consumables,0.03,,0.03
Resources - C A C,Storm Arwen Emergency Costs,069002,Storm Arwen Emergency Costs,Supplies and Services,304403,Equipment and Materials,01-Dec-2021,000009869668183,AMZNMktplace,5999,Other consumables,29.95,4.99,24.96
Resources - C A C,Storm Arwen Emergency Costs,069002,Storm Arwen Emergency Costs,Supplies and Services,304403,Equipment and Materials,01-Dec-2021,000009869668185,AMZNMktplace,5999,Other consumables,89.82,14.97,74.85
Resources - C A C,Storm Arwen Emergency Costs,069002,Storm Arwen Emergency Costs,Supplies and Services,304403,Equipment and Materials,01-Dec-2021,000009869668185 - 1,AMZNMktplace,5999,Other consumables,0.03,,0.03
Resources - C A C,Storm Arwen Emergency Costs,069002,Storm Arwen Emergency Costs,Supplies and Services,304403,Equipment and Materials,01-Dec-2021,000009869668187,AMZNMktplace,5999,Other consumables,89.82,14.97,74.85
Resources - C A C,Storm Arwen Emergency Costs,069002,Storm Arwen Emergency Costs,Supplies and Services,304403,Equipment and Materials,01-Dec-2021,000009869668187 - 1,AMZNMktplace,5999,Other consumables,0.03,,0.03
Resources - C A C,Storm Arwen Emergency Costs,069002,Storm Arwen Emergency Costs,Supplies and Services,304403,Equipment and Materials,01-Dec-2021,000009869668189,AMZNMktplace,5999,Other consumables,29.95,4.99,24.96
Resources - C A C,Storm Arwen Emergency Costs,069002,Storm Arwen Emergency Costs,Supplies and Services,304403,Equipment and Materials,01-Dec-2021,000009869668191,AMZNMktplace,5999,Other consumables,29.95,4.99,24.96
Resources - C A C,Storm Arwen Emergency Costs,069002,Storm Arwen Emergency Costs,Supplies and Services,304403,Equipment and Materials,01-Dec-2021,000009869668193,AMZNMktplace,5999,Other consumables,29.95,4.99,24.96
Resources - C A C,Storm Arwen Emergency Costs,069002,Storm Arwen Emergency Costs,Supplies and Services,304403,Equipment and Materials,01-Dec-2021,000009869668195,AMZNMktplace,5999,Other consumables,29.95,4.99,24.96
Resources - C A C,Storm Arwen Emergency Costs,069002,Storm Arwen Emergency Costs,Supplies and Services,304403,Equipment and Materials,01-Dec-2021,000009869668197,AMZNMktplace,5999,Other consumables,89.82,14.97,74.85
Resources - C A C,Storm Arwen Emergency Costs,069002,Storm Arwen Emergency Costs,Supplies and Services,304403,Equipment and Materials,01-Dec-2021,000009869668197 - 1,AMZNMktplace,5999,Other consumables,0.03,,0.03
Resources - C A C,Storm Arwen Emergency Costs,069002,Storm Arwen Emergency Costs,Supplies and Services,304403,Equipment and Materials,01-Dec-2021,000009869668199,AMZNMktplace,5999,Other consumables,59.90,9.98,49.92
Resources - C A C,Storm Arwen Emergency Costs,069002,Storm Arwen Emergency Costs,Supplies and Services,304403,Equipment and Materials,01-Dec-2021,000009869668201,AMZNMktplace,5999,Other consumables,89.82,14.97,74.85
Resources - C A C,Storm Arwen Emergency Costs,069002,Storm Arwen Emergency Costs,Supplies and Services,304403,Equipment and Materials,01-Dec-2021,000009869668201 - 1,AMZNMktplace,5999,Other consumables,0.03,,0.03
Resources - C A C,Storm Arwen Emergency Costs,069002,Storm Arwen Emergency Costs,Supplies and Services,304403,Equipment and Materials,01-Dec-2021,000009869668203,AMZNMktplace,5999,Other consumables,89.82,14.97,74.85
Resources - C A C,Storm Arwen Emergency Costs,069002,Storm Arwen Emergency Costs,Supplies and Services,304403,Equipment and Materials,01-Dec-2021,000009869668203 - 1,AMZNMktplace,5999,Other consumables,0.03,,0.03
Resources - C A C,Storm Arwen Emergency Costs,069002,Storm Arwen Emergency Costs,Transport,215995,Running Costs of Vehicles,01-Dec-2021,000009869668205,WWW.TOWSURE.COM,5533,Vehicle running expenses,"2,274.95",0.00,2274.95
Resources - C A C,Storm Arwen Emergency Costs,069002,Storm Arwen Emergency Costs,Supplies and Services,304403,Equipment and Materials,01-Dec-2021,000009869668207,AMZNMKTPLACE AMAZON.CO,5999,Other consumables,89.82,14.97,74.85
Resources - C A C,Storm Arwen Emergency Costs,069002,Storm Arwen Emergency Costs,Supplies and Services,304403,Equipment and Materials,01-Dec-2021,000009869668207 - 1,AMZNMKTPLACE AMAZON.CO,5999,Other consumables,0.03,,0.03
Resources - C A C,Storm Arwen Emergency Costs,069002,Storm Arwen Emergency Costs,Supplies and Services,304403,Equipment and Materials,01-Dec-2021,000009869668209,AMZNMKTPLACE AMAZON.CO,5999,Other consumables,29.95,4.99,24.96
Resources - C A C,Storm Arwen Emergency Costs,069002,Storm Arwen Emergency Costs,Supplies and Services,304403,Equipment and Materials,01-Dec-2021,000009869668211,AMZNMKTPLACE AMAZON.CO,5999,Other consumables,29.95,4.99,24.96
Resources - C A C,Storm Arwen Emergency Costs,069002,Storm Arwen Emergency Costs,Supplies and Services,304403,Equipment and Materials,01-Dec-2021,000009869668213,AMZNMKTPLACE AMAZON.CO,5999,Other consumables,89.82,14.97,74.85
Resources - C A C,Storm Arwen Emergency Costs,069002,Storm Arwen Emergency Costs,Supplies and Services,304403,Equipment and Materials,01-Dec-2021,000009869668213 - 1,AMZNMKTPLACE AMAZON.CO,5999,Other consumables,0.03,,0.03
Resources - C A C,Storm Arwen Emergency Costs,069002,Storm Arwen Emergency Costs,Supplies and Services,304403,Equipment and Materials,01-Dec-2021,000009869668215,AMZNMKTPLACE AMAZON.CO,5999,Other consumables,89.82,14.97,74.85
Resources - C A C,Storm Arwen Emergency Costs,069002,Storm Arwen Emergency Costs,Supplies and Services,304403,Equipment and Materials,01-Dec-2021,000009869668215 - 1,AMZNMKTPLACE AMAZON.CO,5999,Other consumables,0.03,,0.03
Resources - C A C,Storm Arwen Emergency Costs,069002,Storm Arwen Emergency Costs,Supplies and Services,304403,Equipment and Materials,01-Dec-2021,000009869668217,AMZNMKTPLACE AMAZON.CO,5999,Other consumables,89.82,14.97,74.85
Resources - C A C,Storm Arwen Emergency Costs,069002,Storm Arwen Emergency Costs,Supplies and Services,304403,Equipment and Materials,01-Dec-2021,000009869668217 - 1,AMZNMKTPLACE AMAZON.CO,5999,Other consumables,0.03,,0.03
Resources - C A C,Storm Arwen Emergency Costs,069002,Storm Arwen Emergency Costs,Supplies and Services,304403,Equipment and Materials,01-Dec-2021,000009869668219,AMZNMKTPLACE AMAZON.CO,5999,Other consumables,29.95,4.99,24.96
Resources - C A C,Storm Arwen Emergency Costs,069002,Storm Arwen Emergency Costs,Supplies and Services,304403,Equipment and Materials,01-Dec-2021,000009869668221,AMZNMKTPLACE AMAZON.CO,5999,Other consumables,29.95,4.99,24.96
Resources - C A C,Storm Arwen Emergency Costs,069002,Storm Arwen Emergency Costs,Supplies and Services,304403,Equipment and Materials,01-Dec-2021,000009869668223,AMZNMKTPLACE AMAZON.CO,5999,Other consumables,29.95,4.99,24.96
Resources - C A C,Storm Arwen Emergency Costs,069002,Storm Arwen Emergency Costs,Supplies and Services,304403,Equipment and Materials,01-Dec-2021,000009869668225,AMZNMKTPLACE AMAZON.CO,5999,Other consumables,29.95,4.99,24.96
Resources - C A C,Storm Arwen Emergency Costs,069002,Storm Arwen Emergency Costs,Supplies and Services,304403,Equipment and Materials,01-Dec-2021,000009869668227,AMZNMktplace,5999,Other consumables,89.82,14.97,74.85
Resources - C A C,Storm Arwen Emergency Costs,069002,Storm Arwen Emergency Costs,Supplies and Services,304403,Equipment and Materials,01-Dec-2021,000009869668227 - 1,AMZNMktplace,5999,Other consumables,0.03,,0.03
Children and Young Peoples Services,Head of Childrens Social Care,085551,Short Break Services-Park Hse Sher,Supplies and Services,324117,Provisions E324,01-Dec-2021,000009869668283,TESCO STORES 2371,5411,Catering costs - provisions,26.19,0.00,26.19
Children and Young Peoples Services,Head of Childrens Social Care,085551,Short Break Services-Park Hse Sher,Supplies and Services,324117,Provisions E324,01-Dec-2021,000009869668285,TESCO STORES 2371,5411,Catering costs - provisions,80.33,0.00,80.33
Regeneration Economy and Growth,Culture Sport and Tourism,011265,Empire Theatre (Operations),Supplies and Services,324117,Provisions E324,01-Dec-2021,000009869668293,B&M 519 - CONSETT,5399,Catering costs - provisions,50.00,0.00,50.00
Regeneration Economy and Growth,Corporate Property and Land,030691,Catering - Durham Dales Centre,Supplies and Services,324117,Provisions E324,01-Dec-2021,000009869668305,TESCO STORES 6329,5411,Catering costs - provisions,20.75,0.00,20.75
Children and Young Peoples Services,Head of Childrens Social Care,085380,Operations Manager LAC Resources,Supplies and Services,328041,Clothing uniforms and laundry E328,01-Dec-2021,000009874307911,ARGOS LTD,5310,Clothing uniforms and laundry,66.95,0.00,66.95
Children and Young Peoples Services,Head of Childrens Social Care,085380,Operations Manager LAC Resources,Supplies and Services,328041,Clothing uniforms and laundry E328,01-Dec-2021,000009874307913,ARGOS LTD,5310,Clothing uniforms and laundry,140.00,0.00,140.00
Children and Young Peoples Services,Head of Childrens Social Care,085361,LAC & Permanence Team 1,Supplies and Services,338045,Services,01-Dec-2021,000009874307951,WWW.DURHAM.GOV.UK,9399,Legal expenses 338045,11.00,0.00,11.00
Regeneration Economy and Growth,Development and Housing,031623,Rough Sleeping,Premises,115125,Repairs to Grounds,01-Dec-2021,000009874308063,Durham County CNCL,9399,General maintenance,-20.00,0.00,-20.00
Children and Young Peoples Services,Head of Early Help Inclusion & Vulnerable Children.,085965,Barnard,Transfer Payments,515002,Social Services Clients,01-Dec-2021,000009874308079,ARGOS LTD,5310,Pocket money,20.00,0.00,20.00
Children and Young Peoples Services,Head of Early Help Inclusion & Vulnerable Children.,085965,Barnard,Transfer Payments,515002,Social Services Clients,01-Dec-2021,000009874308081,ARGOS LTD,5310,Pocket money,9.95,0.00,9.95
Children and Young Peoples Services,Head of Early Help Inclusion & Vulnerable Children.,085954,Walworth,Transfer Payments,515002,Social Services Clients,01-Dec-2021,000009874308083,JD SPORTS INTERNET,5941,Pocket money,53.99,0.00,53.99
Children and Young Peoples Services,Head of Early Help Inclusion & Vulnerable Children.,085954,Walworth,Transfer Payments,515002,Social Services Clients,01-Dec-2021,000009874308087,JD SPORTS INTERNET,5941,Pocket money,95.00,0.00,95.00
Children and Young Peoples Services,Head of Early Help Inclusion & Vulnerable Children.,085956,Lumley,Transfer Payments,515002,Social Services Clients,01-Dec-2021,000009874308099,AMZNMKTPLACE AMAZON.CO,5999,Pocket money,5.99,1.00,4.99
Children and Young Peoples Services,Head of Early Help Inclusion & Vulnerable Children.,085956,Lumley,Transfer Payments,515002,Social Services Clients,01-Dec-2021,000009874308101,AMZNMKTPLACE AMAZON.CO,5999,Pocket money,11.99,2.00,9.99
Children and Young Peoples Services,Head of Education and Skills,078561,DurhamEnable,Supplies and Services,364301,Grants to Voluntary Organisations,01-Dec-2021,000009874308125,WWW.DURHAM.GOV.UK,9399,Hardship,11.00,0.00,11.00
Children and Young Peoples Services,Head of Childrens Social Care,085334,West Rainton Satelite Home,Supplies and Services,328041,Clothing uniforms and laundry E328,01-Dec-2021,000009874308175,ARGOS LTD,5310,Clothing uniforms and laundry,29.99,0.00,29.99
Children and Young Peoples Services,Head of Childrens Social Care,085334,West Rainton Satelite Home,Transport,215995,Running Costs of Vehicles,01-Dec-2021,000009874308177,GULF WEST RAINTON,5541,Vehicle running expenses,5.32,0.00,5.32
Children and Young Peoples Services,Head of Early Help Inclusion & Vulnerable Children.,071569,Woodhouse Close Childrens Centre,Supplies and Services,304259,Equipment and Materials,01-Dec-2021,000009874308227,ARGOS LTD,5310,Equipment-purchase and rental,134.48,0.00,134.48
Children and Young Peoples Services,Head of Education and Skills,071802,Louisa Cent Nursery,Supplies and Services,324117,Provisions E324,01-Dec-2021,000009874308289,ALDI STORES,5411,Catering costs - provisions,5.99,0.00,5.99
Children and Young Peoples Services,Head of Childrens Social Care,085333,Coxhoe Satelite Home,Supplies and Services,324117,Provisions E324,01-Dec-2021,000009874308303,SAINSBURY`S S/MKT,5411,Catering costs - provisions,23.00,0.00,23.00
Children and Young Peoples Services,Head of Childrens Social Care,085334,West Rainton Satelite Home,Supplies and Services,348037,Subsistence E348,01-Dec-2021,000009874308347,MCDONALDS,5814,Subsistence,4.97,0.00,4.97
Children and Young Peoples Services,Head of Childrens Social Care,085334,West Rainton Satelite Home,Supplies and Services,304403,Equipment and Materials,01-Dec-2021,000009874308353,AMZNMKTPLACE AMAZON.CO,5999,Other consumables,7.99,0.00,7.99
Children and Young Peoples Services,Head of Childrens Social Care,085363,Childrens Permanence Team,Supplies and Services,338045,Services,01-Dec-2021,000009874308361,Durham County CNCL,9399,Legal expenses 338045,22.00,0.00,22.00
Resources BK0010,Digital and Customer Services,065323,Operations - Installations,Supplies and Services,304639,Equipment and Materials,01-Dec-2021,000009874308379,SCREWFIX DIRECT,5211,Technicians-supplies,104.91,0.00,104.91
Children and Young Peoples Services,Head of Childrens Social Care,085333,Coxhoe Satelite Home,Supplies and Services,348037,Subsistence E348,01-Dec-2021,000009874308447,WWW.JUST-EAT.CO.UK,5812,Subsistence,41.29,0.00,41.29
Resources - C A C,Storm Arwen Emergency Costs,069002,Storm Arwen Emergency Costs,Supplies and Services,304403,Equipment and Materials,01-Dec-2021,000009874308629,AMZNMKTPLACE AMAZON.CO,5999,Other consumables,89.82,14.97,74.85
Resources - C A C,Storm Arwen Emergency Costs,069002,Storm Arwen Emergency Costs,Supplies and Services,304403,Equipment and Materials,01-Dec-2021,000009874308629 - 1,AMZNMKTPLACE AMAZON.CO,5999,Other consumables,0.03,,0.03
Resources - C A C,Storm Arwen Emergency Costs,069002,Storm Arwen Emergency Costs,Supplies and Services,304403,Equipment and Materials,01-Dec-2021,000009874308631,AMZNMKTPLACE AMAZON.CO,5999,Other consumables,89.82,14.97,74.85
Resources - C A C,Storm Arwen Emergency Costs,069002,Storm Arwen Emergency Costs,Supplies and Services,304403,Equipment and Materials,01-Dec-2021,000009874308631 - 1,AMZNMKTPLACE AMAZON.CO,5999,Other consumables,0.03,,0.03
Resources - C A C,Storm Arwen Emergency Costs,069002,Storm Arwen Emergency Costs,Supplies and Services,304403,Equipment and Materials,01-Dec-2021,000009874308635,AMZNMKTPLACE AMAZON.CO,5999,Other consumables,89.82,14.97,74.85
Resources - C A C,Storm Arwen Emergency Costs,069002,Storm Arwen Emergency Costs,Supplies and Services,304403,Equipment and Materials,01-Dec-2021,000009874308635 - 1,AMZNMKTPLACE AMAZON.CO,5999,Other consumables,0.03,,0.03
Resources - C A C,Storm Arwen Emergency Costs,069002,Storm Arwen Emergency Costs,Supplies and Services,304403,Equipment and Materials,01-Dec-2021,000009874308637,AMZNMKTPLACE AMAZON.CO,5999,Other consumables,89.82,14.97,74.85
Resources - C A C,Storm Arwen Emergency Costs,069002,Storm Arwen Emergency Costs,Supplies and Services,304403,Equipment and Materials,01-Dec-2021,000009874308637 - 1,AMZNMKTPLACE AMAZON.CO,5999,Other consumables,0.03,,0.03
Children and Young Peoples Services,Head of Early Help Inclusion & Vulnerable Children.,088113,Seaham & Laurel Avenue Family Centre,Supplies and Services,324117,Provisions E324,01-Dec-2021,000009874308753,ALDI 34 774,5411,Catering costs - provisions,14.67,0.00,14.67
Children and Young Peoples Services,Head of Education and Skills,071801,Selby Cottage Childcare Centre,Supplies and Services,328041,Clothing uniforms and laundry E328,02-Dec-2021,000007817872846,POUNDLAND LTD 1330,5310,Clothing uniforms and laundry,6.00,0.00,6.00
Children and Young Peoples Services,Head of Education and Skills,071801,Selby Cottage Childcare Centre,Supplies and Services,328041,Clothing uniforms and laundry E328,02-Dec-2021,000007817872848,POUNDLAND,5310,Clothing uniforms and laundry,20.00,0.00,20.00
Resources BK0010,Digital and Customer Services,065481,Technical Services 065481,Supplies and Services,304403,Equipment and Materials,02-Dec-2021,000007817872876,AMZNMKTPLACE AMAZON.CO,5999,Other consumables,45.89,7.65,38.24
Resources BK0010,Digital and Customer Services,065481,Technical Services 065481,Supplies and Services,304403,Equipment and Materials,02-Dec-2021,000007817872878,AMZNMKTPLACE AMAZON.CO,5999,Other consumables,17.58,2.94,14.64
Children and Young Peoples Services,Head of Childrens Social Care,085351,Framwellgate Moor CU,Supplies and Services,324117,Provisions E324,02-Dec-2021,000007817873000,SAINSBURYS S/MKTS,5411,Catering costs - provisions,9.46,0.00,9.46
Children and Young Peoples Services,Head of Childrens Social Care,085341,High Etherley Satelite Home,Supplies and Services,324117,Provisions E324,02-Dec-2021,000007817873040,SAINSBURYS S/MKTS,5411,Catering costs - provisions,32.20,0.00,32.20
Regeneration Economy and Growth,Culture Sport and Tourism,054966,Gala Theatre - Gala Productions,Transport,235057,Public Transport,02-Dec-2021,000007817873256,WALKERGATE CAR PAR,7523,Staff travelling,21.00,0.00,21.00
Regeneration Economy and Growth,Culture Sport and Tourism,054966,Gala Theatre - Gala Productions,Transport,235057,Public Transport,02-Dec-2021,000007817873258,WALKERGATE CAR PAR,7523,Staff travelling,21.00,0.00,21.00
Regeneration Economy and Growth,Culture Sport and Tourism,054966,Gala Theatre - Gala Productions,Transport,235057,Public Transport,02-Dec-2021,000007817873260,WALKERGATE CAR PAR,7523,Staff travelling,21.00,0.00,21.00
Regeneration Economy and Growth,Culture Sport and Tourism,054966,Gala Theatre - Gala Productions,Transport,235057,Public Transport,02-Dec-2021,000007817873262,WALKERGATE CAR PAR,7523,Staff travelling,21.00,0.00,21.00
Regeneration Economy and Growth,Culture Sport and Tourism,054966,Gala Theatre - Gala Productions,Transport,235057,Public Transport,02-Dec-2021,000007817873264,WALKERGATE CAR PAR,7523,Staff travelling,21.00,0.00,21.00
Regeneration Economy and Growth,Culture Sport and Tourism,054966,Gala Theatre - Gala Productions,Transport,235057,Public Transport,02-Dec-2021,000007817873266,WALKERGATE CAR PAR,7523,Staff travelling,21.00,0.00,21.00
Regeneration Economy and Growth,Culture Sport and Tourism,054966,Gala Theatre - Gala Productions,Transport,235057,Public Transport,02-Dec-2021,000007817873268,WALKERGATE CAR PAR,7523,Staff travelling,21.00,0.00,21.00
Neighbourhoods and Climate Change,Environmental Services,026591,C&G - Hardwick Park,Supplies and Services,332047,Printing Stationery and Gen Off Exps,02-Dec-2021,000007817873292,SCREWFIX DIRECT,5211,Stationery,19.98,0.00,19.98
Regeneration Economy and Growth,Development and Housing,030771,Durham Advance Flexible Fund,Supplies and Services,324117,Provisions E324,02-Dec-2021,000007817873318,WM MORRISONS STORE,5411,Catering costs - provisions,3.45,0.00,3.45
Neighbourhoods and Climate Change,Environmental Services,010900,Fleet - Meadowfield Fleet,Third Party Payments,430100,Rendered by Private Contractors,02-Dec-2021,000007817873500,Evans Halshaw,7538,Payments to sub-contractors,279.88,46.65,233.23
Children and Young Peoples Services,Head of Childrens Social Care,085341,High Etherley Satelite Home,Supplies and Services,344033,Telephones,02-Dec-2021,000007817873520,THREE,4814,Telephones general-all costs,10.00,0.00,10.00
Children and Young Peoples Services,Head of Childrens Social Care,085341,High Etherley Satelite Home,Supplies and Services,324117,Provisions E324,02-Dec-2021,000007817873522,SAINSBURYS S/MKTS,5411,Catering costs - provisions,1.95,0.00,1.95
Neighbourhoods and Climate Change,Environmental Services,010367,C&G - South Grounds Maintenance,Supplies and Services,304221,Equipment and Materials,02-Dec-2021,000007817873586,SCREWFIX DIRECT,5211,Direct materials,26.49,0.00,26.49
Neighbourhoods and Climate Change,Environmental Services,010367,C&G - South Grounds Maintenance,Supplies and Services,304221,Equipment and Materials,02-Dec-2021,000007817873588,SCREWFIX DIRECT,5211,Direct materials,36.98,0.00,36.98
Children and Young Peoples Services,Head of Childrens Social Care,085363,Childrens Permanence Team,Supplies and Services,338045,Services,02-Dec-2021,000007817873644,Durham County CNCL,9399,Legal expenses 338045,-11.00,0.00,-11.00
Regeneration Economy and Growth,Transport and Contracted Services,031704,Care Connect - CCTV Countywide,Supplies and Services,384956,Miscellaneous Expenses,02-Dec-2021,000007817873696,SECURITY INDUSTRY,7393,Licences,190.00,0.00,190.00
Resources - C A C,Storm Arwen Emergency Costs,069002,Storm Arwen Emergency Costs,Supplies and Services,304403,Equipment and Materials,02-Dec-2021,000007817873898,AMZNMKTPLACE AMAZON.CO,5999,Other consumables,89.82,14.97,74.85
Resources - C A C,Storm Arwen Emergency Costs,069002,Storm Arwen Emergency Costs,Supplies and Services,304403,Equipment and Materials,02-Dec-2021,000007817873898 - 1,AMZNMKTPLACE AMAZON.CO,5999,Other consumables,0.03,,0.03
Resources - C A C,Storm Arwen Emergency Costs,069002,Storm Arwen Emergency Costs,Supplies and Services,304403,Equipment and Materials,02-Dec-2021,000007817873900,AMZNMKTPLACE AMAZON.CO,5999,Other consumables,89.82,14.97,74.85
Resources - C A C,Storm Arwen Emergency Costs,069002,Storm Arwen Emergency Costs,Supplies and Services,304403,Equipment and Materials,02-Dec-2021,000007817873900 - 1,AMZNMKTPLACE AMAZON.CO,5999,Other consumables,0.03,,0.03
Resources - C A C,Storm Arwen Emergency Costs,069002,Storm Arwen Emergency Costs,Supplies and Services,304403,Equipment and Materials,02-Dec-2021,000007817873902,AMZNMKTPLACE AMAZON.CO,5999,Other consumables,425.00,71.00,354.00
Children and Young Peoples Services,Head of Childrens Social Care,085333,Coxhoe Satelite Home,Supplies and Services,348037,Subsistence E348,02-Dec-2021,000007817874034,COXHOE FISH BAR,5814,Subsistence,7.60,0.00,7.60
Children and Young Peoples Services,Head of Childrens Social Care,085333,Coxhoe Satelite Home,Supplies and Services,304259,Equipment and Materials,02-Dec-2021,000007817874036,J D SPORTS 026,5941,Equipment-purchase and rental,77.00,0.00,77.00
Regeneration Economy and Growth,Corporate Property and Land,030691,Catering - Durham Dales Centre,Supplies and Services,324117,Provisions E324,02-Dec-2021,000007828415084,BATLEYS PERTH,5300,Catering costs - provisions,-34.28,0.00,-34.28
Neighbourhoods and Climate Change,Environmental Services,011060,C&G - Hardwick Park Catering,Supplies and Services,324117,Provisions E324,02-Dec-2021,000007828415108,BATLEYS PERTH,5300,Catering costs - provisions,75.18,12.53,62.65
Neighbourhoods and Climate Change,Environmental Services,011060,C&G - Hardwick Park Catering,Supplies and Services,324117,Provisions E324,02-Dec-2021,000007828415108 - 1,BATLEYS PERTH,5300,Catering costs - provisions,135.23,,135.23
Neighbourhoods and Climate Change,Environmental Services,011060,C&G - Hardwick Park Catering,Supplies and Services,324117,Provisions E324,02-Dec-2021,000007828415112,BATLEYS PERTH,5300,Catering costs - provisions,20.40,3.40,17.00
Neighbourhoods and Climate Change,Environmental Services,011060,C&G - Hardwick Park Catering,Supplies and Services,324117,Provisions E324,02-Dec-2021,000007828415112 - 1,BATLEYS PERTH,5300,Catering costs - provisions,37.13,,37.13
Neighbourhoods and Climate Change,Environmental Services,011060,C&G - Hardwick Park Catering,Supplies and Services,324117,Provisions E324,02-Dec-2021,000007828415126,BATLEYS PERTH,5300,Catering costs - provisions,-28.84,0.00,-28.84
Regeneration Economy and Growth,Corporate Property and Land,021234,Catering - Locomotion,Supplies and Services,324117,Provisions E324,02-Dec-2021,000007828415140,BATLEYS PERTH,5300,Catering costs - provisions,-14.48,-1.96,-12.52
Regeneration Economy and Growth,Corporate Property and Land,021242,Catering - County Hall,Supplies and Services,324117,Provisions E324,02-Dec-2021,000007828415156,BATLEYS PERTH,5300,Catering costs - provisions,87.30,14.55,72.75
Regeneration Economy and Growth,Corporate Property and Land,021242,Catering - County Hall,Supplies and Services,324117,Provisions E324,02-Dec-2021,000007828415156 - 1,BATLEYS PERTH,5300,Catering costs - provisions,14.82,,14.82
Resources BK0010,Digital and Customer Services,065335,School Services - Implementations,Supplies and Services,304639,Equipment and Materials,02-Dec-2021,000009869668013,NETS zandparts.com,4812,Technicians-supplies,1.59,0.00,1.59
Resources - C A C,Storm Arwen Emergency Costs,069002,Storm Arwen Emergency Costs,Supplies and Services,304403,Equipment and Materials,02-Dec-2021,000009869668229,AMZNMktplace,5999,Other consumables,89.82,14.97,74.85
Resources - C A C,Storm Arwen Emergency Costs,069002,Storm Arwen Emergency Costs,Supplies and Services,304403,Equipment and Materials,02-Dec-2021,000009869668229 - 1,AMZNMktplace,5999,Other consumables,0.03,,0.03
Resources - C A C,Storm Arwen Emergency Costs,069002,Storm Arwen Emergency Costs,Supplies and Services,304403,Equipment and Materials,02-Dec-2021,000009869668231,AMZNMktplace,5999,Other consumables,89.82,14.97,74.85
Resources - C A C,Storm Arwen Emergency Costs,069002,Storm Arwen Emergency Costs,Supplies and Services,304403,Equipment and Materials,02-Dec-2021,000009869668231 - 1,AMZNMktplace,5999,Other consumables,0.03,,0.03
Resources - C A C,Storm Arwen Emergency Costs,069002,Storm Arwen Emergency Costs,Supplies and Services,304403,Equipment and Materials,02-Dec-2021,000009869668233,AMZNMktplace,5999,Other consumables,59.90,9.98,49.92
Regeneration Economy and Growth,Business Durham CL0850,030689,Inward Investment and Aftercare,Supplies and Services,304403,Equipment and Materials,02-Dec-2021,000009874307783,ADOBE CREATIVE CLOUD,5734,Other consumables,49.94,0.00,49.94
Regeneration Economy and Growth,Business Durham CL0850,030689,Inward Investment and Aftercare,Supplies and Services,342222,Computers and Communications,02-Dec-2021,000009874307787,FASTHOSTS INTERNET,4816,Comp hardware purch-network servers,67.20,0.00,67.20
Regeneration Economy and Growth,Business Durham CL0850,030689,Inward Investment and Aftercare,Supplies and Services,342222,Computers and Communications,02-Dec-2021,000009874307789,FASTHOSTS INTERNET,4816,Comp hardware purch-network servers,75.06,0.00,75.06
Children and Young Peoples Services,Head of Education and Skills,071801,Selby Cottage Childcare Centre,Supplies and Services,324117,Provisions E324,02-Dec-2021,000009874307797,B&M 228 - CHESTER-LE-S,5399,Catering costs - provisions,58.17,0.00,58.17
Children and Young Peoples Services,Head of Education and Skills,071801,Selby Cottage Childcare Centre,Supplies and Services,324117,Provisions E324,02-Dec-2021,000009874307799,B&M 373 - GATESHEAD,5399,Catering costs - provisions,107.00,0.00,107.00
Children and Young Peoples Services,Head of Education and Skills,071801,Selby Cottage Childcare Centre,Supplies and Services,324117,Provisions E324,02-Dec-2021,000009874307801,WILKO RETAIL LIMITED,5399,Catering costs - provisions,39.10,0.00,39.10
Neighbourhoods and Climate Change,Environmental Services,010301,C&G - North Grounds Maintenance,Supplies and Services,324117,Provisions E324,02-Dec-2021,000009874307803,J VAN VLIET GATESHEAD,5399,Catering costs - provisions,235.81,0.00,235.81
Resources BK0010,Digital and Customer Services,065481,Technical Services 065481,Supplies and Services,304403,Equipment and Materials,02-Dec-2021,000009874307819,AMZNMKTPLACE AMAZON.CO,5999,Other consumables,9.49,1.58,7.91
Children and Young Peoples Services,Head of Childrens Social Care,085501,Child Care Cases Legal Expenses,Supplies and Services,304403,Equipment and Materials,02-Dec-2021,000009874307831,GATESHEAD COUNCIL INT,9399,Other consumables,11.00,0.00,11.00
Regeneration Economy and Growth,Culture Sport and Tourism,030712,VCD - Project Delivery,Supplies and Services,384199,Miscellaneous Expenses,02-Dec-2021,000009874307839,FACEBK NU85N9TRH2,7311,Other hired and contracted services,20.00,0.00,20.00
Regeneration Economy and Growth,Culture Sport and Tourism,030712,VCD - Project Delivery,Supplies and Services,384199,Miscellaneous Expenses,02-Dec-2021,000009874307843,MAILCHIMP MISC,5968,Other hired and contracted services,212.76,0.00,212.76
Children and Young Peoples Services,Head of Childrens Social Care,085351,Framwellgate Moor CU,Supplies and Services,324117,Provisions E324,02-Dec-2021,000009874307851,ASDA STORES LTD,5411,Catering costs - provisions,51.23,0.00,51.23
Resources - C A C,Storm Arwen Emergency Costs,069002,Storm Arwen Emergency Costs,Supplies and Services,364320,Grants to Voluntary Organisations,02-Dec-2021,000009874307865,FIR TREE COUNTRY HOTEL,7011,Accommodation assistance,405.00,0.00,405.00
Resources - C A C,Storm Arwen Emergency Costs,069002,Storm Arwen Emergency Costs,Transport,235073,Public Transport,02-Dec-2021,000009874307867,Phoenix Taxis,4121,Travel-clients/students/children,7.90,0.00,7.90
Children and Young Peoples Services,Head of Childrens Social Care,085380,Operations Manager LAC Resources,Supplies and Services,304403,Equipment and Materials,02-Dec-2021,000009874307915,AMZNMKTPLACE AMAZON.CO,5999,Other consumables,4.75,0.00,4.75
Children and Young Peoples Services,Head of Childrens Social Care,085358,Orchard House Sacriston Solo Home,Supplies and Services,324117,Provisions E324,02-Dec-2021,000009874307995,TESCO STORES 6334,5411,Catering costs - provisions,41.18,0.00,41.18
Children and Young Peoples Services,Head of Childrens Social Care,085358,Orchard House Sacriston Solo Home,Supplies and Services,324117,Provisions E324,02-Dec-2021,000009874307997,SACRISTON NEWS AND BOO,5411,Catering costs - provisions,1.99,0.00,1.99
Children and Young Peoples Services,Head of Education and Skills,071732,Dean Bank Childcare,Supplies and Services,304403,Equipment and Materials,02-Dec-2021,000009874308023,AMZNMktplace,5999,Other consumables,19.99,0.00,19.99
Children and Young Peoples Services,Head of Early Help Inclusion & Vulnerable Children.,085954,Walworth,Transfer Payments,515002,Social Services Clients,02-Dec-2021,000009874308089,Nike GBP,5655,Pocket money,65.90,0.00,65.90
Children and Young Peoples Services,Head of Early Help Inclusion & Vulnerable Children.,085956,Lumley,Transfer Payments,515002,Social Services Clients,02-Dec-2021,000009874308091,Nike GBP,5655,Pocket money,23.90,0.00,23.90
Children and Young Peoples Services,Head of Early Help Inclusion & Vulnerable Children.,085954,Walworth,Transfer Payments,515002,Social Services Clients,02-Dec-2021,000009874308095,Zalando Payments,5651,Pocket money,55.99,0.00,55.99
Children and Young Peoples Services,Head of Early Help Inclusion & Vulnerable Children.,085965,Barnard,Transfer Payments,515002,Social Services Clients,02-Dec-2021,000009874308097,AMZNMktplace,5999,Pocket money,2.82,0.00,2.82
Children and Young Peoples Services,Head of Early Help Inclusion & Vulnerable Children.,085956,Lumley,Transfer Payments,515002,Social Services Clients,02-Dec-2021,000009874308103,AMZNMKTPLACE AMAZON.CO,5999,Pocket money,6.99,1.17,5.82
Neighbourhoods and Climate Change,Environmental Services,031228,North Pennines - Fellfoot Forward,Supplies and Services,324117,Provisions E324,02-Dec-2021,000009874308117,B&M 037 - HEXHAM,5399,Catering costs - provisions,9.99,0.00,9.99
Neighbourhoods and Climate Change,Environmental Services,031238,North Pennines - Tees Swale,Supplies and Services,304403,Equipment and Materials,02-Dec-2021,000009874308143,AMZNMktplace,5999,Other consumables,6.65,1.11,5.54
Children and Young Peoples Services,Head of Early Help Inclusion & Vulnerable Children.,071569,Woodhouse Close Childrens Centre,Supplies and Services,304259,Equipment and Materials,02-Dec-2021,000009874308229,ASDA STORES,5411,Equipment-purchase and rental,3.40,0.00,3.40
Children and Young Peoples Services,Head of Childrens Social Care,085351,Framwellgate Moor CU,Supplies and Services,304403,Equipment and Materials,02-Dec-2021,000009874308325,AMZNMktplace,5999,Other consumables,35.16,5.88,29.28
Children and Young Peoples Services,Head of Education and Skills,071903,Early Years Sustainability,Third Party Payments,430100,Rendered by Private Contractors,02-Dec-2021,000009874308343,EB BBEECS EARLY YEARS,7399,Payments to sub-contractors,70.00,0.00,70.00
Children and Young Peoples Services,Head of Early Help Inclusion & Vulnerable Children.,085957,Secure Management,Supplies and Services,304403,Equipment and Materials,02-Dec-2021,000009874308403,WWW.TABLEPROTECTORDIRE,5734,Other consumables,13.98,0.00,13.98
Resources - C A C,Storm Arwen Emergency Costs,069002,Storm Arwen Emergency Costs,Supplies and Services,384999,Miscellaneous Expenses,02-Dec-2021,000009874308605,Amazon.co.uk EX8P05055,5969,Other expenses,138.00,23.00,115.00
Resources - C A C,Storm Arwen Emergency Costs,069002,Storm Arwen Emergency Costs,Supplies and Services,384999,Miscellaneous Expenses,02-Dec-2021,000009874308605 - 1,Amazon.co.uk EX8P05055,5969,Other expenses,0.50,,0.50
Resources - C A C,Storm Arwen Emergency Costs,069002,Storm Arwen Emergency Costs,Supplies and Services,384999,Miscellaneous Expenses,02-Dec-2021,000009874308609,Amazon.co.uk I93UD2L35,5969,Other expenses,182.40,30.40,152.00
Resources - C A C,Storm Arwen Emergency Costs,069002,Storm Arwen Emergency Costs,Supplies and Services,384999,Miscellaneous Expenses,02-Dec-2021,000009874308611,Amazon.co.uk N70PX13T5,5969,Other expenses,138.00,23.00,115.00
Resources - C A C,Storm Arwen Emergency Costs,069002,Storm Arwen Emergency Costs,Supplies and Services,384999,Miscellaneous Expenses,02-Dec-2021,000009874308611 - 1,Amazon.co.uk N70PX13T5,5969,Other expenses,0.50,,0.50
Resources - C A C,Storm Arwen Emergency Costs,069002,Storm Arwen Emergency Costs,Supplies and Services,384999,Miscellaneous Expenses,02-Dec-2021,000009874308615,Amazon.co.uk PV08L0IF5,5969,Other expenses,104.88,17.48,87.40
Resources - C A C,Storm Arwen Emergency Costs,069002,Storm Arwen Emergency Costs,Supplies and Services,384999,Miscellaneous Expenses,02-Dec-2021,000009874308617,Amazon.co.uk 7A7EU7AN5,5969,Other expenses,82.80,13.80,69.00
Resources - C A C,Storm Arwen Emergency Costs,069002,Storm Arwen Emergency Costs,Supplies and Services,384999,Miscellaneous Expenses,02-Dec-2021,000009874308617 - 1,Amazon.co.uk 7A7EU7AN5,5969,Other expenses,0.30,,0.30
Resources - C A C,Storm Arwen Emergency Costs,069002,Storm Arwen Emergency Costs,Supplies and Services,304403,Equipment and Materials,02-Dec-2021,000009874308621,AMZNMktplace,5999,Other consumables,89.82,14.97,74.85
Resources - C A C,Storm Arwen Emergency Costs,069002,Storm Arwen Emergency Costs,Supplies and Services,304403,Equipment and Materials,02-Dec-2021,000009874308621 - 1,AMZNMktplace,5999,Other consumables,0.03,,0.03
Resources - C A C,Storm Arwen Emergency Costs,069002,Storm Arwen Emergency Costs,Supplies and Services,304403,Equipment and Materials,02-Dec-2021,000009874308623,AMZNMktplace,5999,Other consumables,89.82,14.97,74.85
Resources - C A C,Storm Arwen Emergency Costs,069002,Storm Arwen Emergency Costs,Supplies and Services,304403,Equipment and Materials,02-Dec-2021,000009874308623 - 1,AMZNMktplace,5999,Other consumables,0.03,,0.03
Neighbourhoods and Climate Change,Technical Services CM0300,011036,Highway Capitalised Maint - Carriageway A Class Roads,Employees,040149,Recruitment Instruction and Training,02-Dec-2021,000009874308627,THE CHARTERED INSTITUT,8398,Training-all costs,40.00,0.00,40.00
Resources - C A C,Storm Arwen Emergency Costs,069002,Storm Arwen Emergency Costs,Supplies and Services,384999,Miscellaneous Expenses,02-Dec-2021,000009874308639,Amazon.co.uk BC9YS2EM5,5969,Other expenses,182.40,30.40,152.00
Resources - C A C,Storm Arwen Emergency Costs,069002,Storm Arwen Emergency Costs,Supplies and Services,384999,Miscellaneous Expenses,02-Dec-2021,000009874308641,Amazon.co.uk D21H725H5,5969,Other expenses,182.40,30.40,152.00
Resources - C A C,Storm Arwen Emergency Costs,069002,Storm Arwen Emergency Costs,Supplies and Services,384999,Miscellaneous Expenses,02-Dec-2021,000009874308643,Amazon.co.uk PV8E59ZI5,5969,Other expenses,182.40,30.40,152.00
Resources - C A C,Storm Arwen Emergency Costs,069002,Storm Arwen Emergency Costs,Supplies and Services,384999,Miscellaneous Expenses,02-Dec-2021,000009874308647,Amazon.co.uk QJ3QH8GS5,5969,Other expenses,182.40,30.40,152.00
Resources - C A C,Storm Arwen Emergency Costs,069002,Storm Arwen Emergency Costs,Supplies and Services,384999,Miscellaneous Expenses,02-Dec-2021,000009874308649,Amazon.co.uk SO0JE1S25,5969,Other expenses,182.40,30.40,152.00
Resources - C A C,Storm Arwen Emergency Costs,069002,Storm Arwen Emergency Costs,Supplies and Services,384999,Miscellaneous Expenses,02-Dec-2021,000009874308651,Amazon.co.uk V458I21H5,5969,Other expenses,182.40,30.40,152.00
Resources - C A C,Storm Arwen Emergency Costs,069002,Storm Arwen Emergency Costs,Supplies and Services,384999,Miscellaneous Expenses,02-Dec-2021,000009874308655,Amazon.co.uk W41WJ1EJ5,5969,Other expenses,182.40,30.40,152.00
Resources - C A C,Storm Arwen Emergency Costs,069002,Storm Arwen Emergency Costs,Supplies and Services,384999,Miscellaneous Expenses,02-Dec-2021,000009874308657,Amazon.co.uk XR3I93YD5,5969,Other expenses,182.40,30.40,152.00
Resources - C A C,Storm Arwen Emergency Costs,069002,Storm Arwen Emergency Costs,Supplies and Services,384999,Miscellaneous Expenses,02-Dec-2021,000009874308659,Amazon.co.uk 052TI12V5,5969,Other expenses,77.52,12.92,64.60
Resources - C A C,Storm Arwen Emergency Costs,069002,Storm Arwen Emergency Costs,Supplies and Services,384999,Miscellaneous Expenses,02-Dec-2021,000009874308661,Amazon.co.uk 2C85D24W5,5969,Other expenses,138.00,23.00,115.00
Resources - C A C,Storm Arwen Emergency Costs,069002,Storm Arwen Emergency Costs,Supplies and Services,384999,Miscellaneous Expenses,02-Dec-2021,000009874308661 - 1,Amazon.co.uk 2C85D24W5,5969,Other expenses,0.50,,0.50
Children and Young Peoples Services,Head of Childrens Social Care,085333,Coxhoe Satelite Home,Supplies and Services,384999,Miscellaneous Expenses,02-Dec-2021,000009874308739,MAKING FACES,7230,Other expenses,7.99,0.00,7.99
Children and Young Peoples Services,Head of Childrens Social Care,085333,Coxhoe Satelite Home,Transport,235057,Public Transport,02-Dec-2021,000009874308741,ARRIVA DURHAM COUNTY L,4131,Staff travelling,9.20,0.00,9.20
Children and Young Peoples Services,Head of Childrens Social Care,085333,Coxhoe Satelite Home,Supplies and Services,328041,Clothing uniforms and laundry E328,02-Dec-2021,000009874308743,TJ HUGHES DURHAM,5311,Clothing uniforms and laundry,1.99,0.00,1.99
Children and Young Peoples Services,Head of Childrens Social Care,085333,Coxhoe Satelite Home,Supplies and Services,324117,Provisions E324,02-Dec-2021,000009874308745,TESCO STORES 6029,5411,Catering costs - provisions,8.60,0.00,8.60
Children and Young Peoples Services,Head of Childrens Social Care,085333,Coxhoe Satelite Home,Supplies and Services,304999,Equipment and Materials,02-Dec-2021,000009874308747,SUPERDRUG STORES PLC,5912,Misc equipment tools and materials,15.99,0.00,15.99
Children and Young Peoples Services,Head of Early Help Inclusion & Vulnerable Children.,088113,Seaham & Laurel Avenue Family Centre,Supplies and Services,324117,Provisions E324,02-Dec-2021,000009874308755,ASDA GROCERIES ONLINE,5411,Catering costs - provisions,69.55,0.00,69.55
Adult and Health Services,Head of Adults,055309,Peterlee Pathways,Supplies and Services,324117,Provisions E324,02-Dec-2021,000009874308775,B&M 212 - PETERLEE,5399,Catering costs - provisions,39.50,0.00,39.50
Adult and Health Services,Head of Adults,055309,Peterlee Pathways,Supplies and Services,324117,Provisions E324,02-Dec-2021,000009874308781,WILKO RETAIL LIMITED,5399,Catering costs - provisions,8.10,0.00,8.10
Regeneration Economy and Growth,Corporate Property and Land,011275,Catering -Durham Leadership Centre,Supplies and Services,324117,Provisions E324,02-Dec-2021,000009874387245,JR HOLLAND FOODSERVICE,5499,Catering costs - provisions,24.75,0.00,24.75
Regeneration Economy and Growth,Corporate Property and Land,030691,Catering - Durham Dales Centre,Supplies and Services,324117,Provisions E324,02-Dec-2021,000009874387249,JR HOLLAND FOODSERVICE,5499,Catering costs - provisions,39.56,0.00,39.56
Adult and Health Services,Head of Adults,055643,Hawthorn House LD Respite Unit,Supplies and Services,324117,Provisions E324,02-Dec-2021,000009874387253,JR HOLLAND FOODSERVICE,5499,Catering costs - provisions,22.80,0.00,22.80
Adult and Health Services,Head of Adults,055643,Hawthorn House LD Respite Unit,Supplies and Services,324117,Provisions E324,02-Dec-2021,000009874387255,JR HOLLAND FOODSERVICE,5499,Catering costs - provisions,19.95,0.00,19.95
Neighbourhoods and Climate Change,Environmental Services,011060,C&G - Hardwick Park Catering,Supplies and Services,324117,Provisions E324,02-Dec-2021,000009874387259,JR HOLLAND FOODSERVICE,5499,Catering costs - provisions,59.07,0.00,59.07
Regeneration Economy and Growth,Culture Sport and Tourism,011263,Louisa Centre 011263,Supplies and Services,324117,Provisions E324,02-Dec-2021,000009874387265,JR HOLLAND FOODSERVICE,5499,Catering costs - provisions,10.22,0.00,10.22
Regeneration Economy and Growth,Culture Sport and Tourism,011263,Louisa Centre 011263,Supplies and Services,324117,Provisions E324,02-Dec-2021,000009874387269,JR HOLLAND FOODSERVICE,5499,Catering costs - provisions,6.48,0.00,6.48
Regeneration Economy and Growth,Culture Sport and Tourism,011263,Louisa Centre 011263,Supplies and Services,324117,Provisions E324,02-Dec-2021,000009874387273,JR HOLLAND FOODSERVICE,5499,Catering costs - provisions,8.52,0.00,8.52
Regeneration Economy and Growth,Culture Sport and Tourism,011263,Louisa Centre 011263,Supplies and Services,324117,Provisions E324,02-Dec-2021,000009874387275,JR HOLLAND FOODSERVICE,5499,Catering costs - provisions,9.88,0.00,9.88
Regeneration Economy and Growth,Culture Sport and Tourism,054812,Gala Theatre - Catering etc,Supplies and Services,324117,Provisions E324,02-Dec-2021,000009874387277,JR HOLLAND FOODSERVICE,5499,Catering costs - provisions,4.88,0.00,4.88
Regeneration Economy and Growth,Culture Sport and Tourism,054812,Gala Theatre - Catering etc,Supplies and Services,324117,Provisions E324,02-Dec-2021,000009874387279,JR HOLLAND FOODSERVICE,5499,Catering costs - provisions,70.48,0.00,70.48
Regeneration Economy and Growth,Corporate Property and Land,021242,Catering - County Hall,Supplies and Services,324117,Provisions E324,02-Dec-2021,000009874387281,JR HOLLAND FOODSERVICE,5499,Catering costs - provisions,68.11,0.00,68.11
Regeneration Economy and Growth,Corporate Property and Land,021242,Catering - County Hall,Supplies and Services,324117,Provisions E324,02-Dec-2021,000009874387283,JR HOLLAND FOODSERVICE,5499,Catering costs - provisions,31.06,0.00,31.06
Children and Young Peoples Services,Head of Childrens Social Care,085633,Families First Chester-Le-Street,Supplies and Services,364340,Grants to Voluntary Organisations,03-Dec-2021,000007817872844,WWW.GONORTHEAST.CO.UK,4111,Contact expenses,20.00,0.00,20.00
Children and Young Peoples Services,Head of Education and Skills,071801,Selby Cottage Childcare Centre,Supplies and Services,304403,Equipment and Materials,03-Dec-2021,000007817872850,AMZNMKTPLACE AMAZON.CO,5999,Other consumables,31.92,5.32,26.60
Children and Young Peoples Services,Head of Education and Skills,071801,Selby Cottage Childcare Centre,Supplies and Services,304403,Equipment and Materials,03-Dec-2021,000007817872850 - 1,AMZNMKTPLACE AMAZON.CO,5999,Other consumables,0.04,,0.04
Children and Young Peoples Services,Head of Education and Skills,071801,Selby Cottage Childcare Centre,Supplies and Services,384999,Miscellaneous Expenses,03-Dec-2021,000007817872852,Amazon.co.uk 574577VU5,5969,Other expenses,26.84,4.47,22.37
Children and Young Peoples Services,Head of Education and Skills,071801,Selby Cottage Childcare Centre,Supplies and Services,304999,Equipment and Materials,03-Dec-2021,000007817872854,HOME BARGAINS,5251,Misc equipment tools and materials,138.22,0.00,138.22
Resources - C A C,Storm Arwen Emergency Costs,069002,Storm Arwen Emergency Costs,Supplies and Services,324117,Provisions E324,03-Dec-2021,000007817872880,TESCO STORES 2371,5411,Catering costs - provisions,112.15,0.00,112.15
Resources - C A C,Storm Arwen Emergency Costs,069002,Storm Arwen Emergency Costs,Supplies and Services,324117,Provisions E324,03-Dec-2021,000007817872882,TESCO STORES 2371,5411,Catering costs - provisions,107.20,0.00,107.20
Resources - C A C,Storm Arwen Emergency Costs,069002,Storm Arwen Emergency Costs,Supplies and Services,324117,Provisions E324,03-Dec-2021,000007817872884,TESCO STORES 2371,5411,Catering costs - provisions,120.65,0.00,120.65
Children and Young Peoples Services,Head of Childrens Social Care,085561,Social Work Academy,Supplies and Services,384999,Miscellaneous Expenses,03-Dec-2021,000007817872886,AMZ Amazon.co.uk,5969,Other expenses,-40.46,-6.74,-33.72
Dedicated Schools Grant BG0015,DSG Schools Block,417630,Greenfield Community College 004176 - SEN,Supplies and Services,304403,Equipment and Materials,03-Dec-2021,000007817872898,WWW.BADGESPLUS.CO.UK,5999,Other consumables,35.76,5.96,29.80
Children and Young Peoples Services,Head of Childrens Social Care,085501,Child Care Cases Legal Expenses,Supplies and Services,304403,Equipment and Materials,03-Dec-2021,000007817872940,SUNDERLAND CC,7523,Other consumables,11.00,0.00,11.00
Children and Young Peoples Services,Head of Childrens Social Care,085501,Child Care Cases Legal Expenses,Supplies and Services,304403,Equipment and Materials,03-Dec-2021,000007817872942,SUNDERLAND CC,7523,Other consumables,11.00,0.00,11.00
Regeneration Economy and Growth,Culture Sport and Tourism,054798,dli Museum - WW1 Education Programme,Supplies and Services,304259,Equipment and Materials,03-Dec-2021,000007817872946,SP EMPIREMEDALS.COM,5399,Equipment-purchase and rental,46.95,0.00,46.95
Regeneration Economy and Growth,Culture Sport and Tourism,054798,dli Museum - WW1 Education Programme,Supplies and Services,304259,Equipment and Materials,03-Dec-2021,000007817872948,AMZNMktplace,5999,Equipment-purchase and rental,9.95,0.00,9.95
Regeneration Economy and Growth,Culture Sport and Tourism,030705,Visit County Durham 030705,Supplies and Services,342033,Computers and Communications,03-Dec-2021,000007817872962,FASTHOSTS INTERNET,4816,Computer hardware,7.54,1.26,6.28
Children and Young Peoples Services,Head of Education and Skills,078100,Curric and Professional Development 078100,Supplies and Services,304403,Equipment and Materials,03-Dec-2021,000007817872980,ADOBE STOCK,5734,Other consumables,23.99,0.00,23.99
Children and Young Peoples Services,Head of Childrens Social Care,085334,West Rainton Satelite Home,Supplies and Services,348037,Subsistence E348,03-Dec-2021,000007817872984,BIG LUKES WORLD BUFFET,5812,Subsistence,40.73,0.00,40.73
Children and Young Peoples Services,Head of Childrens Social Care,085334,West Rainton Satelite Home,Supplies and Services,304999,Equipment and Materials,03-Dec-2021,000007817872986,CLIP N CLIMB,7929,Misc equipment tools and materials,12.50,0.00,12.50
Children and Young Peoples Services,Head of Childrens Social Care,085351,Framwellgate Moor CU,Supplies and Services,384999,Miscellaneous Expenses,03-Dec-2021,000007817873002,ATG TICKET WEB,7922,Other expenses,43.65,0.00,43.65
Resources - C A C,Storm Arwen Emergency Costs,069002,Storm Arwen Emergency Costs,Supplies and Services,364320,Grants to Voluntary Organisations,03-Dec-2021,000007817873006,AIRBNB HM4SNSFF9W,7011,Accommodation assistance,561.31,0.00,561.31
Resources - C A C,Storm Arwen Emergency Costs,069002,Storm Arwen Emergency Costs,Transport,235073,Public Transport,03-Dec-2021,000007817873008,Airpay 60122523-Blueli,4121,Travel-clients/students/children,13.95,0.00,13.95
Resources - C A C,Storm Arwen Emergency Costs,069002,Storm Arwen Emergency Costs,Supplies and Services,364320,Grants to Voluntary Organisations,03-Dec-2021,000007817873010,THE HIGHFIELD HOTEL,7011,Accommodation assistance,310.92,0.00,310.92
Resources - C A C,Storm Arwen Emergency Costs,069002,Storm Arwen Emergency Costs,Supplies and Services,364320,Grants to Voluntary Organisations,03-Dec-2021,000007817873012,Gibside Hotel,7011,Accommodation assistance,430.00,0.00,430.00
Resources - C A C,Storm Arwen Emergency Costs,069002,Storm Arwen Emergency Costs,Supplies and Services,364320,Grants to Voluntary Organisations,03-Dec-2021,000007817873014,FIR TREE COUNTRY HOTEL,7011,Accommodation assistance,195.00,0.00,195.00
Children and Young Peoples Services,Head of Childrens Social Care,085341,High Etherley Satelite Home,Supplies and Services,324117,Provisions E324,03-Dec-2021,000007817873042,TESCO STORES 6329,5411,Catering costs - provisions,8.95,0.00,8.95
Children and Young Peoples Services,Head of Childrens Social Care,085331,New Lea Childrens Home,Supplies and Services,324117,Provisions E324,03-Dec-2021,000007817873064,ASDA SUPERSTORE,5411,Catering costs - provisions,1.00,0.00,1.00
Children and Young Peoples Services,Head of Childrens Social Care,085331,New Lea Childrens Home,Supplies and Services,324117,Provisions E324,03-Dec-2021,000007817873066,ASDA SUPERSTORE,5411,Catering costs - provisions,10.00,0.00,10.00
Regeneration Economy and Growth,Corporate Property and Land,021242,Catering - County Hall,Supplies and Services,324117,Provisions E324,03-Dec-2021,000007817873084,HOPWELLS LTD,5811,Catering costs - provisions,373.66,0.00,373.66
Regeneration Economy and Growth,Corporate Property and Land,010525,Catering - Green Lane,Supplies and Services,324117,Provisions E324,03-Dec-2021,000007817873086,HOPWELLS LTD,5811,Catering costs - provisions,70.76,0.00,70.76
Neighbourhoods and Climate Change,Environmental Services,011060,C&G - Hardwick Park Catering,Supplies and Services,324117,Provisions E324,03-Dec-2021,000007817873088,HOPWELLS LTD,5811,Catering costs - provisions,370.89,0.00,370.89
Regeneration Economy and Growth,Corporate Property and Land,021324,Catering - Meadowfield,Supplies and Services,324117,Provisions E324,03-Dec-2021,000007817873090,HOPWELLS LTD,5811,Catering costs - provisions,78.02,0.00,78.02
Regeneration Economy and Growth,Culture Sport and Tourism,054235,Bishop Auckland Town Hall Cafe,Supplies and Services,324117,Provisions E324,03-Dec-2021,000007817873092,HOPWELLS LTD,5811,Catering costs - provisions,740.77,0.00,740.77
Children and Young Peoples Services,Head of Early Help Inclusion & Vulnerable Children.,085952,Secure Education,Supplies and Services,304403,Equipment and Materials,03-Dec-2021,000007817873118,WWW.CGPBOOKS.CO.UK,5999,Other consumables,21.95,0.00,21.95
Children and Young Peoples Services,Head of Early Help Inclusion & Vulnerable Children.,085965,Barnard,Supplies and Services,324117,Provisions E324,03-Dec-2021,000007817873120,TESCO STORES 6329,5411,Catering costs - provisions,113.31,0.00,113.31
Children and Young Peoples Services,Head of Childrens Social Care,085511,Emergency Duty Team,Transport,235057,Public Transport,03-Dec-2021,000007817873136,CENTRAL TAXIS GTHEAD L,4121,Staff travelling,6.00,0.00,6.00
Children and Young Peoples Services,Head of Childrens Social Care,085511,Emergency Duty Team,Supplies and Services,352001,Conference Expenses,03-Dec-2021,000007817873138,TRAVELODGE,3615,Conferencesseminars fees etc,305.42,0.00,305.42
Children and Young Peoples Services,Head of Childrens Social Care,085511,Emergency Duty Team,Supplies and Services,352001,Conference Expenses,03-Dec-2021,000007817873140,ROYAL STATION HOTEL,7011,Conferencesseminars fees etc,82.00,0.00,82.00
Children and Young Peoples Services,Head of Childrens Social Care,085358,Orchard House Sacriston Solo Home,Supplies and Services,344033,Telephones,03-Dec-2021,000007817873188,giffgaff,4814,Telephones general-all costs,10.00,0.00,10.00
Children and Young Peoples Services,Head of Childrens Social Care,085358,Orchard House Sacriston Solo Home,Supplies and Services,332047,Printing Stationery and Gen Off Exps,03-Dec-2021,000007817873190,VIKING UK,5111,Stationery,135.16,0.00,135.16
Children and Young Peoples Services,Head of Education and Skills,071732,Dean Bank Childcare,Supplies and Services,384999,Miscellaneous Expenses,03-Dec-2021,000007817873228,Amazon.co.uk 3Q37T25E5,5969,Other expenses,96.88,0.00,96.88
Children and Young Peoples Services,Head of Education and Skills,071732,Dean Bank Childcare,Supplies and Services,304403,Equipment and Materials,03-Dec-2021,000007817873230,AMZNMktplace,5999,Other consumables,4.71,0.00,4.71
Children and Young Peoples Services,Head of Education and Skills,071732,Dean Bank Childcare,Supplies and Services,304403,Equipment and Materials,03-Dec-2021,000007817873232,AMZNMktplace,5999,Other consumables,79.80,0.00,79.80
Children and Young Peoples Services,Head of Education and Skills,071732,Dean Bank Childcare,Supplies and Services,324117,Provisions E324,03-Dec-2021,000007817873234,B&M 035 - SHILDON,5399,Catering costs - provisions,100.68,0.00,100.68
Children and Young Peoples Services,Head of Education and Skills,071732,Dean Bank Childcare,Supplies and Services,384999,Miscellaneous Expenses,03-Dec-2021,000007817873236,Amazon.co.uk WL8CQ0DI5,5969,Other expenses,190.43,0.00,190.43
Children and Young Peoples Services,Head of Education and Skills,071732,Dean Bank Childcare,Supplies and Services,304403,Equipment and Materials,03-Dec-2021,000007817873238,AMZNMktplace,5999,Other consumables,23.60,0.00,23.60
Children and Young Peoples Services,Head of Education and Skills,071732,Dean Bank Childcare,Supplies and Services,324117,Provisions E324,03-Dec-2021,000007817873250,ASDA GROCERIES ONLINE,5411,Catering costs - provisions,-2.50,0.00,-2.50
Regeneration Economy and Growth,Culture Sport and Tourism,054966,Gala Theatre - Gala Productions,Supplies and Services,338047,Services,03-Dec-2021,000007817873270,AMZNMktplace,5999,Direct production costs,54.02,0.00,54.02
Regeneration Economy and Growth,Culture Sport and Tourism,054813,Gala Theatre - Technical,Supplies and Services,304259,Equipment and Materials,03-Dec-2021,000007817873272,AMZNMktplace,5999,Equipment-purchase and rental,49.99,0.00,49.99
Regeneration Economy and Growth,Culture Sport and Tourism,054813,Gala Theatre - Technical,Supplies and Services,304259,Equipment and Materials,03-Dec-2021,000007817873274,PENN ELCOM,5399,Equipment-purchase and rental,19.88,0.00,19.88
Regeneration Economy and Growth,Culture Sport and Tourism,054813,Gala Theatre - Technical,Supplies and Services,304259,Equipment and Materials,03-Dec-2021,000007817873276,AMZNMKTPLACE AMAZON.CO,5999,Equipment-purchase and rental,10.79,0.00,10.79
Adult and Health Services,Head of Adults,052953,Training - Social Work,Supplies and Services,344033,Telephones,03-Dec-2021,000007817873298,SQ 4 MENTAL HEALTH LT,8099,Telephones general-all costs,109.45,0.00,109.45
Children and Young Peoples Services,Head of Childrens Social Care,085517,Supporting Solutions Service (Edge of Care),Supplies and Services,332047,Printing Stationery and Gen Off Exps,03-Dec-2021,000007817873306,AMZNMktplace,5999,Stationery,43.99,7.33,36.66
Children and Young Peoples Services,Head of Childrens Social Care,085517,Supporting Solutions Service (Edge of Care),Supplies and Services,332047,Printing Stationery and Gen Off Exps,03-Dec-2021,000007817873308,ASDA GEORGE COM LEEDS,5411,Stationery,218.95,0.00,218.95
Children and Young Peoples Services,Head of Childrens Social Care,085517,Supporting Solutions Service (Edge of Care),Supplies and Services,332047,Printing Stationery and Gen Off Exps,03-Dec-2021,000007817873310,ARGOS LTD,5310,Stationery,322.95,0.00,322.95
Children and Young Peoples Services,Head of Childrens Social Care,085517,Supporting Solutions Service (Edge of Care),Supplies and Services,332047,Printing Stationery and Gen Off Exps,03-Dec-2021,000007817873312,ARGOS LTD,5310,Stationery,89.00,0.00,89.00
Regeneration Economy and Growth,Development and Housing,031623,Rough Sleeping,Employees,040149,Recruitment Instruction and Training,03-Dec-2021,000007817873326,PREMIER INN,3811,Training-all costs,390.42,0.00,390.42
Regeneration Economy and Growth,Development and Housing,030771,Durham Advance Flexible Fund,Supplies and Services,338099,Services,03-Dec-2021,000007817873328,DEED POLL OFFICE,7277,Other services,33.69,0.00,33.69
Children and Young Peoples Services,Head of Early Help Inclusion & Vulnerable Children.,085965,Barnard,Transfer Payments,515002,Social Services Clients,03-Dec-2021,000007817873330,AMZNMktplace,5999,Pocket money,3.73,0.62,3.11
Children and Young Peoples Services,Head of Early Help Inclusion & Vulnerable Children.,085962,Aycliffe Secure - Durham,Transfer Payments,515002,Social Services Clients,03-Dec-2021,000007817873332,SPORTSDIRECT.COM,5691,Pocket money,52.49,0.00,52.49
Children and Young Peoples Services,Head of Childrens Social Care,085621,Families First Aycliffe,Supplies and Services,304403,Equipment and Materials,03-Dec-2021,000007817873382,AMZNMktplace,5999,Other consumables,56.99,9.50,47.49
Children and Young Peoples Services,Head of Childrens Social Care,085621,Families First Aycliffe,Supplies and Services,304403,Equipment and Materials,03-Dec-2021,000007817873384,AMZNMktplace,5999,Other consumables,11.99,2.00,9.99
Regeneration Economy and Growth,Development and Housing,030771,Durham Advance Flexible Fund,Supplies and Services,304403,Equipment and Materials,03-Dec-2021,000007817873452,AMZNMktplace,5999,Other consumables,194.66,32.44,162.22
Dedicated Schools Grant BG0015,DSG Schools Block,418518,Belmont Community School 004185 - School ICT costs,Supplies and Services,304403,Equipment and Materials,03-Dec-2021,000007817873514,Amazon.co.uk 3L99303Y5,5969,Other consumables,149.83,24.97,124.86
Neighbourhoods and Climate Change,Environmental Services,031228,North Pennines - Fellfoot Forward,Supplies and Services,304221,Equipment and Materials,03-Dec-2021,000007817873516,B & Q 1182,5200,Direct materials,52.56,0.00,52.56
Neighbourhoods and Climate Change,Environmental Services,031228,North Pennines - Fellfoot Forward,Supplies and Services,304221,Equipment and Materials,03-Dec-2021,000007817873518,WICKES CARLISLE,5200,Direct materials,250.50,0.00,250.50
Regeneration Economy and Growth,Corporate Property and Land,020041,Bldg Serv - Business Development - General,Premises,120037,Energy Costs,03-Dec-2021,000007817873572,ALDERSON NATEBY SERVIC,7538,Other fuels,52.11,0.00,52.11
Children and Young Peoples Services,Head of Childrens Social Care,085333,Coxhoe Satelite Home,Supplies and Services,324117,Provisions E324,03-Dec-2021,000007817873578,ASDA SUPERSTORE 4987,5411,Catering costs - provisions,108.37,0.00,108.37
Children and Young Peoples Services,Head of Education and Skills,071732,Dean Bank Childcare,Supplies and Services,324117,Provisions E324,03-Dec-2021,000007817873606,B&M 147 - FERRYHILL,5399,Catering costs - provisions,4.50,0.00,4.50
Children and Young Peoples Services,Head of Childrens Social Care,085351,Framwellgate Moor CU,Supplies and Services,304999,Equipment and Materials,03-Dec-2021,000007817873608,HOME BARGAINS,5251,Misc equipment tools and materials,38.97,0.00,38.97
Children and Young Peoples Services,Head of Childrens Social Care,085351,Framwellgate Moor CU,Supplies and Services,324117,Provisions E324,03-Dec-2021,000007817873610,OOPS DURHAM,5411,Catering costs - provisions,20.19,0.00,20.19
Children and Young Peoples Services,Head of Childrens Social Care,085351,Framwellgate Moor CU,Supplies and Services,324117,Provisions E324,03-Dec-2021,000007817873612,ALDI 12 774,5411,Catering costs - provisions,39.92,0.00,39.92
Children and Young Peoples Services,Head of Education and Skills,070008,Governor Training,Supplies and Services,304999,Equipment and Materials,03-Dec-2021,000007817873634,Vimeo PRO,5968,Misc equipment tools and materials,226.80,0.00,226.80
Children and Young Peoples Services,Head of Early Help Inclusion & Vulnerable Children.,088102,Consett & Stanley Intensive Family Support Team,Supplies and Services,364301,Grants to Voluntary Organisations,03-Dec-2021,000007817873640,MAGUIRES,5713,Hardship,128.00,0.00,128.00
Children and Young Peoples Services,Head of Childrens Social Care,085363,Childrens Permanence Team,Supplies and Services,338045,Services,03-Dec-2021,000007817873642,DARLINGTON BC INTERNET,9399,Legal expenses 338045,11.00,0.00,11.00
Children and Young Peoples Services,Head of Early Help Inclusion & Vulnerable Children.,085957,Secure Management,Supplies and Services,304259,Equipment and Materials,03-Dec-2021,000007817873684,ProDirectSoccer,5941,Equipment-purchase and rental,114.50,0.00,114.50
Children and Young Peoples Services,Head of Early Help Inclusion & Vulnerable Children.,085957,Secure Management,Employees,040149,Recruitment Instruction and Training,03-Dec-2021,000007817873686,Twinkl,8299,Training-all costs,101.88,0.00,101.88
Children and Young Peoples Services,Head of Early Help Inclusion & Vulnerable Children.,085957,Secure Management,Supplies and Services,304999,Equipment and Materials,03-Dec-2021,000007817873688,MICROSOFT XBOX,5816,Misc equipment tools and materials,16.74,0.00,16.74
Children and Young Peoples Services,Head of Early Help Inclusion & Vulnerable Children.,085957,Secure Management,Supplies and Services,328041,Clothing uniforms and laundry E328,03-Dec-2021,000007817873692,ARGOS LTD,5310,Clothing uniforms and laundry,73.94,0.00,73.94
Children and Young Peoples Services,Head of Early Help Inclusion & Vulnerable Children.,088107,Wheatley Hill & N. Aycliffe Family Centre,Supplies and Services,304403,Equipment and Materials,03-Dec-2021,000007817873800,AMZNMktplace,5999,Other consumables,29.90,5.00,24.90
Children and Young Peoples Services,Head of Early Help Inclusion & Vulnerable Children.,088107,Wheatley Hill & N. Aycliffe Family Centre,Supplies and Services,304403,Equipment and Materials,03-Dec-2021,000007817873802,AMZNMktplace,5999,Other consumables,29.90,5.00,24.90
Children and Young Peoples Services,Head of Childrens Social Care,085334,West Rainton Satelite Home,Supplies and Services,308011,Furniture,03-Dec-2021,000007817873980,The Range,5719,Furniture repair and replacement,115.60,0.00,115.60
Children and Young Peoples Services,Head of Childrens Social Care,085334,West Rainton Satelite Home,Supplies and Services,308011,Furniture,03-Dec-2021,000007817873982,The Range,5719,Furniture repair and replacement,297.30,0.00,297.30
Adult and Health Services,Head of Adults,055309,Peterlee Pathways,Supplies and Services,304259,Equipment and Materials,03-Dec-2021,000007817873986,WWW.DURHAM.GOV.UK,9399,Equipment-purchase and rental,10.00,0.00,10.00
Regeneration Economy and Growth,Development and Housing,030771,Durham Advance Flexible Fund,Supplies and Services,304999,Equipment and Materials,03-Dec-2021,000007817874044,2GO Software BV,5817,Misc equipment tools and materials,32.43,0.00,32.43
Regeneration Economy and Growth,Corporate Property and Land,030691,Catering - Durham Dales Centre,Supplies and Services,324117,Provisions E324,03-Dec-2021,000007817971964,JR HOLLAND FOODSERVICE,5499,Catering costs - provisions,90.34,0.00,90.34
Adult and Health Services,Head of Adults,055643,Hawthorn House LD Respite Unit,Supplies and Services,324117,Provisions E324,03-Dec-2021,000007817971966,JR HOLLAND FOODSERVICE,5499,Catering costs - provisions,24.20,0.00,24.20
Adult and Health Services,Head of Adults,055643,Hawthorn House LD Respite Unit,Supplies and Services,324117,Provisions E324,03-Dec-2021,000007817971968,JR HOLLAND FOODSERVICE,5499,Catering costs - provisions,22.80,0.00,22.80
Regeneration Economy and Growth,Corporate Property and Land,021234,Catering - Locomotion,Supplies and Services,324117,Provisions E324,03-Dec-2021,000007817971970,JR HOLLAND FOODSERVICE,5499,Catering costs - provisions,20.96,0.00,20.96
Regeneration Economy and Growth,Corporate Property and Land,021235,Catering - Wharton Park,Supplies and Services,324117,Provisions E324,03-Dec-2021,000007817971972,JR HOLLAND FOODSERVICE,5499,Catering costs - provisions,19.35,0.00,19.35
Regeneration Economy and Growth,Culture Sport and Tourism,054812,Gala Theatre - Catering etc,Supplies and Services,324117,Provisions E324,03-Dec-2021,000007817971974,JR HOLLAND FOODSERVICE,5499,Catering costs - provisions,35.85,0.00,35.85
Regeneration Economy and Growth,Corporate Property and Land,021242,Catering - County Hall,Supplies and Services,324117,Provisions E324,03-Dec-2021,000007828415158,BATLEYS PERTH,5300,Catering costs - provisions,627.84,104.64,523.20
Regeneration Economy and Growth,Corporate Property and Land,021242,Catering - County Hall,Supplies and Services,324117,Provisions E324,03-Dec-2021,000007828415158 - 1,BATLEYS PERTH,5300,Catering costs - provisions,584.91,,584.91
Regeneration Economy and Growth,Culture Sport and Tourism,054966,Gala Theatre - Gala Productions,Supplies and Services,338047,Services,03-Dec-2021,000009874308025,Amazon.co.uk IK9FG59C5,5969,Direct production costs,22.26,0.00,22.26
Regeneration Economy and Growth,Culture Sport and Tourism,054813,Gala Theatre - Technical,Supplies and Services,304259,Equipment and Materials,03-Dec-2021,000009874308029,AMZNMktplace,5999,Equipment-purchase and rental,13.86,0.00,13.86
Resources - C A C,Storm Arwen Emergency Costs,069002,Storm Arwen Emergency Costs,Supplies and Services,384999,Miscellaneous Expenses,03-Dec-2021,000009874308663,Amazon.co.uk M034X81G5,5969,Other expenses,55.20,9.20,46.00
Resources - C A C,Storm Arwen Emergency Costs,069002,Storm Arwen Emergency Costs,Supplies and Services,384999,Miscellaneous Expenses,03-Dec-2021,000009874308663 - 1,Amazon.co.uk M034X81G5,5969,Other expenses,0.20,,0.20
Resources - C A C,Storm Arwen Emergency Costs,069002,Storm Arwen Emergency Costs,Supplies and Services,384999,Miscellaneous Expenses,03-Dec-2021,000009874308665,Amazon.co.uk 359NO2D15,5969,Other expenses,138.00,23.00,115.00
Resources - C A C,Storm Arwen Emergency Costs,069002,Storm Arwen Emergency Costs,Supplies and Services,384999,Miscellaneous Expenses,03-Dec-2021,000009874308665 - 1,Amazon.co.uk 359NO2D15,5969,Other expenses,0.50,,0.50
Adult and Health Services,Head of Adults,055309,Peterlee Pathways,Supplies and Services,304403,Equipment and Materials,03-Dec-2021,000009874308695,AMZNMktplace,5999,Other consumables,74.25,12.40,61.85
Regeneration Economy and Growth,Business Durham CL0850,030689,Inward Investment and Aftercare,Supplies and Services,336005,Advertising E336,04-Dec-2021,000007817872830,GOOGLE ADS6853017821,7311,Advertising other than for staff,123.81,0.00,123.81
Regeneration Economy and Growth,Business Durham CL0850,030689,Inward Investment and Aftercare,Supplies and Services,342222,Computers and Communications,04-Dec-2021,000007817872832,FASTHOSTS INTERNET,4816,Comp hardware purch-network servers,7.54,0.00,7.54
Children and Young Peoples Services,Head of Childrens Social Care,085341,High Etherley Satelite Home,Supplies and Services,304999,Equipment and Materials,04-Dec-2021,000007817872934,WWW.PLANET-LEISURE.CO.,7933,Misc equipment tools and materials,10.45,0.00,10.45
Children and Young Peoples Services,Head of Childrens Social Care,085341,High Etherley Satelite Home,Supplies and Services,324117,Provisions E324,04-Dec-2021,000007817872936,TESCO STORES 2916,5411,Catering costs - provisions,43.47,0.00,43.47
Regeneration Economy and Growth,Culture Sport and Tourism,054341,Sedgefield Library,Supplies and Services,304252,Equipment and Materials,04-Dec-2021,000007817872950,HOMEBASE.CO.UK,5200,Equipment-repairsserviceinsurance,-63.00,0.00,-63.00
Regeneration Economy and Growth,Culture Sport and Tourism,054341,Sedgefield Library,Supplies and Services,304252,Equipment and Materials,04-Dec-2021,000007817872952,HOMEBASE.CO.UK,5200,Equipment-repairsserviceinsurance,-6.00,0.00,-6.00
Adult and Health Services,Head of Adults,055643,Hawthorn House LD Respite Unit,Supplies and Services,324117,Provisions E324,04-Dec-2021,000007817872958,SAINSBURYS S/MKTS,5411,Catering costs - provisions,21.30,0.00,21.30
Children and Young Peoples Services,Head of Childrens Social Care,085342,16 Hickstead Rise (previously 9 Cedar Ave),Supplies and Services,328041,Clothing uniforms and laundry E328,04-Dec-2021,000007817872964,NikePOS_UK,5655,Clothing uniforms and laundry,7.95,0.00,7.95
Children and Young Peoples Services,Head of Childrens Social Care,085342,16 Hickstead Rise (previously 9 Cedar Ave),Supplies and Services,328041,Clothing uniforms and laundry E328,04-Dec-2021,000007817872966,OCEAN BEACH PLEASURE P,7996,Clothing uniforms and laundry,10.00,0.00,10.00
Children and Young Peoples Services,Head of Childrens Social Care,085342,16 Hickstead Rise (previously 9 Cedar Ave),Supplies and Services,348037,Subsistence E348,04-Dec-2021,000007817872968,Bells Fish and Chips T,5814,Subsistence,17.85,0.00,17.85
Children and Young Peoples Services,Head of Childrens Social Care,085342,16 Hickstead Rise (previously 9 Cedar Ave),Supplies and Services,304259,Equipment and Materials,04-Dec-2021,000007817872970,J D SPORTS,5941,Equipment-purchase and rental,43.00,0.00,43.00
Dedicated Schools Grant BG0015,DSG Schools Block,418506,Belmont Community School 004185 - Visual Arts,Supplies and Services,304403,Equipment and Materials,04-Dec-2021,000007817872994,AMZNMktplace,5999,Other consumables,48.03,8.01,40.02
Children and Young Peoples Services,Head of Early Help Inclusion & Vulnerable Children.,085956,Lumley,Supplies and Services,324117,Provisions E324,04-Dec-2021,000007817873122,TESCO STORES 6329,5411,Catering costs - provisions,93.07,0.00,93.07
Regeneration Economy and Growth,Development and Housing,031500,Housing Solutions - Core,Transport,235057,Public Transport,04-Dec-2021,000007817873176,LMnext UK Ltd,4722,Staff travelling,144.00,0.00,144.00
Children and Young Peoples Services,Head of Education and Skills,071732,Dean Bank Childcare,Supplies and Services,304403,Equipment and Materials,04-Dec-2021,000007817873240,AMZNMktplace,5999,Other consumables,38.35,0.00,38.35
Children and Young Peoples Services,Head of Education and Skills,071732,Dean Bank Childcare,Supplies and Services,384999,Miscellaneous Expenses,04-Dec-2021,000007817873242,Amazon.co.uk EZ88F8KX5,5969,Other expenses,128.34,0.00,128.34
Children and Young Peoples Services,Head of Education and Skills,071732,Dean Bank Childcare,Supplies and Services,384999,Miscellaneous Expenses,04-Dec-2021,000007817873244,Amazon.co.uk H41EE3LE5,5969,Other expenses,188.86,0.00,188.86
Children and Young Peoples Services,Head of Education and Skills,071732,Dean Bank Childcare,Supplies and Services,384999,Miscellaneous Expenses,04-Dec-2021,000007817873246,Amazon.co.uk JN35Y7RL5,5969,Other expenses,5.59,0.00,5.59
Children and Young Peoples Services,Head of Education and Skills,071732,Dean Bank Childcare,Supplies and Services,384999,Miscellaneous Expenses,04-Dec-2021,000007817873248,Amazon.co.uk QA9VF9HY5,5969,Other expenses,39.13,0.00,39.13
Children and Young Peoples Services,Head of Education and Skills,071732,Dean Bank Childcare,Supplies and Services,324117,Provisions E324,04-Dec-2021,000007817873252,Wm Morrisons Store Pic,5411,Catering costs - provisions,8.00,0.00,8.00
Regeneration Economy and Growth,Culture Sport and Tourism,054966,Gala Theatre - Gala Productions,Supplies and Services,338047,Services,04-Dec-2021,000007817873278,AMZNMktplace,5999,Direct production costs,16.48,0.00,16.48
Children and Young Peoples Services,Head of Early Help Inclusion & Vulnerable Children.,085956,Lumley,Supplies and Services,384302,Miscellaneous Expenses,04-Dec-2021,000007817873334,SPORTSDIRECT.COM,5691,Activity expenses,37.99,0.00,37.99
Children and Young Peoples Services,Head of Early Help Inclusion & Vulnerable Children.,085965,Barnard,Transfer Payments,515002,Social Services Clients,04-Dec-2021,000007817873336,WWW CONVERSE COM,5651,Pocket money,57.00,0.00,57.00
Children and Young Peoples Services,Head of Childrens Social Care,085352,New Childrens Home (previously Tow Law),Supplies and Services,304999,Equipment and Materials,04-Dec-2021,000007817873502,PLANET LEISURE,7933,Misc equipment tools and materials,8.25,0.00,8.25
Children and Young Peoples Services,Head of Childrens Social Care,085341,High Etherley Satelite Home,Supplies and Services,384999,Miscellaneous Expenses,04-Dec-2021,000007817873524,Amazon.co.uk PL94N7LG5,5969,Other expenses,16.37,2.73,13.64
Children and Young Peoples Services,Head of Early Help Inclusion & Vulnerable Children.,085957,Secure Management,Supplies and Services,304403,Equipment and Materials,04-Dec-2021,000007817873690,AMZNMktplace,5999,Other consumables,12.62,0.00,12.62
Children and Young Peoples Services,Head of Early Help Inclusion & Vulnerable Children.,085801,CDYJS - Support,Supplies and Services,332047,Printing Stationery and Gen Off Exps,04-Dec-2021,000007817873742,ODEON CINEMAS,7832,Stationery,193.41,0.00,193.41
Children and Young Peoples Services,Head of Education and Skills,071802,Louisa Cent Nursery,Supplies and Services,324117,Provisions E324,04-Dec-2021,000007817873754,ASDA GROCERIES ONLINE,5411,Catering costs - provisions,199.35,0.00,199.35
Children and Young Peoples Services,Head of Early Help Inclusion & Vulnerable Children.,088107,Wheatley Hill & N. Aycliffe Family Centre,Supplies and Services,384999,Miscellaneous Expenses,04-Dec-2021,000007817873804,Amazon.co.uk 6Q5SW1IV5,5969,Other expenses,19.47,0.00,19.47
Children and Young Peoples Services,Head of Early Help Inclusion & Vulnerable Children.,088107,Wheatley Hill & N. Aycliffe Family Centre,Supplies and Services,384999,Miscellaneous Expenses,04-Dec-2021,000007817873806,Amazon.co.uk 6Y0WO1Z05,5969,Other expenses,32.45,0.00,32.45
Children and Young Peoples Services,Head of Childrens Social Care,085331,New Lea Childrens Home,Supplies and Services,328041,Clothing uniforms and laundry E328,04-Dec-2021,000007817873860,Superdry,5691,Clothing uniforms and laundry,89.99,0.00,89.99
Children and Young Peoples Services,Head of Childrens Social Care,085331,New Lea Childrens Home,Supplies and Services,384999,Miscellaneous Expenses,04-Dec-2021,000007817873862,The Body Shop,5977,Other expenses,12.00,0.00,12.00
Children and Young Peoples Services,Head of Childrens Social Care,085331,New Lea Childrens Home,Supplies and Services,348037,Subsistence E348,04-Dec-2021,000007817873864,KFC METROCENTRE FC,5814,Subsistence,3.99,0.00,3.99
Children and Young Peoples Services,Head of Childrens Social Care,085331,New Lea Childrens Home,Supplies and Services,384999,Miscellaneous Expenses,04-Dec-2021,000007817873866,BUILD-A-BEAR WORKSHOP,5945,Other expenses,24.65,0.00,24.65
Children and Young Peoples Services,Head of Childrens Social Care,085331,New Lea Childrens Home,Supplies and Services,372009,Subscriptions E372,04-Dec-2021,000007817873868,DOC BLACK INK LTD,7299,Subscriptions 372009,6.99,0.00,6.99
Children and Young Peoples Services,Head of Childrens Social Care,085331,New Lea Childrens Home,Supplies and Services,328041,Clothing uniforms and laundry E328,04-Dec-2021,000007817873870,RIVER ISLAND 217,5691,Clothing uniforms and laundry,63.85,0.00,63.85
Children and Young Peoples Services,Head of Childrens Social Care,085331,New Lea Childrens Home,Supplies and Services,328041,Clothing uniforms and laundry E328,04-Dec-2021,000007817873872,Superdry,5691,Clothing uniforms and laundry,-89.99,0.00,-89.99
Children and Young Peoples Services,Head of Childrens Social Care,085331,New Lea Childrens Home,Supplies and Services,328041,Clothing uniforms and laundry E328,04-Dec-2021,000007817873874,THE WORKS,5310,Clothing uniforms and laundry,18.00,0.00,18.00
Children and Young Peoples Services,Head of Childrens Social Care,085331,New Lea Childrens Home,Supplies and Services,348037,Subsistence E348,04-Dec-2021,000007817873876,GREGGS,5812,Subsistence,4.20,0.00,4.20
Children and Young Peoples Services,Head of Childrens Social Care,085331,New Lea Childrens Home,Supplies and Services,304259,Equipment and Materials,04-Dec-2021,000007817873878,JD SPORTS 193,5941,Equipment-purchase and rental,92.10,0.00,92.10
Children and Young Peoples Services,Head of Childrens Social Care,085331,New Lea Childrens Home,Supplies and Services,328041,Clothing uniforms and laundry E328,04-Dec-2021,000007817873880,PRIMARK 670 GATESHEAD,5651,Clothing uniforms and laundry,22.00,0.00,22.00
Resources - C A C,Storm Arwen Emergency Costs,069002,Storm Arwen Emergency Costs,Supplies and Services,384999,Miscellaneous Expenses,04-Dec-2021,000007817873904,Amazon.co.uk 0Y7DT72S5,5969,Other expenses,27.95,0.00,27.95
Resources - C A C,Storm Arwen Emergency Costs,069002,Storm Arwen Emergency Costs,Supplies and Services,304403,Equipment and Materials,04-Dec-2021,000007817873906,AMZNMktplace,5999,Other consumables,45.99,0.00,45.99
Resources - C A C,Storm Arwen Emergency Costs,069002,Storm Arwen Emergency Costs,Supplies and Services,384999,Miscellaneous Expenses,04-Dec-2021,000007817873908,Amazon.co.uk CD9KY2IM5,5969,Other expenses,27.95,0.00,27.95
Resources - C A C,Storm Arwen Emergency Costs,069002,Storm Arwen Emergency Costs,Supplies and Services,384999,Miscellaneous Expenses,04-Dec-2021,000007817873910,Amazon.co.uk GU70M09O5,5969,Other expenses,27.95,0.00,27.95
Resources - C A C,Storm Arwen Emergency Costs,069002,Storm Arwen Emergency Costs,Supplies and Services,384999,Miscellaneous Expenses,04-Dec-2021,000007817873912,Amazon.co.uk IP2OK09Y5,5969,Other expenses,27.95,0.00,27.95
Resources - C A C,Storm Arwen Emergency Costs,069002,Storm Arwen Emergency Costs,Supplies and Services,384999,Miscellaneous Expenses,04-Dec-2021,000007817873914,Amazon.co.uk J25GK22N5,5969,Other expenses,27.95,0.00,27.95
Resources - C A C,Storm Arwen Emergency Costs,069002,Storm Arwen Emergency Costs,Supplies and Services,384999,Miscellaneous Expenses,04-Dec-2021,000007817873916,Amazon.co.uk LD8Y27WN5,5969,Other expenses,27.95,0.00,27.95
Resources - C A C,Storm Arwen Emergency Costs,069002,Storm Arwen Emergency Costs,Supplies and Services,384999,Miscellaneous Expenses,04-Dec-2021,000007817873918,Amazon.co.uk NL5V934S5,5969,Other expenses,27.95,0.00,27.95
Resources - C A C,Storm Arwen Emergency Costs,069002,Storm Arwen Emergency Costs,Supplies and Services,384999,Miscellaneous Expenses,04-Dec-2021,000007817873920,Amazon.co.uk QB0LB4Z25,5969,Other expenses,27.95,0.00,27.95
Resources - C A C,Storm Arwen Emergency Costs,069002,Storm Arwen Emergency Costs,Supplies and Services,384999,Miscellaneous Expenses,04-Dec-2021,000007817873922,Amazon.co.uk UD0WD28V5,5969,Other expenses,27.95,0.00,27.95
Resources - C A C,Storm Arwen Emergency Costs,069002,Storm Arwen Emergency Costs,Supplies and Services,384999,Miscellaneous Expenses,04-Dec-2021,000007817873924,Amazon.co.uk UR56Z9LK5,5969,Other expenses,27.95,0.00,27.95
Resources - C A C,Storm Arwen Emergency Costs,069002,Storm Arwen Emergency Costs,Supplies and Services,384999,Miscellaneous Expenses,04-Dec-2021,000007817873926,Amazon.co.uk VN8UD3FU5,5969,Other expenses,27.95,0.00,27.95
Resources - C A C,Storm Arwen Emergency Costs,069002,Storm Arwen Emergency Costs,Supplies and Services,384999,Miscellaneous Expenses,04-Dec-2021,000007817873928,Amazon.co.uk VO2DJ89W5,5969,Other expenses,27.95,0.00,27.95
Resources - C A C,Storm Arwen Emergency Costs,069002,Storm Arwen Emergency Costs,Supplies and Services,384999,Miscellaneous Expenses,04-Dec-2021,000007817873930,Amazon.co.uk X23S18HZ5,5969,Other expenses,27.95,0.00,27.95
Resources - C A C,Storm Arwen Emergency Costs,069002,Storm Arwen Emergency Costs,Supplies and Services,384999,Miscellaneous Expenses,04-Dec-2021,000007817873932,Amazon.co.uk ZF2338FV5,5969,Other expenses,27.95,0.00,27.95
Resources - C A C,Storm Arwen Emergency Costs,069002,Storm Arwen Emergency Costs,Supplies and Services,384999,Miscellaneous Expenses,04-Dec-2021,000007817873934,Amazon.co.uk 1L3ZD6HB5,5969,Other expenses,27.95,0.00,27.95
Resources - C A C,Storm Arwen Emergency Costs,069002,Storm Arwen Emergency Costs,Supplies and Services,384999,Miscellaneous Expenses,04-Dec-2021,000007817873936,Amazon.co.uk 1M9NI33Q5,5969,Other expenses,27.95,0.00,27.95
Resources - C A C,Storm Arwen Emergency Costs,069002,Storm Arwen Emergency Costs,Supplies and Services,384999,Miscellaneous Expenses,04-Dec-2021,000007817873938,Amazon.co.uk 2C0A59PJ5,5969,Other expenses,27.95,0.00,27.95
Resources - C A C,Storm Arwen Emergency Costs,069002,Storm Arwen Emergency Costs,Supplies and Services,384999,Miscellaneous Expenses,04-Dec-2021,000007817873940,Amazon.co.uk 3K9K15RV5,5969,Other expenses,27.95,0.00,27.95
Resources - C A C,Storm Arwen Emergency Costs,069002,Storm Arwen Emergency Costs,Supplies and Services,384999,Miscellaneous Expenses,04-Dec-2021,000007817873942,Amazon.co.uk 5024Z3TS5,5969,Other expenses,27.95,0.00,27.95
Resources - C A C,Storm Arwen Emergency Costs,069002,Storm Arwen Emergency Costs,Supplies and Services,384999,Miscellaneous Expenses,04-Dec-2021,000007817873944,Amazon.co.uk 631NG19B5,5969,Other expenses,27.95,0.00,27.95
Resources - C A C,Storm Arwen Emergency Costs,069002,Storm Arwen Emergency Costs,Supplies and Services,384999,Miscellaneous Expenses,04-Dec-2021,000007817873946,Amazon.co.uk 8J6S578D5,5969,Other expenses,27.95,0.00,27.95
Resources - C A C,Storm Arwen Emergency Costs,069002,Storm Arwen Emergency Costs,Supplies and Services,304403,Equipment and Materials,04-Dec-2021,000007817873948,AMZNMktplace,5999,Other consumables,45.99,0.00,45.99
Resources - C A C,Storm Arwen Emergency Costs,069002,Storm Arwen Emergency Costs,Supplies and Services,304403,Equipment and Materials,04-Dec-2021,000007817873958,AMZNMKTPLACE AMAZON.CO,5999,Other consumables,45.99,0.00,45.99
Resources - C A C,Storm Arwen Emergency Costs,069002,Storm Arwen Emergency Costs,Supplies and Services,304403,Equipment and Materials,04-Dec-2021,000007817873960,AMZNMKTPLACE AMAZON.CO,5999,Other consumables,45.99,0.00,45.99
Resources - C A C,Storm Arwen Emergency Costs,069002,Storm Arwen Emergency Costs,Supplies and Services,304403,Equipment and Materials,04-Dec-2021,000007817873962,AMZNMKTPLACE AMAZON.CO,5999,Other consumables,45.99,0.00,45.99
Resources - C A C,Storm Arwen Emergency Costs,069002,Storm Arwen Emergency Costs,Supplies and Services,304403,Equipment and Materials,04-Dec-2021,000007817873964,AMZNMKTPLACE AMAZON.CO,5999,Other consumables,45.99,0.00,45.99
Children and Young Peoples Services,Head of Childrens Social Care,085333,Coxhoe Satelite Home,Supplies and Services,384999,Miscellaneous Expenses,04-Dec-2021,000007817874046,BODYCARE,5977,Other expenses,4.48,0.00,4.48
Children and Young Peoples Services,Head of Childrens Social Care,085333,Coxhoe Satelite Home,Supplies and Services,324117,Provisions E324,04-Dec-2021,000007817874048,B&M 681 - DURHAM,5399,Catering costs - provisions,4.00,0.00,4.00
Children and Young Peoples Services,Head of Childrens Social Care,085333,Coxhoe Satelite Home,Supplies and Services,304999,Equipment and Materials,04-Dec-2021,000007817874050,HOME BARGAINS,5251,Misc equipment tools and materials,1.98,0.00,1.98
Children and Young Peoples Services,Head of Childrens Social Care,085333,Coxhoe Satelite Home,Supplies and Services,304999,Equipment and Materials,04-Dec-2021,000007817874052,HOME BARGAINS,5251,Misc equipment tools and materials,8.86,0.00,8.86
Children and Young Peoples Services,Head of Childrens Social Care,085333,Coxhoe Satelite Home,Supplies and Services,348037,Subsistence E348,04-Dec-2021,000007817874054,GREGGS,5812,Subsistence,4.50,0.00,4.50
Children and Young Peoples Services,Head of Childrens Social Care,085333,Coxhoe Satelite Home,Supplies and Services,328041,Clothing uniforms and laundry E328,04-Dec-2021,000007817874056,PRIMARK 670 GATESHEAD,5651,Clothing uniforms and laundry,61.00,0.00,61.00
Children and Young Peoples Services,Head of Childrens Social Care,085333,Coxhoe Satelite Home,Supplies and Services,324117,Provisions E324,04-Dec-2021,000007817874058,PPOINT_ COSTCUTTER 108,5499,Catering costs - provisions,2.09,0.00,2.09
Children and Young Peoples Services,Head of Education and Skills,071801,Selby Cottage Childcare Centre,Supplies and Services,304403,Equipment and Materials,05-Dec-2021,000007817872856,AMZNMktplace,5999,Other consumables,47.99,8.00,39.99
Dedicated Schools Grant BG0015,DSG Schools Block,417631,Greenfield Community College 004176 - Time 4 Success,Supplies and Services,304403,Equipment and Materials,05-Dec-2021,000007817872902,AMZNMktplace,5999,Other consumables,99.90,16.70,83.20
Children and Young Peoples Services,Head of Childrens Social Care,085341,High Etherley Satelite Home,Supplies and Services,332047,Printing Stationery and Gen Off Exps,05-Dec-2021,000007817872938,SP HAPPYSELF JOURNAL,5943,Stationery,26.39,0.00,26.39
Regeneration Economy and Growth,Culture Sport and Tourism,054820,Gala Theatre - Overheads,Supplies and Services,304252,Equipment and Materials,05-Dec-2021,000007817872954,AMZNMktplace,5999,Equipment-repairsserviceinsurance,99.95,16.66,83.29
Regeneration Economy and Growth,Culture Sport and Tourism,054106,Pelton Library 054106,Supplies and Services,304252,Equipment and Materials,05-Dec-2021,000007817872956,Amazon.co.uk UE4QI5QF5,5969,Equipment-repairsserviceinsurance,5.59,0.93,4.66
Regeneration Economy and Growth,Culture Sport and Tourism,030705,Visit County Durham 030705,Supplies and Services,342033,Computers and Communications,05-Dec-2021,000007817872960,FASTHOSTS INTERNET,4816,Computer hardware,39.47,6.58,32.89
Children and Young Peoples Services,Head of Childrens Social Care,085342,16 Hickstead Rise (previously 9 Cedar Ave),Supplies and Services,324117,Provisions E324,05-Dec-2021,000007817872978,TESCO STORES 2371,5411,Catering costs - provisions,44.67,0.00,44.67
Children and Young Peoples Services,Head of Childrens Social Care,085334,West Rainton Satelite Home,Supplies and Services,324117,Provisions E324,05-Dec-2021,000007817872988,TESCO STORES 2371,5411,Catering costs - provisions,34.88,0.00,34.88
Children and Young Peoples Services,Head of Childrens Social Care,085334,West Rainton Satelite Home,Supplies and Services,342033,Computers and Communications,05-Dec-2021,000007817872990,VERY,5964,Computer hardware,102.99,0.00,102.99
Children and Young Peoples Services,Head of Childrens Social Care,085334,West Rainton Satelite Home,Supplies and Services,384237,Miscellaneous Expenses,05-Dec-2021,000007817872992,FUN SHACK GATESHEAD ON,7999,Recreational exps outings parties,26.00,0.00,26.00
Regeneration Economy and Growth,Corporate Property and Land,021242,Catering - County Hall,Supplies and Services,304403,Equipment and Materials,05-Dec-2021,000007817873128,AMZNMktplace,5999,Other consumables,8.49,1.42,7.07
Regeneration Economy and Growth,Corporate Property and Land,021242,Catering - County Hall,Supplies and Services,304403,Equipment and Materials,05-Dec-2021,000007817873130,AMZNMKTPLACE AMAZON.CO,5999,Other consumables,8.24,1.37,6.87
Regeneration Economy and Growth,Corporate Property and Land,021242,Catering - County Hall,Supplies and Services,384999,Miscellaneous Expenses,05-Dec-2021,000007817873132,Amazon.co.uk XN4WL06H5,5969,Other expenses,2.39,0.40,1.99
Regeneration Economy and Growth,Corporate Property and Land,021242,Catering - County Hall,Supplies and Services,304403,Equipment and Materials,05-Dec-2021,000007817873134,AMZNMKTPLACE AMAZON.CO,5999,Other consumables,3.98,0.66,3.32
Children and Young Peoples Services,Head of Childrens Social Care,085342,16 Hickstead Rise (previously 9 Cedar Ave),Transport,235057,Public Transport,05-Dec-2021,000007817873196,ARRIVA DURHAM COUNTY L,4131,Staff travelling,6.10,0.00,6.10
Children and Young Peoples Services,Head of Childrens Social Care,085342,16 Hickstead Rise (previously 9 Cedar Ave),Supplies and Services,384999,Miscellaneous Expenses,05-Dec-2021,000007817873198,BODYCARE,5977,Other expenses,22.18,0.00,22.18
Children and Young Peoples Services,Head of Childrens Social Care,085342,16 Hickstead Rise (previously 9 Cedar Ave),Supplies and Services,348037,Subsistence E348,05-Dec-2021,000007817873200,SumUp Crown Buttery,5812,Subsistence,14.80,0.00,14.80
Children and Young Peoples Services,Head of Education and Skills,071732,Dean Bank Childcare,Supplies and Services,304403,Equipment and Materials,05-Dec-2021,000007817873254,AMZNMktplace,5999,Other consumables,"1,010.54",0.00,1010.54
Regeneration Economy and Growth,Culture Sport and Tourism,054966,Gala Theatre - Gala Productions,Supplies and Services,338047,Services,05-Dec-2021,000007817873282,Amazon.co.uk OK7T69BF5,5969,Direct production costs,20.00,0.00,20.00
Children and Young Peoples Services,Head of Early Help Inclusion & Vulnerable Children.,085954,Walworth,Supplies and Services,324117,Provisions E324,05-Dec-2021,000007817873338,TESCO STORES 6329,5411,Catering costs - provisions,67.25,0.00,67.25
Neighbourhoods and Climate Change,Environmental Services,031238,North Pennines - Tees Swale,Supplies and Services,304403,Equipment and Materials,05-Dec-2021,000007817873364,AMZNMktplace,5999,Other consumables,6.99,1.17,5.82
Children and Young Peoples Services,Head of Childrens Social Care,085621,Families First Aycliffe,Supplies and Services,304403,Equipment and Materials,05-Dec-2021,000007817873386,AMZNMktplace,5999,Other consumables,14.99,2.50,12.49
Children and Young Peoples Services,Head of Childrens Social Care,085621,Families First Aycliffe,Supplies and Services,304403,Equipment and Materials,05-Dec-2021,000007817873388,AMZNMktplace,5999,Other consumables,27.98,4.66,23.32
Children and Young Peoples Services,Head of Childrens Social Care,085621,Families First Aycliffe,Supplies and Services,304403,Equipment and Materials,05-Dec-2021,000007817873390,AMZNMktplace,5999,Other consumables,37.92,6.32,31.60
Children and Young Peoples Services,Head of Childrens Social Care,085621,Families First Aycliffe,Supplies and Services,304403,Equipment and Materials,05-Dec-2021,000007817873390 - 1,AMZNMktplace,5999,Other consumables,0.04,,0.04
Children and Young Peoples Services,Head of Childrens Social Care,085621,Families First Aycliffe,Supplies and Services,304403,Equipment and Materials,05-Dec-2021,000007817873392,AMZNMktplace,5999,Other consumables,35.88,5.98,29.90
Children and Young Peoples Services,Head of Childrens Social Care,085621,Families First Aycliffe,Supplies and Services,304403,Equipment and Materials,05-Dec-2021,000007817873392 - 1,AMZNMktplace,5999,Other consumables,0.04,,0.04
Children and Young Peoples Services,Head of Childrens Social Care,085621,Families First Aycliffe,Supplies and Services,304403,Equipment and Materials,05-Dec-2021,000007817873394,AMZNMktplace,5999,Other consumables,26.99,4.50,22.49
Resources BK0010,Procurement Sales & Business Services,069800,Corporate Procurement 069800,Supplies and Services,372009,Subscriptions E372,05-Dec-2021,000007817873498,Financial Times,5192,Subscriptions 372009,424.00,0.00,424.00
Children and Young Peoples Services,Head of Education and Skills,078554,Adult Skills-Main,Supplies and Services,384999,Miscellaneous Expenses,05-Dec-2021,000007817873590,Amazon.co.uk ZL2Q74575,5969,Other expenses,40.33,6.72,33.61
Resources BK0010,Digital and Customer Services,065335,School Services - Implementations,Supplies and Services,304639,Equipment and Materials,05-Dec-2021,000007817873662,AMZNMktplace,5999,Technicians-supplies,12.98,2.16,10.82
Resources BK0010,Digital and Customer Services,065335,School Services - Implementations,Supplies and Services,304639,Equipment and Materials,05-Dec-2021,000007817873664,AMZNMktplace,5999,Technicians-supplies,26.82,4.47,22.35
Resources BK0010,Digital and Customer Services,065335,School Services - Implementations,Supplies and Services,304639,Equipment and Materials,05-Dec-2021,000007817873664 - 1,AMZNMktplace,5999,Technicians-supplies,0.03,,0.03
Children and Young Peoples Services,Head of Childrens Social Care,085333,Coxhoe Satelite Home,Supplies and Services,328041,Clothing uniforms and laundry E328,05-Dec-2021,000007817873728,PRETTYLITTLETHING.COM,5691,Clothing uniforms and laundry,24.99,0.00,24.99
Children and Young Peoples Services,Head of Childrens Social Care,085333,Coxhoe Satelite Home,Supplies and Services,328041,Clothing uniforms and laundry E328,05-Dec-2021,000007817873730,VIKIBODY.COM,5691,Clothing uniforms and laundry,25.99,0.00,25.99
Children and Young Peoples Services,Head of Early Help Inclusion & Vulnerable Children.,088107,Wheatley Hill & N. Aycliffe Family Centre,Supplies and Services,384999,Miscellaneous Expenses,05-Dec-2021,000007817873808,Amazon.co.uk B69QS9MB5,5969,Other expenses,47.71,7.98,39.73
Children and Young Peoples Services,Head of Early Help Inclusion & Vulnerable Children.,088107,Wheatley Hill & N. Aycliffe Family Centre,Supplies and Services,384999,Miscellaneous Expenses,05-Dec-2021,000007817873810,Amazon.co.uk 5094E6AD5,5969,Other expenses,25.11,4.20,20.91
Resources - C A C,Storm Arwen Emergency Costs,069002,Storm Arwen Emergency Costs,Supplies and Services,304403,Equipment and Materials,05-Dec-2021,000007817873950,AMZNMktplace,5999,Other consumables,45.99,0.00,45.99
Resources - C A C,Storm Arwen Emergency Costs,069002,Storm Arwen Emergency Costs,Supplies and Services,304403,Equipment and Materials,05-Dec-2021,000007817873952,AMZNMktplace,5999,Other consumables,45.99,0.00,45.99
Resources - C A C,Storm Arwen Emergency Costs,069002,Storm Arwen Emergency Costs,Supplies and Services,304403,Equipment and Materials,05-Dec-2021,000007817873954,AMZNMktplace,5999,Other consumables,45.99,0.00,45.99
Regeneration Economy and Growth,Communications Management,060270,Communications and Marketing,Supplies and Services,336005,Advertising E336,05-Dec-2021,000007817873956,LINKEDIN IRELAND,7311,Advertising other than for staff,26.84,0.00,26.84
Resources - C A C,Storm Arwen Emergency Costs,069002,Storm Arwen Emergency Costs,Supplies and Services,384999,Miscellaneous Expenses,05-Dec-2021,000007817873966,Amazon.co.uk HS4U58125,5969,Other expenses,138.00,23.00,115.00
Resources - C A C,Storm Arwen Emergency Costs,069002,Storm Arwen Emergency Costs,Supplies and Services,384999,Miscellaneous Expenses,05-Dec-2021,000007817873966 - 1,Amazon.co.uk HS4U58125,5969,Other expenses,0.50,,0.50
Resources - C A C,Storm Arwen Emergency Costs,069002,Storm Arwen Emergency Costs,Supplies and Services,384999,Miscellaneous Expenses,05-Dec-2021,000007817873968,Amazon.co.uk 3R14E6BU5,5969,Other expenses,138.00,23.00,115.00
Resources - C A C,Storm Arwen Emergency Costs,069002,Storm Arwen Emergency Costs,Supplies and Services,384999,Miscellaneous Expenses,05-Dec-2021,000007817873968 - 1,Amazon.co.uk 3R14E6BU5,5969,Other expenses,0.50,,0.50
Adult and Health Services,Head of Adults,055309,Peterlee Pathways,Supplies and Services,304403,Equipment and Materials,05-Dec-2021,000007817873988,AMZNMktplace,5999,Other consumables,12.78,2.14,10.64
Adult and Health Services,Head of Adults,055309,Peterlee Pathways,Supplies and Services,304403,Equipment and Materials,05-Dec-2021,000007817873990,AMZNMktplace,5999,Other consumables,40.96,6.84,34.12
Regeneration Economy and Growth,Corporate Property and Land,030691,Catering - Durham Dales Centre,Supplies and Services,324117,Provisions E324,05-Dec-2021,000007817874070,ASDA STORES,5411,Catering costs - provisions,17.30,0.00,17.30
Children and Young Peoples Services,Head of Childrens Social Care,085341,High Etherley Satelite Home,Supplies and Services,328041,Clothing uniforms and laundry E328,05-Dec-2021,000007824723994,ARGOS LTD,5310,Clothing uniforms and laundry,31.00,0.00,31.00
Regeneration Economy and Growth,Culture Sport and Tourism,030705,Visit County Durham 030705,Supplies and Services,332047,Printing Stationery and Gen Off Exps,05-Dec-2021,000007824724040,AMZNMKTPLACE AMAZON.CO,5999,Stationery,24.79,4.13,20.66
Children and Young Peoples Services,Head of Childrens Social Care,085334,West Rainton Satelite Home,Supplies and Services,344033,Telephones,05-Dec-2021,000007824724082,O2 UK PAY & GO,4814,Telephones general-all costs,10.00,0.00,10.00
Children and Young Peoples Services,Head of Childrens Social Care,085334,West Rainton Satelite Home,Supplies and Services,304403,Equipment and Materials,05-Dec-2021,000007824724084,AMZNMKTPLACE AMAZON.CO,5999,Other consumables,39.99,0.00,39.99
Children and Young Peoples Services,Head of Childrens Social Care,085342,16 Hickstead Rise (previously 9 Cedar Ave),Supplies and Services,328041,Clothing uniforms and laundry E328,05-Dec-2021,000007824724266,PRIMARK,5651,Clothing uniforms and laundry,98.00,0.00,98.00
Children and Young Peoples Services,Head of Education and Skills,071732,Dean Bank Childcare,Supplies and Services,304403,Equipment and Materials,05-Dec-2021,000007824724278,AMZNMKTPLACE AMAZON.CO,5999,Other consumables,168.02,0.00,168.02
Regeneration Economy and Growth,Culture Sport and Tourism,054966,Gala Theatre - Gala Productions,Supplies and Services,338047,Services,05-Dec-2021,000007824724294,SCREWFIX DIRECT,5211,Direct production costs,21.99,0.00,21.99
Children and Young Peoples Services,Head of Childrens Social Care,085551,Short Break Services-Park Hse Sher,Supplies and Services,324117,Provisions E324,05-Dec-2021,000007824724484,ALDI 15 774,5411,Catering costs - provisions,4.58,0.00,4.58
Children and Young Peoples Services,Head of Childrens Social Care,085333,Coxhoe Satelite Home,Supplies and Services,324117,Provisions E324,05-Dec-2021,000007824724740,CO-OP GROUP 310016,5411,Catering costs - provisions,13.20,0.00,13.20
Children and Young Peoples Services,Head of Childrens Social Care,085341,High Etherley Satelite Home,Supplies and Services,304999,Equipment and Materials,05-Dec-2021,000007832690614,SNAPFISH UK,7395,Misc equipment tools and materials,14.29,0.00,14.29
Children and Young Peoples Services,Head of Childrens Social Care,085341,High Etherley Satelite Home,Supplies and Services,304999,Equipment and Materials,05-Dec-2021,000007837362738,SNAPFISH UK,7395,Misc equipment tools and materials,39.96,0.00,39.96
Children and Young Peoples Services,Head of Education and Skills,071801,Selby Cottage Childcare Centre,Supplies and Services,304403,Equipment and Materials,06-Dec-2021,000007817872858,AMZNMktplace,5999,Other consumables,61.99,10.33,51.66
Adult and Health Services,Head of Adults,055309,Peterlee Pathways,Supplies and Services,304403,Equipment and Materials,06-Dec-2021,000007817873992,AMZNMktplace,5999,Other consumables,31.98,5.34,26.64
Regeneration Economy and Growth,Business Durham CL0850,030689,Inward Investment and Aftercare,Supplies and Services,342033,Computers and Communications,06-Dec-2021,000007824723888,STK Shutterstock,7333,Computer hardware,19.00,0.00,19.00
Regeneration Economy and Growth,Business Durham CL0850,030689,Inward Investment and Aftercare,Supplies and Services,304999,Equipment and Materials,06-Dec-2021,000007824723892,TSOHOST,5968,Misc equipment tools and materials,45.42,0.00,45.42
Children and Young Peoples Services,Head of Education and Skills,071801,Selby Cottage Childcare Centre,Supplies and Services,324117,Provisions E324,06-Dec-2021,000007824723904,ONE STOP 3026,5411,Catering costs - provisions,13.16,0.00,13.16
Resources BK0010,Digital and Customer Services,065329,Operations - Primary Support,Supplies and Services,304259,Equipment and Materials,06-Dec-2021,000007824723930,CURRYS ONLINE,5732,Equipment-purchase and rental,283.00,0.00,283.00
Dedicated Schools Grant BG0015,DSG Schools Block,417616,Greenfield Community College 004176 - Art Centre,Supplies and Services,304403,Equipment and Materials,06-Dec-2021,000007824723952,AMZNMKTPLACE AMAZON.CO,5999,Other consumables,29.99,5.00,24.99
Dedicated Schools Grant BG0015,DSG Schools Block,417607,Greenfield Community College 004176 - Performing Arts,Supplies and Services,312075,Newspapers books and periodicals E312,06-Dec-2021,000007824723958,Amazon.co.uk I49KN36V5,5969,Text books,17.53,0.00,17.53
Dedicated Schools Grant BG0015,DSG Schools Block,417623,Greenfield Community College 004176 - Comm Arts Projects,Supplies and Services,348037,Subsistence E348,06-Dec-2021,000007824723962,The Bay Horse,5813,Subsistence,259.35,0.00,259.35
Regeneration Economy and Growth,Development and Housing,031500,Housing Solutions - Core,Transport,235057,Public Transport,06-Dec-2021,000007824723968,Trainline.COM,4112,Staff travelling,135.55,0.00,135.55
Children and Young Peoples Services,Head of Childrens Social Care,085501,Child Care Cases Legal Expenses,Supplies and Services,304403,Equipment and Materials,06-Dec-2021,000007824724002,MILTON KEYNES COUNCIL,9399,Other consumables,11.00,0.00,11.00
Children and Young Peoples Services,Head of Childrens Social Care,085501,Child Care Cases Legal Expenses,Supplies and Services,304403,Equipment and Materials,06-Dec-2021,000007824724004,SUNDERLAND CC,7523,Other consumables,11.00,0.00,11.00
Children and Young Peoples Services,Head of Childrens Social Care,085501,Child Care Cases Legal Expenses,Supplies and Services,304403,Equipment and Materials,06-Dec-2021,000007824724008,GEN REGISTER OFFICE,9399,Other consumables,11.00,0.00,11.00
Children and Young Peoples Services,Head of Childrens Social Care,085501,Child Care Cases Legal Expenses,Supplies and Services,304403,Equipment and Materials,06-Dec-2021,000007824724012,GEN REGISTER OFFICE,9399,Other consumables,11.00,0.00,11.00
Children and Young Peoples Services,Head of Childrens Social Care,085501,Child Care Cases Legal Expenses,Supplies and Services,304403,Equipment and Materials,06-Dec-2021,000007824724018,GEN REGISTER OFFICE,9399,Other consumables,11.00,0.00,11.00
Children and Young Peoples Services,Head of Childrens Social Care,085501,Child Care Cases Legal Expenses,Supplies and Services,304403,Equipment and Materials,06-Dec-2021,000007824724020,GEN REGISTER OFFICE,9399,Other consumables,11.00,0.00,11.00
Children and Young Peoples Services,Head of Education and Skills,078411,16-19 Education & Training,Supplies and Services,340001,Postages E340,06-Dec-2021,000007824724026,POST OFFICE COUNTER,9402,Postages,3.79,0.00,3.79
Neighbourhoods and Climate Change,Environmental Services,010383,C&G - South Street Cleansing,Supplies and Services,304221,Equipment and Materials,06-Dec-2021,000007824724030,CARRS BILLINGTON SPENN,5599,Direct materials,89.15,0.00,89.15
Neighbourhoods and Climate Change,Environmental Services,010383,C&G - South Street Cleansing,Supplies and Services,328041,Clothing uniforms and laundry E328,06-Dec-2021,000007824724034,THOMAS OWEN & SONS /N/,5611,Clothing uniforms and laundry,114.79,0.00,114.79
Children and Young Peoples Services,Head of Childrens Social Care,085332,Middlestone Moor CU,Supplies and Services,324117,Provisions E324,06-Dec-2021,000007824724060,TESCO STORES 2371,5411,Catering costs - provisions,43.85,0.00,43.85
Resources - C A C,Storm Arwen Emergency Costs,069002,Storm Arwen Emergency Costs,Supplies and Services,364320,Grants to Voluntary Organisations,06-Dec-2021,000007824724114,THE HIGHFIELD HOTEL,7011,Accommodation assistance,330.44,0.00,330.44
Resources - C A C,Storm Arwen Emergency Costs,069002,Storm Arwen Emergency Costs,Supplies and Services,364320,Grants to Voluntary Organisations,06-Dec-2021,000007824724116,THE HIGHFIELD HOTEL,7011,Accommodation assistance,602.62,0.00,602.62
Children and Young Peoples Services,Head of Childrens Social Care,085331,New Lea Childrens Home,Supplies and Services,304999,Equipment and Materials,06-Dec-2021,000007824724166,COURSRA 7UWYJ6LS0T3ZHA,8244,Misc equipment tools and materials,39.00,0.00,39.00
Regeneration Economy and Growth,Culture Sport and Tourism,054233,Bishop Auckland Town Hall Library,Supplies and Services,324117,Provisions E324,06-Dec-2021,000007824724192,ASDA STORES,5411,Catering costs - provisions,31.66,0.00,31.66
Children and Young Peoples Services,Head of Early Help Inclusion & Vulnerable Children.,085956,Lumley,Supplies and Services,328041,Clothing uniforms and laundry E328,06-Dec-2021,000007824724204,PRETTYLITTLETHING.COM,5691,Clothing uniforms and laundry,86.50,0.00,86.50
Children and Young Peoples Services,Head of Early Help Inclusion & Vulnerable Children.,085952,Secure Education,Supplies and Services,324117,Provisions E324,06-Dec-2021,000007824724206,TESCO STORES 6329,5411,Catering costs - provisions,123.11,0.00,123.11
Children and Young Peoples Services,Head of Early Help Inclusion & Vulnerable Children.,074000,National Supporting Families Programme,Transfer Payments,525033,Other,06-Dec-2021,000007824724248,FRANKS THE FLOORING ST,5713,Grants to individuals,207.00,0.00,207.00
Children and Young Peoples Services,Head of Education and Skills,071732,Dean Bank Childcare,Supplies and Services,324117,Provisions E324,06-Dec-2021,000007824724280,ASDA GROCERIES ONLINE,5411,Catering costs - provisions,74.51,0.00,74.51
Children and Young Peoples Services,Head of Education and Skills,071732,Dean Bank Childcare,Supplies and Services,324117,Provisions E324,06-Dec-2021,000007824724284,ASDA SUPERSTORE 4987,5411,Catering costs - provisions,158.27,0.00,158.27
Children and Young Peoples Services,Head of Education and Skills,071732,Dean Bank Childcare,Supplies and Services,324117,Provisions E324,06-Dec-2021,000007824724286,TESCO STORES 2916,5411,Catering costs - provisions,110.94,0.00,110.94
Children and Young Peoples Services,Head of Education and Skills,071732,Dean Bank Childcare,Supplies and Services,324117,Provisions E324,06-Dec-2021,000007824724288,ASDA GROCERIES ONLINE,5411,Catering costs - provisions,-0.22,0.00,-0.22
Regeneration Economy and Growth,Culture Sport and Tourism,054966,Gala Theatre - Gala Productions,Supplies and Services,338047,Services,06-Dec-2021,000007824724300,AMZNMktplace,5999,Direct production costs,19.98,0.00,19.98
Neighbourhoods and Climate Change,Environmental Services,011060,C&G - Hardwick Park Catering,Supplies and Services,304083,Equipment and Materials,06-Dec-2021,000007824724310,AMZNMktplace,5999,Catering equipment,35.24,5.88,29.36
Children and Young Peoples Services,Head of Early Help Inclusion & Vulnerable Children.,085962,Aycliffe Secure - Durham,Supplies and Services,304403,Equipment and Materials,06-Dec-2021,000007824724316,AMZNMktplace,5999,Other consumables,6.99,1.17,5.82
Children and Young Peoples Services,Head of Early Help Inclusion & Vulnerable Children.,085962,Aycliffe Secure - Durham,Supplies and Services,304403,Equipment and Materials,06-Dec-2021,000007824724320,AMZNMktplace,5999,Other consumables,47.94,7.99,39.95
Children and Young Peoples Services,Head of Early Help Inclusion & Vulnerable Children.,085962,Aycliffe Secure - Durham,Supplies and Services,304403,Equipment and Materials,06-Dec-2021,000007824724320 - 1,AMZNMktplace,5999,Other consumables,0.03,,0.03
Regeneration Economy and Growth,Development and Housing,031623,Rough Sleeping,Transport,235057,Public Transport,06-Dec-2021,000007824724366,Blueline Group 6019105,4121,Staff travelling,12.20,0.00,12.20
Regeneration Economy and Growth,Development and Housing,030771,Durham Advance Flexible Fund,Transport,235057,Public Transport,06-Dec-2021,000007824724376,WWW.GONORTHEAST.CO.UK,4111,Staff travelling,34.00,0.00,34.00
Neighbourhoods and Climate Change,Environmental Services,010367,C&G - South Grounds Maintenance,Supplies and Services,304221,Equipment and Materials,06-Dec-2021,000007824724410,CARRS BILLINGTON SPENN,5599,Direct materials,104.71,0.00,104.71
Children and Young Peoples Services,Head of Childrens Social Care,085621,Families First Aycliffe,Supplies and Services,304403,Equipment and Materials,06-Dec-2021,000007824724444,AMZNMktplace,5999,Other consumables,43.63,7.27,36.36
Children and Young Peoples Services,Head of Childrens Social Care,085352,New Childrens Home (previously Tow Law),Supplies and Services,304403,Equipment and Materials,06-Dec-2021,000007824724490,AMZNMktplace,5999,Other consumables,21.99,3.67,18.32
Children and Young Peoples Services,Head of Early Help Inclusion & Vulnerable Children.,088109,Dean Bank and Tudhoe Family Centre,Supplies and Services,304259,Equipment and Materials,06-Dec-2021,000007824724500,ASDA GEORGE COM LEEDS,5411,Equipment-purchase and rental,79.00,0.00,79.00
Children and Young Peoples Services,Head of Childrens Social Care,085331,New Lea Childrens Home,Supplies and Services,304403,Equipment and Materials,06-Dec-2021,000007824724510,AMZNMktplace,5999,Other consumables,93.13,0.00,93.13
Children and Young Peoples Services,Head of Childrens Social Care,085331,New Lea Childrens Home,Supplies and Services,348037,Subsistence E348,06-Dec-2021,000007824724516,THE BAY HORSE (MIDDRID,5813,Subsistence,120.00,0.00,120.00
Children and Young Peoples Services,Head of Childrens Social Care,085331,New Lea Childrens Home,Supplies and Services,324117,Provisions E324,06-Dec-2021,000007824724524,TESCO STORES 6329,5411,Catering costs - provisions,50.00,0.00,50.00
Children and Young Peoples Services,Head of Childrens Social Care,085341,High Etherley Satelite Home,Supplies and Services,304403,Equipment and Materials,06-Dec-2021,000007824724526,AMZNMktplace,5999,Other consumables,77.00,12.83,64.17
Children and Young Peoples Services,Head of Education and Skills,071732,Dean Bank Childcare,Supplies and Services,324117,Provisions E324,06-Dec-2021,000007824724566,ASDA GROCERIES ONLINE,5411,Catering costs - provisions,71.22,0.00,71.22
Children and Young Peoples Services,Head of Education and Skills,071732,Dean Bank Childcare,Supplies and Services,324117,Provisions E324,06-Dec-2021,000007824724568,ASDA GROCERIES ONLINE,5411,Catering costs - provisions,-0.05,0.00,-0.05
Children and Young Peoples Services,Head of Childrens Social Care,085334,West Rainton Satelite Home,Supplies and Services,348037,Subsistence E348,06-Dec-2021,000007824724624,SANTINNI,5812,Subsistence,66.95,0.00,66.95
Children and Young Peoples Services,Head of Childrens Social Care,085334,West Rainton Satelite Home,Supplies and Services,324117,Provisions E324,06-Dec-2021,000007824724626,B&M 681 - DURHAM,5399,Catering costs - provisions,34.27,0.00,34.27
Children and Young Peoples Services,Head of Childrens Social Care,085334,West Rainton Satelite Home,Supplies and Services,324117,Provisions E324,06-Dec-2021,000007824724630,TESCO STORES 2371,5411,Catering costs - provisions,60.03,0.00,60.03
Children and Young Peoples Services,Head of Early Help Inclusion & Vulnerable Children.,071492,One Point - Central,Supplies and Services,342033,Computers and Communications,06-Dec-2021,000007824724652,FREEPIK & FLATICON,7333,Computer hardware,64.62,0.00,64.62
Resources BK0010,Procurement Sales & Business Services,065503,Business Support - Spectrum,Supplies and Services,324117,Provisions E324,06-Dec-2021,000007824724680,ASDA STORES LTD,5411,Catering costs - provisions,118.64,0.00,118.64
Resources BK0010,Procurement Sales & Business Services,065503,Business Support - Spectrum,Supplies and Services,304259,Equipment and Materials,06-Dec-2021,000007824724682,CURRYS ONLINE,5732,Equipment-purchase and rental,319.99,0.00,319.99
Regeneration Economy and Growth,Development and Housing,031576,B& B - Temp Accom,Supplies and Services,364320,Grants to Voluntary Organisations,06-Dec-2021,000007824724722,CROXDALE INN,5812,Accommodation assistance,500.00,0.00,500.00
Regeneration Economy and Growth,Development and Housing,031576,B& B - Temp Accom,Supplies and Services,364320,Grants to Voluntary Organisations,06-Dec-2021,000007824724726,CROXDALE INN,5812,Accommodation assistance,315.50,0.00,315.50
Children and Young Peoples Services,Head of Childrens Social Care,085351,Framwellgate Moor CU,Supplies and Services,328041,Clothing uniforms and laundry E328,06-Dec-2021,000007824724768,EBAY COMMERCE UK LTD,5311,Clothing uniforms and laundry,6.80,0.00,6.80
Children and Young Peoples Services,Head of Childrens Social Care,085333,Coxhoe Satelite Home,Supplies and Services,348037,Subsistence E348,06-Dec-2021,000007824724774,COSTA COFFEE 43035195,5814,Subsistence,21.05,0.00,21.05
Children and Young Peoples Services,Head of Childrens Social Care,085333,Coxhoe Satelite Home,Supplies and Services,304999,Equipment and Materials,06-Dec-2021,000007824724778,HOME BARGAINS,5251,Misc equipment tools and materials,75.80,0.00,75.80
Children and Young Peoples Services,Head of Childrens Social Care,085333,Coxhoe Satelite Home,Supplies and Services,304999,Equipment and Materials,06-Dec-2021,000007824724784,HOME BARGAINS,5251,Misc equipment tools and materials,9.99,0.00,9.99
Children and Young Peoples Services,Head of Childrens Social Care,085333,Coxhoe Satelite Home,Supplies and Services,324117,Provisions E324,06-Dec-2021,000007824724786,MARKS&SPENCER PLC SF,5411,Catering costs - provisions,5.00,0.00,5.00
Children and Young Peoples Services,Head of Education and Skills,071802,Louisa Cent Nursery,Supplies and Services,324117,Provisions E324,06-Dec-2021,000007824724790,ASDA SUPERSTORE,5411,Catering costs - provisions,4.79,0.00,4.79
Children and Young Peoples Services,Head of Early Help Inclusion & Vulnerable Children.,088107,Wheatley Hill & N. Aycliffe Family Centre,Supplies and Services,324117,Provisions E324,06-Dec-2021,000007824724814,ASDA GROCERIES ONLINE,5411,Catering costs - provisions,146.37,0.00,146.37
Children and Young Peoples Services,Head of Early Help Inclusion & Vulnerable Children.,088107,Wheatley Hill & N. Aycliffe Family Centre,Supplies and Services,324117,Provisions E324,06-Dec-2021,000007824724818,ASDA GROCERIES ONLINE,5411,Catering costs - provisions,-3.00,0.00,-3.00
Regeneration Economy and Growth,Culture Sport and Tourism,054233,Bishop Auckland Town Hall Library,Supplies and Services,324117,Provisions E324,06-Dec-2021,000007824724830,HERON FOODS,5411,Catering costs - provisions,7.63,0.00,7.63
Children and Young Peoples Services,Head of Childrens Social Care,085331,New Lea Childrens Home,Supplies and Services,324117,Provisions E324,06-Dec-2021,000007824724876,ASDA GROCERIES ONLINE,5411,Catering costs - provisions,158.16,0.00,158.16
Children and Young Peoples Services,Head of Childrens Social Care,085334,West Rainton Satelite Home,Supplies and Services,384237,Miscellaneous Expenses,06-Dec-2021,000007824724878,HTTPS://WWW.JUMPGIANTS,7999,Recreational exps outings parties,22.75,0.00,22.75
Children and Young Peoples Services,Head of Childrens Social Care,085334,West Rainton Satelite Home,Supplies and Services,304403,Equipment and Materials,06-Dec-2021,000007824724882,AMZNMKTPLACE AMAZON.CO,5999,Other consumables,145.99,0.00,145.99
Children and Young Peoples Services,Head of Early Help Inclusion & Vulnerable Children.,088101,Bullion Lane & Brandon Family Centre,Supplies and Services,324117,Provisions E324,06-Dec-2021,000007824725018,WILKO.COM,5399,Catering costs - provisions,75.00,0.00,75.00
Regeneration Economy and Growth,Corporate Property and Land,010525,Catering - Green Lane,Supplies and Services,324117,Provisions E324,06-Dec-2021,000007824803954,JR HOLLAND FOODSERVICE,5499,Catering costs - provisions,39.05,0.00,39.05
Regeneration Economy and Growth,Culture Sport and Tourism,054235,Bishop Auckland Town Hall Cafe,Supplies and Services,324117,Provisions E324,06-Dec-2021,000007824803958,JR HOLLAND FOODSERVICE,5499,Catering costs - provisions,577.91,0.00,577.91
Adult and Health Services,Head of Adults,055643,Hawthorn House LD Respite Unit,Supplies and Services,324117,Provisions E324,06-Dec-2021,000007824803960,JR HOLLAND FOODSERVICE,5499,Catering costs - provisions,18.90,0.00,18.90
Regeneration Economy and Growth,Corporate Property and Land,021242,Catering - County Hall,Supplies and Services,324117,Provisions E324,06-Dec-2021,000007824803964,JR HOLLAND FOODSERVICE,5499,Catering costs - provisions,57.59,0.00,57.59
Regeneration Economy and Growth,Culture Sport and Tourism,011219,Office Services 011219,Supplies and Services,332047,Printing Stationery and Gen Off Exps,06-Dec-2021,000007828317230,WWW.NEOPOST.CO.UK,5111,Stationery,400.00,0.00,400.00
Adult and Health Services,Head of Adults,055643,Hawthorn House LD Respite Unit,Supplies and Services,324117,Provisions E324,06-Dec-2021,000007828317244,SAINSBURYS S/MKTS,5411,Catering costs - provisions,22.15,0.00,22.15
Children and Young Peoples Services,Head of Childrens Social Care,085342,16 Hickstead Rise (previously 9 Cedar Ave),Supplies and Services,324117,Provisions E324,06-Dec-2021,000007828317282,SAINSBURYS S/MKTS,5411,Catering costs - provisions,17.40,0.00,17.40
Regeneration Economy and Growth,Development and Housing,030776,LINKCD Flexible Fund,Supplies and Services,304259,Equipment and Materials,06-Dec-2021,000007828317402,Durham County CNCL,9399,Equipment-purchase and rental,22.00,0.00,22.00
Children and Young Peoples Services,Head of Early Help Inclusion & Vulnerable Children.,085954,Walworth,Supplies and Services,304259,Equipment and Materials,06-Dec-2021,000007828317484,JD SPORTS INTERNET,5941,Equipment-purchase and rental,58.99,0.00,58.99
Children and Young Peoples Services,Head of Childrens Social Care,085361,LAC & Permanence Team 1,Supplies and Services,338045,Services,06-Dec-2021,000007828317494,WWW.DURHAM.GOV.UK,9399,Legal expenses 338045,11.00,0.00,11.00
Children and Young Peoples Services,Head of Education and Skills,071732,Dean Bank Childcare,Supplies and Services,328041,Clothing uniforms and laundry E328,06-Dec-2021,000007828317582,WWW.THEWORKS.CO.UK,5310,Clothing uniforms and laundry,"1,829.50",0.00,1829.50
Children and Young Peoples Services,Head of Early Help Inclusion & Vulnerable Children.,071445,Chester le Street One Point Hub,Supplies and Services,384999,Miscellaneous Expenses,06-Dec-2021,000007828317674,WWW.BEAMISH.ORG.UK,7922,Other expenses,289.50,0.00,289.50
Children and Young Peoples Services,Head of Childrens Social Care,085331,New Lea Childrens Home,Supplies and Services,328041,Clothing uniforms and laundry E328,06-Dec-2021,000007828317784,ARGOS LTD,5310,Clothing uniforms and laundry,99.99,0.00,99.99
Neighbourhoods and Climate Change,Environmental Services,019100,Fleet - Strategic Fleet,Supplies and Services,304403,Equipment and Materials,06-Dec-2021,000007828317810,AMZNMKTPLACE AMAZON.CO,5999,Other consumables,38.07,0.00,38.07
Neighbourhoods and Climate Change,Environmental Services,019100,Fleet - Strategic Fleet,Supplies and Services,304403,Equipment and Materials,06-Dec-2021,000007828317814,AMZNMKTPLACE AMAZON.CO,5999,Other consumables,38.97,0.00,38.97
Neighbourhoods and Climate Change,Environmental Services,019100,Fleet - Strategic Fleet,Supplies and Services,304403,Equipment and Materials,06-Dec-2021,000007828317818,AMZNMKTPLACE AMAZON.CO,5999,Other consumables,25.98,0.00,25.98
Children and Young Peoples Services,Head of Childrens Social Care,085351,Framwellgate Moor CU,Supplies and Services,324117,Provisions E324,06-Dec-2021,000007828317870,SAINSBURY`S S/MKT,5411,Catering costs - provisions,12.25,0.00,12.25
Children and Young Peoples Services,Head of Childrens Social Care,085351,Framwellgate Moor CU,Supplies and Services,324117,Provisions E324,06-Dec-2021,000007828317872,SAINSBURY`S S/MKT,5411,Catering costs - provisions,28.00,0.00,28.00
Children and Young Peoples Services,Head of Childrens Social Care,085351,Framwellgate Moor CU,Supplies and Services,324117,Provisions E324,06-Dec-2021,000007828317874,SAINSBURY`S S/MKT,5411,Catering costs - provisions,62.73,0.00,62.73
Resources BK0010,Procurement Sales & Business Services,065503,Business Support - Spectrum,Supplies and Services,304221,Equipment and Materials,06-Dec-2021,000007828318050,B&Q LTD,5211,Direct materials,172.00,0.00,172.00
Children and Young Peoples Services,Head of Childrens Social Care,085333,Coxhoe Satelite Home,Supplies and Services,324117,Provisions E324,06-Dec-2021,000007828318132,SAINSBURYS S/MKTS,5411,Catering costs - provisions,72.00,0.00,72.00
Children and Young Peoples Services,Head of Childrens Social Care,085352,New Childrens Home (previously Tow Law),Supplies and Services,304221,Equipment and Materials,06-Dec-2021,000007828318212,B & Q 1203,5200,Direct materials,2.50,0.00,2.50
Children and Young Peoples Services,Head of Childrens Social Care,085334,West Rainton Satelite Home,Supplies and Services,384237,Miscellaneous Expenses,06-Dec-2021,000007828318238,JUMP GIANTS NEWCASTLE,7999,Recreational exps outings parties,8.10,0.00,8.10
Children and Young Peoples Services,Head of Childrens Social Care,085334,West Rainton Satelite Home,Supplies and Services,384237,Miscellaneous Expenses,06-Dec-2021,000007828318244,JUMP GIANTS NEWCASTLE,7999,Recreational exps outings parties,15.35,0.00,15.35
Resources BK0010,Legal & Democratic Services,067910,Democratic Representation 067910,Supplies and Services,332047,Printing Stationery and Gen Off Exps,06-Dec-2021,000007828318254,AMZNMKTPLACE AMAZON.CO,5999,Stationery,31.70,5.28,26.42
Children and Young Peoples Services,Head of Childrens Social Care,085614,Families First Durham West,Supplies and Services,328041,Clothing uniforms and laundry E328,06-Dec-2021,000007828318294,ARGOS LTD,5310,Clothing uniforms and laundry,24.00,0.00,24.00
Regeneration Economy and Growth,Corporate Property and Land,030691,Catering - Durham Dales Centre,Supplies and Services,324117,Provisions E324,06-Dec-2021,000007828415074,BATLEYS PERTH,5300,Catering costs - provisions,41.76,6.96,34.80
Regeneration Economy and Growth,Corporate Property and Land,030691,Catering - Durham Dales Centre,Supplies and Services,324117,Provisions E324,06-Dec-2021,000007828415074 - 1,BATLEYS PERTH,5300,Catering costs - provisions,41.53,,41.53
Regeneration Economy and Growth,Corporate Property and Land,030691,Catering - Durham Dales Centre,Supplies and Services,324117,Provisions E324,06-Dec-2021,000007828415078,BATLEYS PERTH,5300,Catering costs - provisions,6.16,0.00,6.16
Regeneration Economy and Growth,Culture Sport and Tourism,054812,Gala Theatre - Catering etc,Supplies and Services,324117,Provisions E324,06-Dec-2021,000007828415146,BATLEYS PERTH,5300,Catering costs - provisions,462.24,77.04,385.20
Regeneration Economy and Growth,Culture Sport and Tourism,054812,Gala Theatre - Catering etc,Supplies and Services,324117,Provisions E324,06-Dec-2021,000007828415146 - 1,BATLEYS PERTH,5300,Catering costs - provisions,97.72,,97.72
Children and Young Peoples Services,Head of Childrens Social Care,085501,Child Care Cases Legal Expenses,Supplies and Services,304403,Equipment and Materials,06-Dec-2021,000007843529836,GEN REGISTER OFFICE,9399,Other consumables,-11.00,0.00,-11.00
Children and Young Peoples Services,Head of Childrens Social Care,085501,Child Care Cases Legal Expenses,Supplies and Services,304403,Equipment and Materials,06-Dec-2021,000007843529842,GEN REGISTER OFFICE,9399,Other consumables,-11.00,0.00,-11.00
Resources BK0010,Finance & Transactional Services,065175,Administration 065175,Supplies and Services,304403,Equipment and Materials,07-Dec-2021,000007824723932,AMZNMktplace,5999,Other consumables,23.90,3.98,19.92
Children and Young Peoples Services,Head of Childrens Social Care,085358,Orchard House Sacriston Solo Home,Supplies and Services,372009,Subscriptions E372,07-Dec-2021,000007824724252,NETFLIX.COM,4899,Subscriptions 372009,13.99,0.00,13.99
Children and Young Peoples Services,Head of Early Help Inclusion & Vulnerable Children.,071492,One Point - Central,Supplies and Services,342033,Computers and Communications,07-Dec-2021,000007824724654,FREEPIK & FLATICON,7333,Computer hardware,1.78,0.00,1.78
Regeneration Economy and Growth,Business Durham CL0850,030689,Inward Investment and Aftercare,Supplies and Services,336005,Advertising E336,07-Dec-2021,000007828317146,LINKEDIN IRELAND,7311,Advertising other than for staff,44.00,0.00,44.00
Children and Young Peoples Services,Head of Education and Skills,071801,Selby Cottage Childcare Centre,Supplies and Services,324117,Provisions E324,07-Dec-2021,000007828317152,TESCO STORES 2278,5411,Catering costs - provisions,129.97,0.00,129.97
Children and Young Peoples Services,Head of Education and Skills,071801,Selby Cottage Childcare Centre,Supplies and Services,384999,Miscellaneous Expenses,07-Dec-2021,000007828317154,Amazon.co.uk H15A13TO5,5969,Other expenses,9.18,1.54,7.64
Children and Young Peoples Services,Head of Education and Skills,071801,Selby Cottage Childcare Centre,Transport,235057,Public Transport,07-Dec-2021,000007828317158,GO NORTH EAST LIMITED,4131,Staff travelling,4.50,0.00,4.50
Children and Young Peoples Services,Head of Education and Skills,071801,Selby Cottage Childcare Centre,Supplies and Services,324117,Provisions E324,07-Dec-2021,000007828317160,ASDA GROCERIES ONLINE,5411,Catering costs - provisions,74.10,0.00,74.10
Children and Young Peoples Services,Head of Education and Skills,071801,Selby Cottage Childcare Centre,Supplies and Services,304403,Equipment and Materials,07-Dec-2021,000007828317164,AMZNMktplace,5999,Other consumables,10.58,1.76,8.82
Neighbourhoods and Climate Change,Environmental Services,010301,C&G - North Grounds Maintenance,Supplies and Services,324117,Provisions E324,07-Dec-2021,000007828317168,J VAN VLIET GATESHEAD,5399,Catering costs - provisions,358.34,0.00,358.34
Resources BK0010,Digital and Customer Services,070110,School Services - Man Info System (MIS) Support Team,Supplies and Services,342033,Computers and Communications,07-Dec-2021,000007828317174,WPMU DEV INCSUBFEE.COM,7372,Computer hardware,14.38,0.00,14.38
Adult and Health Services,Adults Excluded,060702,Local Safeguarding Adults Board,Supplies and Services,384999,Miscellaneous Expenses,07-Dec-2021,000007828317178,Amazon.co.uk I55TH44E5,5969,Other expenses,19.74,3.29,16.45
Adult and Health Services,Adults Excluded,060702,Local Safeguarding Adults Board,Supplies and Services,384999,Miscellaneous Expenses,07-Dec-2021,000007828317178 - 1,Amazon.co.uk I55TH44E5,5969,Other expenses,24.73,,24.73
Resources BK0010,Finance & Transactional Services,065175,Administration 065175,Supplies and Services,304403,Equipment and Materials,07-Dec-2021,000007828317186,AMZNMktplace,5999,Other consumables,11.95,1.99,9.96
Regeneration Economy and Growth,Development and Housing,031500,Housing Solutions - Core,Supplies and Services,304259,Equipment and Materials,07-Dec-2021,000007828317200,WWW.EASTDURHAMHOMES.CO,9399,Equipment-purchase and rental,157.70,0.00,157.70
Regeneration Economy and Growth,Culture Sport and Tourism,010661,Meadowfield Leisure Centre,Supplies and Services,332047,Printing Stationery and Gen Off Exps,07-Dec-2021,000007828317204,Amazon.co.uk L870S1Y55,5969,Stationery,17.76,2.96,14.80
Regeneration Economy and Growth,Culture Sport and Tourism,010661,Meadowfield Leisure Centre,Supplies and Services,332047,Printing Stationery and Gen Off Exps,07-Dec-2021,000007828317204 - 1,Amazon.co.uk L870S1Y55,5969,Stationery,0.04,,0.04
Children and Young Peoples Services,Head of Childrens Social Care,085341,High Etherley Satelite Home,Supplies and Services,324117,Provisions E324,07-Dec-2021,000007828317208,TESCO STORES 6329,5411,Catering costs - provisions,12.49,0.00,12.49
Regeneration Economy and Growth,Development and Housing,030773,CLLD North,Employees,040149,Recruitment Instruction and Training,07-Dec-2021,000007828317222,PAYPAL GBGROUP PLC,8999,Training-all costs,52.00,0.00,52.00
Regeneration Economy and Growth,Culture Sport and Tourism,054350,Spennymoor Library,Supplies and Services,304252,Equipment and Materials,07-Dec-2021,000007828317232,Amazon.co.uk GG7O385V5,5969,Equipment-repairsserviceinsurance,18.95,3.16,15.79
Regeneration Economy and Growth,Culture Sport and Tourism,054350,Spennymoor Library,Supplies and Services,304252,Equipment and Materials,07-Dec-2021,000007828317236,Amazon.co.uk 0B2KI3Z55,5969,Equipment-repairsserviceinsurance,18.95,3.16,15.79
Regeneration Economy and Growth,Culture Sport and Tourism,054350,Spennymoor Library,Supplies and Services,304252,Equipment and Materials,07-Dec-2021,000007828317238,Amazon.co.uk 3V2V84EB5,5969,Equipment-repairsserviceinsurance,18.95,3.16,15.79
Regeneration Economy and Growth,Culture Sport and Tourism,054798,dli Museum - WW1 Education Programme,Supplies and Services,304259,Equipment and Materials,07-Dec-2021,000007828317240,AMZNMktplace,5999,Equipment-purchase and rental,9.38,0.00,9.38
Regeneration Economy and Growth,Culture Sport and Tourism,054350,Spennymoor Library,Supplies and Services,304252,Equipment and Materials,07-Dec-2021,000007828317242,Amazon.co.uk FS1LX5XY5,5969,Equipment-repairsserviceinsurance,18.95,3.16,15.79
Adult and Health Services,Head of Adults,055643,Hawthorn House LD Respite Unit,Supplies and Services,324117,Provisions E324,07-Dec-2021,000007828317248,WILKO RETAIL LIMITED,5399,Catering costs - provisions,4.00,0.00,4.00
Children and Young Peoples Services,Head of Childrens Social Care,085332,Middlestone Moor CU,Supplies and Services,304999,Equipment and Materials,07-Dec-2021,000007828317290,AMZNMktplace,5999,Misc equipment tools and materials,18.69,3.12,15.57
Children and Young Peoples Services,Head of Childrens Social Care,085332,Middlestone Moor CU,Supplies and Services,324117,Provisions E324,07-Dec-2021,000007828317294,ASDA SUPERSTORE 4987,5411,Catering costs - provisions,2.00,0.00,2.00
Children and Young Peoples Services,Head of Childrens Social Care,085332,Middlestone Moor CU,Supplies and Services,324117,Provisions E324,07-Dec-2021,000007828317296,LIDL GB SPENNYMOOR,5411,Catering costs - provisions,44.94,0.00,44.94
Children and Young Peoples Services,Head of Education and Skills,078100,Curric and Professional Development 078100,Supplies and Services,342033,Computers and Communications,07-Dec-2021,000007828317322,STK Shutterstock,7333,Computer hardware,22.80,0.00,22.80
Dedicated Schools Grant BG0015,DSG Schools Block,418513,Belmont Community School 004185 - PE,Supplies and Services,304259,Equipment and Materials,07-Dec-2021,000007828317328,CURRYS ONLINE,5732,Equipment-purchase and rental,339.99,0.00,339.99
Children and Young Peoples Services,Head of Childrens Social Care,085351,Framwellgate Moor CU,Supplies and Services,324117,Provisions E324,07-Dec-2021,000007828317374,LIDL GB DURHAM,5411,Catering costs - provisions,22.71,0.00,22.71
Resources - C A C,Storm Arwen Emergency Costs,069002,Storm Arwen Emergency Costs,Supplies and Services,364320,Grants to Voluntary Organisations,07-Dec-2021,000007828317386,Gibside Hotel,7011,Accommodation assistance,45.10,0.00,45.10
Children and Young Peoples Services,Head of Early Help Inclusion & Vulnerable Children.,088104,BA/BC/Crook Intensive Family Support Team,Supplies and Services,304259,Equipment and Materials,07-Dec-2021,000007828317420,PAYPAL FALCONINTER ON,5331,Equipment-purchase and rental,42.99,0.00,42.99
Children and Young Peoples Services,Head of Early Help Inclusion & Vulnerable Children.,088105,W/Close and Willington Family Centre,Supplies and Services,304259,Equipment and Materials,07-Dec-2021,000007828317424,BAKER ROSS,5970,Equipment-purchase and rental,39.95,6.66,33.29
Regeneration Economy and Growth,Culture Sport and Tourism,054812,Gala Theatre - Catering etc,Supplies and Services,324117,Provisions E324,07-Dec-2021,000007828317426,HOPWELLS LTD,5811,Catering costs - provisions,131.27,0.00,131.27
Children and Young Peoples Services,Head of Early Help Inclusion & Vulnerable Children.,079599,Psychological-HQ,Supplies and Services,304403,Equipment and Materials,07-Dec-2021,000007828317472,AMZNMktplace,5999,Other consumables,9.69,1.62,8.07
Children and Young Peoples Services,Head of Early Help Inclusion & Vulnerable Children.,079599,Psychological-HQ,Supplies and Services,304403,Equipment and Materials,07-Dec-2021,000007828317476,AMZNMktplace,5999,Other consumables,16.02,2.67,13.35
Children and Young Peoples Services,Head of Early Help Inclusion & Vulnerable Children.,079599,Psychological-HQ,Supplies and Services,304403,Equipment and Materials,07-Dec-2021,000007828317476 - 1,AMZNMktplace,5999,Other consumables,11.67,,11.67
Children and Young Peoples Services,Head of Early Help Inclusion & Vulnerable Children.,085962,Aycliffe Secure - Durham,Supplies and Services,328041,Clothing uniforms and laundry E328,07-Dec-2021,000007828317486,Blacks Outdoor Retail,5655,Clothing uniforms and laundry,34.95,0.00,34.95
Children and Young Peoples Services,Head of Early Help Inclusion & Vulnerable Children.,085956,Lumley,Supplies and Services,328041,Clothing uniforms and laundry E328,07-Dec-2021,000007828317488,SPORTSDIRECT.COM,5691,Clothing uniforms and laundry,36.99,0.00,36.99
Children and Young Peoples Services,Head of Education and Skills,071732,Dean Bank Childcare,Supplies and Services,304403,Equipment and Materials,07-Dec-2021,000007828317588,AMZNMktplace,5999,Other consumables,6.99,0.00,6.99
Children and Young Peoples Services,Head of Education and Skills,071732,Dean Bank Childcare,Supplies and Services,304403,Equipment and Materials,07-Dec-2021,000007828317592,AMZNMktplace,5999,Other consumables,371.20,0.00,371.20
Children and Young Peoples Services,Head of Education and Skills,071732,Dean Bank Childcare,Supplies and Services,304403,Equipment and Materials,07-Dec-2021,000007828317594,AMZNMKTPLACE AMAZON.CO,5999,Other consumables,27.12,0.00,27.12
Children and Young Peoples Services,Head of Education and Skills,071732,Dean Bank Childcare,Supplies and Services,324117,Provisions E324,07-Dec-2021,000007828317598,ASDA GROCERIES ONLINE,5411,Catering costs - provisions,35.20,0.00,35.20
Children and Young Peoples Services,Head of Education and Skills,071732,Dean Bank Childcare,Supplies and Services,324117,Provisions E324,07-Dec-2021,000007828317602,ASDA GROCERIES ONLINE,5411,Catering costs - provisions,172.40,0.00,172.40
Children and Young Peoples Services,Head of Education and Skills,071732,Dean Bank Childcare,Supplies and Services,324117,Provisions E324,07-Dec-2021,000007828317604,ASDA GROCERIES ONLINE,5411,Catering costs - provisions,118.30,0.00,118.30
Children and Young Peoples Services,Head of Education and Skills,071732,Dean Bank Childcare,Supplies and Services,324117,Provisions E324,07-Dec-2021,000007828317608,ASDA STORES,5411,Catering costs - provisions,343.65,0.00,343.65
Children and Young Peoples Services,Head of Education and Skills,071732,Dean Bank Childcare,Supplies and Services,324117,Provisions E324,07-Dec-2021,000007828317612,TESCO STORES 2916,5411,Catering costs - provisions,357.70,0.00,357.70
Children and Young Peoples Services,Head of Education and Skills,071732,Dean Bank Childcare,Supplies and Services,304403,Equipment and Materials,07-Dec-2021,000007828317614,AMZNMktplace,5999,Other consumables,48.97,0.00,48.97
Regeneration Economy and Growth,Culture Sport and Tourism,054966,Gala Theatre - Gala Productions,Supplies and Services,338047,Services,07-Dec-2021,000007828317618,Amazon.co.uk 7S7KK4H55,5969,Direct production costs,11.98,0.00,11.98
Neighbourhoods and Climate Change,Environmental Services,011060,C&G - Hardwick Park Catering,Supplies and Services,304083,Equipment and Materials,07-Dec-2021,000007828317634,AMZNMktplace,5999,Catering equipment,39.80,6.64,33.16
Regeneration Economy and Growth,Development and Housing,030771,Durham Advance Flexible Fund,Transport,235057,Public Transport,07-Dec-2021,000007828317670,WWW.GONORTHEAST.CO.UK,4111,Staff travelling,25.00,0.00,25.00
Neighbourhoods and Climate Change,Environmental Services,031228,North Pennines - Fellfoot Forward,Supplies and Services,324117,Provisions E324,07-Dec-2021,000007828317702,HALLBANKGATE HUB LIMIT,5411,Catering costs - provisions,3.49,0.00,3.49
Neighbourhoods and Climate Change,Environmental Services,031228,North Pennines - Fellfoot Forward,Supplies and Services,324117,Provisions E324,07-Dec-2021,000007828317704,B&M 037 - HEXHAM,5399,Catering costs - provisions,9.99,0.00,9.99
Children and Young Peoples Services,Head of Childrens Social Care,085334,West Rainton Satelite Home,Supplies and Services,324117,Provisions E324,07-Dec-2021,000007828317732,TESCO STORES 2278,5411,Catering costs - provisions,26.70,0.00,26.70
Children and Young Peoples Services,Head of Childrens Social Care,085352,New Childrens Home (previously Tow Law),Supplies and Services,304403,Equipment and Materials,07-Dec-2021,000007828317762,AMZNMktplace,5999,Other consumables,7.30,1.22,6.08
Dedicated Schools Grant BG0015,DSG Schools Block,418500,Belmont Community School 004185 - Admin,Supplies and Services,324093,Provisions E324,07-Dec-2021,000007828317780,JUST EAT,5811,Meals-School Meals Service,40.00,0.00,40.00
Children and Young Peoples Services,Head of Childrens Social Care,085341,High Etherley Satelite Home,Supplies and Services,304403,Equipment and Materials,07-Dec-2021,000007828317794,AMZNMktplace,5999,Other consumables,15.59,2.60,12.99
Children and Young Peoples Services,Head of Childrens Social Care,085333,Coxhoe Satelite Home,Supplies and Services,324117,Provisions E324,07-Dec-2021,000007828317828,COATES BUTCHERS,5499,Catering costs - provisions,23.48,0.00,23.48
Neighbourhoods and Climate Change,Environmental Services,010367,C&G - South Grounds Maintenance,Supplies and Services,304221,Equipment and Materials,07-Dec-2021,000007828317838,CARRS BILLINGTON SPENN,5599,Direct materials,153.51,0.00,153.51
Adult and Health Services,Head of Adults,055301,Stanley Pathways,Supplies and Services,384999,Miscellaneous Expenses,07-Dec-2021,000007828317842,Amazon.co.uk 270TB17D5,5969,Other expenses,12.31,2.06,10.25
Adult and Health Services,Head of Adults,055301,Stanley Pathways,Supplies and Services,324117,Provisions E324,07-Dec-2021,000007828317848,ASDA SUPERSTORE,5411,Catering costs - provisions,2.19,0.00,2.19
Adult and Health Services,Head of Adults,055301,Stanley Pathways,Supplies and Services,384999,Miscellaneous Expenses,07-Dec-2021,000007828317850,Amazon.co.uk GM4BL9M15,5969,Other expenses,17.99,3.00,14.99
Children and Young Peoples Services,Head of Childrens Social Care,085351,Framwellgate Moor CU,Supplies and Services,384999,Miscellaneous Expenses,07-Dec-2021,000007828317876,Amazon.co.uk BH2XP8JF5,5969,Other expenses,139.00,23.17,115.83
Children and Young Peoples Services,Head of Childrens Social Care,085351,Framwellgate Moor CU,Supplies and Services,384999,Miscellaneous Expenses,07-Dec-2021,000007828317880,Amazon.co.uk XY2DA6AV5,5969,Other expenses,15.99,2.67,13.32
Children and Young Peoples Services,Head of Childrens Social Care,085334,West Rainton Satelite Home,Supplies and Services,324117,Provisions E324,07-Dec-2021,000007828317938,Choices,5411,Catering costs - provisions,4.47,0.00,4.47
Resources BK0010,Digital and Customer Services,065335,School Services - Implementations,Supplies and Services,304639,Equipment and Materials,07-Dec-2021,000007828317968,WWW.ALIEXPRESS.COM,5964,Technicians-supplies,15.43,0.00,15.43
Children and Young Peoples Services,Head of Early Help Inclusion & Vulnerable Children.,085957,Secure Management,Supplies and Services,304403,Equipment and Materials,07-Dec-2021,000007828318016,AMZNMktplace,5999,Other consumables,8.99,1.50,7.49
Children and Young Peoples Services,Head of Early Help Inclusion & Vulnerable Children.,085957,Secure Management,Supplies and Services,304403,Equipment and Materials,07-Dec-2021,000007828318022,AMZNMktplace,5999,Other consumables,5.07,0.85,4.22
Children and Young Peoples Services,Head of Early Help Inclusion & Vulnerable Children.,085957,Secure Management,Supplies and Services,304403,Equipment and Materials,07-Dec-2021,000007828318024,AMZNMktplace,5999,Other consumables,3.00,0.50,2.50
Children and Young Peoples Services,Head of Early Help Inclusion & Vulnerable Children.,085957,Secure Management,Supplies and Services,304403,Equipment and Materials,07-Dec-2021,000007828318028,AMZNMktplace,5999,Other consumables,3.98,0.66,3.32
Neighbourhoods and Climate Change,Community Protection,010809,Community Protection Management,Supplies and Services,384999,Miscellaneous Expenses,07-Dec-2021,000007828318096,EDEN FARM SUPPLIES,5995,Other expenses,78.12,0.00,78.12
Children and Young Peoples Services,Head of Education and Skills,071802,Louisa Cent Nursery,Supplies and Services,324117,Provisions E324,07-Dec-2021,000007828318142,ASDA SUPERSTORE,5411,Catering costs - provisions,17.40,0.00,17.40
Children and Young Peoples Services,Head of Education and Skills,071802,Louisa Cent Nursery,Supplies and Services,324117,Provisions E324,07-Dec-2021,000007828318144,ASDA SUPERSTORE,5411,Catering costs - provisions,3.00,0.00,3.00
Children and Young Peoples Services,Head of Childrens Social Care,085332,Middlestone Moor CU,Transport,235057,Public Transport,07-Dec-2021,000007828318180,ARRIVA UK BUS,4131,Staff travelling,29.60,0.00,29.60
Children and Young Peoples Services,Head of Early Help Inclusion & Vulnerable Children.,088107,Wheatley Hill & N. Aycliffe Family Centre,Supplies and Services,324117,Provisions E324,07-Dec-2021,000007828318192,ASDA GROCERIES ONLINE,5411,Catering costs - provisions,114.66,0.00,114.66
Children and Young Peoples Services,Head of Early Help Inclusion & Vulnerable Children.,088107,Wheatley Hill & N. Aycliffe Family Centre,Supplies and Services,324117,Provisions E324,07-Dec-2021,000007828318198,ASDA GROCERIES ONLINE,5411,Catering costs - provisions,-0.44,0.00,-0.44
Regeneration Economy and Growth,Culture Sport and Tourism,054233,Bishop Auckland Town Hall Library,Supplies and Services,324117,Provisions E324,07-Dec-2021,000007828318204,WILKO RETAIL LIMITED,5399,Catering costs - provisions,0.60,0.00,0.60
Regeneration Economy and Growth,Culture Sport and Tourism,054233,Bishop Auckland Town Hall Library,Supplies and Services,324117,Provisions E324,07-Dec-2021,000007828318208,HERON FOODS,5411,Catering costs - provisions,1.78,0.00,1.78
Children and Young Peoples Services,Head of Childrens Social Care,085352,New Childrens Home (previously Tow Law),Transport,235057,Public Transport,07-Dec-2021,000007828318214,GO NORTH EAST LIMITED,4131,Staff travelling,23.00,0.00,23.00
Children and Young Peoples Services,Head of Childrens Social Care,085352,New Childrens Home (previously Tow Law),Supplies and Services,324117,Provisions E324,07-Dec-2021,000007828318218,ICELAND,5411,Catering costs - provisions,11.90,0.00,11.90
Children and Young Peoples Services,Head of Childrens Social Care,085551,Short Break Services-Park Hse Sher,Supplies and Services,304999,Equipment and Materials,07-Dec-2021,000007828318326,HOME BARGAINS,5251,Misc equipment tools and materials,3.46,0.00,3.46
Children and Young Peoples Services,Head of Childrens Social Care,085333,Coxhoe Satelite Home,Supplies and Services,324117,Provisions E324,07-Dec-2021,000007828318348,B&M 681 - DURHAM,5399,Catering costs - provisions,39.79,0.00,39.79
Children and Young Peoples Services,Head of Childrens Social Care,085333,Coxhoe Satelite Home,Supplies and Services,324001,Provisions E324,07-Dec-2021,000007828318352,COXHOE DISCOUNT STORE,5921,Bar supplies,5.13,0.00,5.13
Regeneration Economy and Growth,Corporate Property and Land,030691,Catering - Durham Dales Centre,Supplies and Services,324117,Provisions E324,07-Dec-2021,000007828318366,TESCO STORES 6329,5411,Catering costs - provisions,27.15,0.00,27.15
Resources BK0010,Procurement Sales & Business Services,065503,Business Support - Spectrum,Supplies and Services,384999,Miscellaneous Expenses,07-Dec-2021,000007828318382,Amazon.co.uk I19PZ19R5,5969,Other expenses,9.95,0.00,9.95
Resources BK0010,Procurement Sales & Business Services,065503,Business Support - Spectrum,Supplies and Services,304259,Equipment and Materials,07-Dec-2021,000007828318384,SUNDERLAND CC,9399,Equipment-purchase and rental,11.00,0.00,11.00
Resources BK0010,Procurement Sales & Business Services,065503,Business Support - Spectrum,Supplies and Services,304403,Equipment and Materials,07-Dec-2021,000007828318386,AMZNMKTPLACE AMAZON.CO,5999,Other consumables,47.92,0.00,47.92
Regeneration Economy and Growth,Corporate Property and Land,010525,Catering - Green Lane,Supplies and Services,324117,Provisions E324,07-Dec-2021,000007828415064,FREEMAN CATERING BUTCH,5422,Catering costs - provisions,24.98,0.00,24.98
Regeneration Economy and Growth,Corporate Property and Land,011275,Catering -Durham Leadership Centre,Supplies and Services,324117,Provisions E324,07-Dec-2021,000007828415068,JR HOLLAND FOODSERVICE,5499,Catering costs - provisions,18.68,0.00,18.68
Regeneration Economy and Growth,Corporate Property and Land,030691,Catering - Durham Dales Centre,Supplies and Services,324117,Provisions E324,07-Dec-2021,000007828415082,FREEMAN CATERING BUTCH,5422,Catering costs - provisions,56.86,0.00,56.86
Regeneration Economy and Growth,Culture Sport and Tourism,054235,Bishop Auckland Town Hall Cafe,Supplies and Services,324117,Provisions E324,07-Dec-2021,000007828415090,JR HOLLAND FOODSERVICE,5499,Catering costs - provisions,63.33,0.00,63.33
Adult and Health Services,Head of Adults,055643,Hawthorn House LD Respite Unit,Supplies and Services,324117,Provisions E324,07-Dec-2021,000007828415100,FREEMAN CATERING BUTCH,5422,Catering costs - provisions,17.11,0.00,17.11
Neighbourhoods and Climate Change,Environmental Services,011060,C&G - Hardwick Park Catering,Supplies and Services,324117,Provisions E324,07-Dec-2021,000007828415116,FREEMAN CATERING BUTCH,5422,Catering costs - provisions,24.18,0.00,24.18
Neighbourhoods and Climate Change,Environmental Services,011060,C&G - Hardwick Park Catering,Supplies and Services,324117,Provisions E324,07-Dec-2021,000007828415120,FREEMAN CATERING BUTCH,5422,Catering costs - provisions,48.24,0.00,48.24
Neighbourhoods and Climate Change,Environmental Services,011060,C&G - Hardwick Park Catering,Supplies and Services,324117,Provisions E324,07-Dec-2021,000007828415122,JR HOLLAND FOODSERVICE,5499,Catering costs - provisions,26.79,0.00,26.79
Regeneration Economy and Growth,Corporate Property and Land,021234,Catering - Locomotion,Supplies and Services,384999,Miscellaneous Expenses,07-Dec-2021,000007828415130,ON A ROLL SANDWICH COM,5199,Other expenses,130.27,0.00,130.27
Regeneration Economy and Growth,Corporate Property and Land,021234,Catering - Locomotion,Supplies and Services,324117,Provisions E324,07-Dec-2021,000007828415134,FREEMAN CATERING BUTCH,5422,Catering costs - provisions,106.06,0.00,106.06
Regeneration Economy and Growth,Corporate Property and Land,021234,Catering - Locomotion,Supplies and Services,324117,Provisions E324,07-Dec-2021,000007828415136,FREEMAN CATERING BUTCH,5422,Catering costs - provisions,16.00,0.00,16.00
Regeneration Economy and Growth,Culture Sport and Tourism,054812,Gala Theatre - Catering etc,Supplies and Services,324117,Provisions E324,07-Dec-2021,000007828415148,FREEMAN CATERING BUTCH,5422,Catering costs - provisions,17.00,0.00,17.00
Regeneration Economy and Growth,Culture Sport and Tourism,054812,Gala Theatre - Catering etc,Supplies and Services,324117,Provisions E324,07-Dec-2021,000007828415150,FREEMAN CATERING BUTCH,5422,Catering costs - provisions,31.36,0.00,31.36
Regeneration Economy and Growth,Culture Sport and Tourism,054812,Gala Theatre - Catering etc,Supplies and Services,324117,Provisions E324,07-Dec-2021,000007828415152,JR HOLLAND FOODSERVICE,5499,Catering costs - provisions,87.25,0.00,87.25
Regeneration Economy and Growth,Corporate Property and Land,021242,Catering - County Hall,Supplies and Services,324117,Provisions E324,07-Dec-2021,000007828415160,JR HOLLAND FOODSERVICE,5499,Catering costs - provisions,46.68,0.00,46.68
Children and Young Peoples Services,Head of Education and Skills,071801,Selby Cottage Childcare Centre,Supplies and Services,324117,Provisions E324,07-Dec-2021,000007832688974,ALDI 32 774,5411,Catering costs - provisions,68.28,0.00,68.28
Regeneration Economy and Growth,Culture Sport and Tourism,010661,Meadowfield Leisure Centre,Supplies and Services,304259,Equipment and Materials,07-Dec-2021,000007832689016,ARGOS LTD,5310,Equipment-purchase and rental,23.95,0.00,23.95
Regeneration Economy and Growth,Development and Housing,030773,CLLD North,Supplies and Services,328041,Clothing uniforms and laundry E328,07-Dec-2021,000007832689058,ARGOS LTD,5310,Clothing uniforms and laundry,9.99,0.00,9.99
Adult and Health Services,Head of Adults,055643,Hawthorn House LD Respite Unit,Supplies and Services,324117,Provisions E324,07-Dec-2021,000007832689084,SAINSBURY`S S/MKT,5411,Catering costs - provisions,9.70,0.00,9.70
Children and Young Peoples Services,Head of Childrens Social Care,085342,16 Hickstead Rise (previously 9 Cedar Ave),Supplies and Services,348037,Subsistence E348,07-Dec-2021,000007832689142,MCDONALDS,5812,Subsistence,5.26,0.00,5.26
Children and Young Peoples Services,Head of Childrens Social Care,085351,Framwellgate Moor CU,Supplies and Services,324117,Provisions E324,07-Dec-2021,000007832689224,CO-OP GROUP FOOD,5411,Catering costs - provisions,0.95,0.00,0.95
Children and Young Peoples Services,Head of Childrens Social Care,085351,Framwellgate Moor CU,Supplies and Services,308011,Furniture,07-Dec-2021,000007832689226,The Range,5719,Furniture repair and replacement,107.97,0.00,107.97
Children and Young Peoples Services,Head of Early Help Inclusion & Vulnerable Children.,088104,BA/BC/Crook Intensive Family Support Team,Supplies and Services,304259,Equipment and Materials,07-Dec-2021,000007832689314,WWW.THEWORKS.CO.UK,5310,Equipment-purchase and rental,160.00,0.00,160.00
Children and Young Peoples Services,Head of Early Help Inclusion & Vulnerable Children.,088104,BA/BC/Crook Intensive Family Support Team,Supplies and Services,304259,Equipment and Materials,07-Dec-2021,000007832689324,WWW.THEWORKS.CO.UK,5310,Equipment-purchase and rental,60.00,0.00,60.00
Children and Young Peoples Services,Head of Early Help Inclusion & Vulnerable Children.,085962,Aycliffe Secure - Durham,Supplies and Services,304259,Equipment and Materials,07-Dec-2021,000007832689384,JD SPORTS INTERNET,5941,Equipment-purchase and rental,105.00,0.00,105.00
Children and Young Peoples Services,Head of Early Help Inclusion & Vulnerable Children.,085954,Walworth,Supplies and Services,304259,Equipment and Materials,07-Dec-2021,000007832689390,JD SPORTS INTERNET,5941,Equipment-purchase and rental,43.99,0.00,43.99
Children and Young Peoples Services,Head of Early Help Inclusion & Vulnerable Children.,085954,Walworth,Supplies and Services,304259,Equipment and Materials,07-Dec-2021,000007832689392,JD SPORTS INTERNET,5941,Equipment-purchase and rental,115.00,0.00,115.00
Children and Young Peoples Services,Head of Early Help Inclusion & Vulnerable Children.,085954,Walworth,Supplies and Services,304259,Equipment and Materials,07-Dec-2021,000007832689396,JD SPORTS INTERNET,5941,Equipment-purchase and rental,105.00,0.00,105.00
Children and Young Peoples Services,Head of Childrens Social Care,085362,LAC & Permanence Team 2,Transport,235073,Public Transport,07-Dec-2021,000007832689452,NX Website,4131,Travel-clients/students/children,24.00,0.00,24.00
Children and Young Peoples Services,Head of Education and Skills,071732,Dean Bank Childcare,Supplies and Services,304403,Equipment and Materials,07-Dec-2021,000007832689622,AMZNMKTPLACE AMAZON.CO,5999,Other consumables,7.98,0.00,7.98
Children and Young Peoples Services,Head of Early Help Inclusion & Vulnerable Children.,071445,Chester le Street One Point Hub,Supplies and Services,304221,Equipment and Materials,07-Dec-2021,000007832689702,SCREWFIX DIRECT,5211,Direct materials,49.99,0.00,49.99
Neighbourhoods and Climate Change,Environmental Services,031228,North Pennines - Fellfoot Forward,Supplies and Services,324117,Provisions E324,07-Dec-2021,000007832689740,CO-OP GROUP FOOD,5411,Catering costs - provisions,18.50,0.00,18.50
Children and Young Peoples Services,Head of Childrens Social Care,085334,West Rainton Satelite Home,Supplies and Services,348037,Subsistence E348,07-Dec-2021,000007832689802,MCDONALDS,5812,Subsistence,3.97,0.00,3.97
Children and Young Peoples Services,Head of Childrens Social Care,085333,Coxhoe Satelite Home,Supplies and Services,324117,Provisions E324,07-Dec-2021,000007832690062,CO-OP GROUP 310016,5411,Catering costs - provisions,10.50,0.00,10.50
Children and Young Peoples Services,Head of Childrens Social Care,085351,Framwellgate Moor CU,Supplies and Services,324117,Provisions E324,07-Dec-2021,000007832690104,ALDI 12 774,5411,Catering costs - provisions,32.33,0.00,32.33
Children and Young Peoples Services,Head of Childrens Social Care,085334,West Rainton Satelite Home,Supplies and Services,304999,Equipment and Materials,07-Dec-2021,000007832690162,CLIP N CLIMB,7929,Misc equipment tools and materials,10.00,0.00,10.00
Children and Young Peoples Services,Head of Childrens Social Care,085334,West Rainton Satelite Home,Supplies and Services,304999,Equipment and Materials,07-Dec-2021,000007832690166,Namco Uk Ltd,7929,Misc equipment tools and materials,8.15,0.00,8.15
Children and Young Peoples Services,Head of Childrens Social Care,085332,Middlestone Moor CU,Supplies and Services,348037,Subsistence E348,07-Dec-2021,000007832690452,MCDONALDS 1555,5814,Subsistence,7.96,0.00,7.96
Children and Young Peoples Services,Head of Childrens Social Care,085332,Middlestone Moor CU,Supplies and Services,324001,Provisions E324,07-Dec-2021,000007832690458,KASHS OFF LICENCE,5921,Bar supplies,5.09,0.00,5.09
Children and Young Peoples Services,Head of Childrens Social Care,085352,New Childrens Home (previously Tow Law),Supplies and Services,304259,Equipment and Materials,07-Dec-2021,000007832690496,SPORTSDIRECT 264,5941,Equipment-purchase and rental,15.10,0.00,15.10
Neighbourhoods and Climate Change,Community Protection,011035,Consumer Protection 011035,Supplies and Services,338048,Services,07-Dec-2021,000007832690602,HMCOURTS-SERVICE.G,9222,Court costs 338048,226.00,0.00,226.00
Children and Young Peoples Services,Head of Childrens Social Care,085551,Short Break Services-Park Hse Sher,Supplies and Services,348037,Subsistence E348,07-Dec-2021,000007832690656,MCDONALDS,5814,Subsistence,7.77,0.00,7.77
Children and Young Peoples Services,Head of Childrens Social Care,085551,Short Break Services-Park Hse Sher,Supplies and Services,384999,Miscellaneous Expenses,07-Dec-2021,000007832690662,CINEWORLD CINEMAS,7922,Other expenses,20.75,0.00,20.75
Children and Young Peoples Services,Head of Childrens Social Care,085333,Coxhoe Satelite Home,Supplies and Services,308011,Furniture,07-Dec-2021,000007832690720,The Range,5719,Furniture repair and replacement,147.84,0.00,147.84
Resources BK0010,Procurement Sales & Business Services,065503,Business Support - Spectrum,Supplies and Services,304403,Equipment and Materials,07-Dec-2021,000007832690788,AMZNMKTPLACE AMAZON.CO,5999,Other consumables,28.00,4.67,23.33
Regeneration Economy and Growth,Corporate Property and Land,010525,Catering - Green Lane,Supplies and Services,384999,Miscellaneous Expenses,07-Dec-2021,000007832795698,G M PACKAGING UK LIMIT,5046,Other expenses,30.64,0.00,30.64
Regeneration Economy and Growth,Corporate Property and Land,010525,Catering - Green Lane,Supplies and Services,324117,Provisions E324,07-Dec-2021,000007832795702,BATLEYS PERTH,5300,Catering costs - provisions,50.70,8.45,42.25
Regeneration Economy and Growth,Corporate Property and Land,010525,Catering - Green Lane,Supplies and Services,324117,Provisions E324,07-Dec-2021,000007832795702 - 1,BATLEYS PERTH,5300,Catering costs - provisions,18.46,,18.46
Regeneration Economy and Growth,Corporate Property and Land,030691,Catering - Durham Dales Centre,Supplies and Services,384999,Miscellaneous Expenses,07-Dec-2021,000007832795712,G M PACKAGING UK LIMIT,5046,Other expenses,47.76,0.00,47.76
Regeneration Economy and Growth,Corporate Property and Land,030691,Catering - Durham Dales Centre,Supplies and Services,384999,Miscellaneous Expenses,07-Dec-2021,000007832795716,G M PACKAGING UK LIMIT,5046,Other expenses,39.36,0.00,39.36
Regeneration Economy and Growth,Corporate Property and Land,030691,Catering - Durham Dales Centre,Supplies and Services,384999,Miscellaneous Expenses,07-Dec-2021,000007832795718,G M PACKAGING UK LIMIT,5046,Other expenses,102.01,0.00,102.01
Regeneration Economy and Growth,Corporate Property and Land,030691,Catering - Durham Dales Centre,Supplies and Services,384999,Miscellaneous Expenses,07-Dec-2021,000007832795724,G M PACKAGING UK LIMIT,5046,Other expenses,-40.68,0.00,-40.68
Neighbourhoods and Climate Change,Environmental Services,011060,C&G - Hardwick Park Catering,Supplies and Services,384999,Miscellaneous Expenses,07-Dec-2021,000007832795736,G M PACKAGING UK LIMIT,5046,Other expenses,-237.58,0.00,-237.58
Regeneration Economy and Growth,Corporate Property and Land,021234,Catering - Locomotion,Supplies and Services,384999,Miscellaneous Expenses,07-Dec-2021,000007832795740,G M PACKAGING UK LIMIT,5046,Other expenses,107.12,0.00,107.12
Regeneration Economy and Growth,Corporate Property and Land,021234,Catering - Locomotion,Supplies and Services,324117,Provisions E324,07-Dec-2021,000007832795742,BATLEYS PERTH,5300,Catering costs - provisions,149.88,24.98,124.90
Regeneration Economy and Growth,Corporate Property and Land,021234,Catering - Locomotion,Supplies and Services,324117,Provisions E324,07-Dec-2021,000007832795742 - 1,BATLEYS PERTH,5300,Catering costs - provisions,63.86,,63.86
Regeneration Economy and Growth,Culture Sport and Tourism,054812,Gala Theatre - Catering etc,Supplies and Services,384999,Miscellaneous Expenses,07-Dec-2021,000007832795752,G M PACKAGING UK LIMIT,5046,Other expenses,462.12,0.00,462.12
Regeneration Economy and Growth,Culture Sport and Tourism,054812,Gala Theatre - Catering etc,Supplies and Services,384999,Miscellaneous Expenses,07-Dec-2021,000007832795754,G M PACKAGING UK LIMIT,5046,Other expenses,123.72,0.00,123.72
Regeneration Economy and Growth,Corporate Property and Land,021242,Catering - County Hall,Supplies and Services,324117,Provisions E324,07-Dec-2021,000007832795760,BATLEYS PERTH,5300,Catering costs - provisions,49.08,8.18,40.90
Regeneration Economy and Growth,Corporate Property and Land,021242,Catering - County Hall,Supplies and Services,324117,Provisions E324,07-Dec-2021,000007832795760 - 1,BATLEYS PERTH,5300,Catering costs - provisions,173.47,,173.47
Regeneration Economy and Growth,Corporate Property and Land,021242,Catering - County Hall,Supplies and Services,324117,Provisions E324,07-Dec-2021,000007832795762,BATLEYS PERTH,5300,Catering costs - provisions,22.02,3.67,18.35
Regeneration Economy and Growth,Corporate Property and Land,021242,Catering - County Hall,Supplies and Services,324117,Provisions E324,07-Dec-2021,000007832795762 - 1,BATLEYS PERTH,5300,Catering costs - provisions,139.93,,139.93
Regeneration Economy and Growth,Corporate Property and Land,021242,Catering - County Hall,Supplies and Services,324117,Provisions E324,07-Dec-2021,000007832795768,BATLEYS PERTH,5300,Catering costs - provisions,274.68,45.78,228.90
Regeneration Economy and Growth,Corporate Property and Land,021242,Catering - County Hall,Supplies and Services,324117,Provisions E324,07-Dec-2021,000007832795768 - 1,BATLEYS PERTH,5300,Catering costs - provisions,261.90,,261.90
Children and Young Peoples Services,Head of Childrens Social Care,085605,Service Improvement - Practice Improvement,Supplies and Services,384999,Miscellaneous Expenses,08-Dec-2021,000007828317180,Amazon.co.uk KQ9XY3YE5,5969,Other expenses,331.92,55.32,276.60
Children and Young Peoples Services,Head of Childrens Social Care,085605,Service Improvement - Practice Improvement,Supplies and Services,384999,Miscellaneous Expenses,08-Dec-2021,000007828317184,Amazon.co.uk WL9JM91Z5,5969,Other expenses,110.64,18.44,92.20
Resources BK0010,Corporate Finance & Commercial Services,069810,Health and Safety 069810,Supplies and Services,304403,Equipment and Materials,08-Dec-2021,000007828317190,AMZNMktplace,5999,Other consumables,8.49,1.42,7.07
Resources BK0010,Digital and Customer Services,070110,School Services - Man Info System (MIS) Support Team,Supplies and Services,342033,Computers and Communications,08-Dec-2021,000007828317194,WPMU DEV INCSUBFEE.COM,7372,Computer hardware,0.40,0.00,0.40
Children and Young Peoples Services,Head of Early Help Inclusion & Vulnerable Children.,085954,Walworth,Supplies and Services,328041,Clothing uniforms and laundry E328,08-Dec-2021,000007828317492,Nike GBP,5655,Clothing uniforms and laundry,79.95,0.00,79.95
Regeneration Economy and Growth,Culture Sport and Tourism,054813,Gala Theatre - Technical,Supplies and Services,304259,Equipment and Materials,08-Dec-2021,000007828317620,AMZNMktplace,5999,Equipment-purchase and rental,52.33,0.00,52.33
Children and Young Peoples Services,Head of Early Help Inclusion & Vulnerable Children.,088101,Bullion Lane & Brandon Family Centre,Supplies and Services,304259,Equipment and Materials,08-Dec-2021,000007832688968,WILKO.COM,5399,Equipment-purchase and rental,128.00,0.00,128.00
Children and Young Peoples Services,Head of Education and Skills,071801,Selby Cottage Childcare Centre,Supplies and Services,324117,Provisions E324,08-Dec-2021,000007832688980,ONE STOP 3026,5411,Catering costs - provisions,5.00,0.00,5.00
Children and Young Peoples Services,Head of Education and Skills,071801,Selby Cottage Childcare Centre,Supplies and Services,304999,Equipment and Materials,08-Dec-2021,000007832688986,Amazon Prime F61GH8FM5,5968,Misc equipment tools and materials,7.99,1.33,6.66
Children and Young Peoples Services,Head of Education and Skills,071801,Selby Cottage Childcare Centre,Supplies and Services,304403,Equipment and Materials,08-Dec-2021,000007832688990,AMZNMktplace,5999,Other consumables,13.99,2.33,11.66
Regeneration Economy and Growth,Transport and Contracted Services,031701,Care Connect All Localities,Supplies and Services,304403,Equipment and Materials,08-Dec-2021,000007832689000,AMZNMktplace,5999,Other consumables,25.47,4.26,21.21
Regeneration Economy and Growth,Culture Sport and Tourism,011286,Wolsingham School Leisure Centre,Supplies and Services,304259,Equipment and Materials,08-Dec-2021,000007832689024,SP RLSS UK SHOP,5691,Equipment-purchase and rental,19.50,0.00,19.50
Regeneration Economy and Growth,Culture Sport and Tourism,010605,Woodhouse Close Leisure Complex,Supplies and Services,304259,Equipment and Materials,08-Dec-2021,000007832689030,SP RLSS UK SHOP,5691,Equipment-purchase and rental,34.50,0.00,34.50
Neighbourhoods and Climate Change,Environmental Services,010383,C&G - South Street Cleansing,Supplies and Services,304999,Equipment and Materials,08-Dec-2021,000007832689070,Harelaw sawmill delive,5251,Misc equipment tools and materials,114.24,0.00,114.24
Regeneration Economy and Growth,Culture Sport and Tourism,030712,VCD - Project Delivery,Supplies and Services,384199,Miscellaneous Expenses,08-Dec-2021,000007832689088,PAYPAL WEBALON,5817,Other hired and contracted services,5.92,0.00,5.92
Children and Young Peoples Services,Head of Childrens Social Care,085332,Middlestone Moor CU,Supplies and Services,324117,Provisions E324,08-Dec-2021,000007832689156,TESCO STORES 2371,5411,Catering costs - provisions,74.00,0.00,74.00
Children and Young Peoples Services,Head of Childrens Social Care,085332,Middlestone Moor CU,Supplies and Services,324117,Provisions E324,08-Dec-2021,000007832689158,TESCO STORES 2916,5411,Catering costs - provisions,63.79,0.00,63.79
Children and Young Peoples Services,Head of Childrens Social Care,085334,West Rainton Satelite Home,Supplies and Services,304403,Equipment and Materials,08-Dec-2021,000007832689200,AMZNMktplace,5999,Other consumables,8.09,0.00,8.09
Dedicated Schools Grant BG0015,DSG Schools Block,418507,Belmont Community School 004185 - Performing Arts,Supplies and Services,304259,Equipment and Materials,08-Dec-2021,000007832689210,GEAR4MUSIC,5733,Equipment-purchase and rental,480.99,0.00,480.99
Neighbourhoods and Climate Change,Environmental Services,031233,North Pennines - Pennine Peatlife,Supplies and Services,324117,Provisions E324,08-Dec-2021,000007832689258,SCOTMID CO-OP STANHOPE,5411,Catering costs - provisions,19.14,0.00,19.14
Children and Young Peoples Services,Head of Childrens Social Care,085331,New Lea Childrens Home,Supplies and Services,384999,Miscellaneous Expenses,08-Dec-2021,000007832689290,WARREN JAMES (JEWELLER,5944,Other expenses,32.50,0.00,32.50
Children and Young Peoples Services,Head of Childrens Social Care,085331,New Lea Childrens Home,Supplies and Services,324117,Provisions E324,08-Dec-2021,000007832689294,Shakeoholic,5441,Catering costs - provisions,7.30,0.00,7.30
Children and Young Peoples Services,Head of Early Help Inclusion & Vulnerable Children.,085957,Secure Management,Supplies and Services,340001,Postages E340,08-Dec-2021,000007832689402,POST OFFICE COUNTER,9402,Postages,7.65,0.00,7.65
Children and Young Peoples Services,Head of Early Help Inclusion & Vulnerable Children.,085957,Secure Management,Supplies and Services,384999,Miscellaneous Expenses,08-Dec-2021,000007832689408,Amazon.co.uk 8U9V37R95,5969,Other expenses,77.28,12.88,64.40
Children and Young Peoples Services,Head of Early Help Inclusion & Vulnerable Children.,085956,Lumley,Supplies and Services,328041,Clothing uniforms and laundry E328,08-Dec-2021,000007832689410,PRETTYLITTLETHING.COM,5691,Clothing uniforms and laundry,6.00,0.00,6.00
Children and Young Peoples Services,Head of Early Help Inclusion & Vulnerable Children.,085962,Aycliffe Secure - Durham,Supplies and Services,324117,Provisions E324,08-Dec-2021,000007832689414,TESCO STORES 6329,5411,Catering costs - provisions,79.33,0.00,79.33
Regeneration Economy and Growth,Corporate Property and Land,021242,Catering - County Hall,Supplies and Services,304403,Equipment and Materials,08-Dec-2021,000007832689422,AMZNMktplace,5999,Other consumables,3.49,0.58,2.91
Children and Young Peoples Services,Head of Childrens Social Care,085358,Orchard House Sacriston Solo Home,Supplies and Services,324117,Provisions E324,08-Dec-2021,000007832689556,ASDA STORES LTD 4313,5411,Catering costs - provisions,13.20,0.00,13.20
Resources BK0010,Procurement Sales & Business Services,065502,Business Support - Crook,Supplies and Services,352001,Conference Expenses,08-Dec-2021,000007832689588,NOMINET UK,7392,Conferencesseminars fees etc,107.64,17.94,89.70
Resources BK0010,Procurement Sales & Business Services,065502,Business Support - Crook,Supplies and Services,352001,Conference Expenses,08-Dec-2021,000007832689592,NOMINET UK,7392,Conferencesseminars fees etc,14.04,2.34,11.70
Resources BK0010,Procurement Sales & Business Services,065502,Business Support - Crook,Supplies and Services,304999,Equipment and Materials,08-Dec-2021,000007832689598,WEB NETWORKSOLUTIONS,5968,Misc equipment tools and materials,76.30,0.00,76.30
Children and Young Peoples Services,Head of Education and Skills,071732,Dean Bank Childcare,Supplies and Services,304403,Equipment and Materials,08-Dec-2021,000007832689620,AMZNMKTPLACE AMAZON.CO,5999,Other consumables,119.70,0.00,119.70
Children and Young Peoples Services,Head of Education and Skills,071732,Dean Bank Childcare,Supplies and Services,304403,Equipment and Materials,08-Dec-2021,000007832689626,AMZNMktplace,5999,Other consumables,43.89,0.00,43.89
Children and Young Peoples Services,Head of Education and Skills,071732,Dean Bank Childcare,Supplies and Services,324117,Provisions E324,08-Dec-2021,000007832689628,B&M 035 - SHILDON,5399,Catering costs - provisions,128.99,0.00,128.99
Children and Young Peoples Services,Head of Education and Skills,071732,Dean Bank Childcare,Supplies and Services,324117,Provisions E324,08-Dec-2021,000007832689630,B&M 147 - FERRYHILL,5399,Catering costs - provisions,35.12,0.00,35.12
Children and Young Peoples Services,Head of Education and Skills,071732,Dean Bank Childcare,Supplies and Services,304999,Equipment and Materials,08-Dec-2021,000007832689632,HOME BARGAINS,5251,Misc equipment tools and materials,19.29,0.00,19.29
Children and Young Peoples Services,Head of Education and Skills,071732,Dean Bank Childcare,Supplies and Services,324117,Provisions E324,08-Dec-2021,000007832689636,ASDA SUPERSTORE 4987,5411,Catering costs - provisions,106.67,0.00,106.67
Children and Young Peoples Services,Head of Education and Skills,071732,Dean Bank Childcare,Supplies and Services,324117,Provisions E324,08-Dec-2021,000007832689640,TESCO STORES 6329,5411,Catering costs - provisions,52.30,0.00,52.30
Neighbourhoods and Climate Change,Environmental Services,026591,C&G - Hardwick Park,Supplies and Services,332047,Printing Stationery and Gen Off Exps,08-Dec-2021,000007832689664,AMZNMktplace,5999,Stationery,29.98,5.00,24.98
Neighbourhoods and Climate Change,Environmental Services,026591,C&G - Hardwick Park,Supplies and Services,332047,Printing Stationery and Gen Off Exps,08-Dec-2021,000007832689670,AMZNMktplace,5999,Stationery,15.98,2.66,13.32
Regeneration Economy and Growth,Development and Housing,031623,Rough Sleeping,Transport,235057,Public Transport,08-Dec-2021,000007832689684,Airpay 60233324-Blueli,4121,Staff travelling,27.80,0.00,27.80
Regeneration Economy and Growth,Development and Housing,030771,Durham Advance Flexible Fund,Transport,235057,Public Transport,08-Dec-2021,000007832689696,WWW.GONORTHEAST.CO.UK,4111,Staff travelling,17.00,0.00,17.00
Neighbourhoods and Climate Change,Environmental Services,010919,C&G - Countryside Site Management,Supplies and Services,304259,Equipment and Materials,08-Dec-2021,000007832689726,S&A BUILDERS MERCHANTS,5039,Equipment-purchase and rental,21.98,0.00,21.98
Children and Young Peoples Services,Head of Education and Skills,078561,DurhamEnable,Supplies and Services,364301,Grants to Voluntary Organisations,08-Dec-2021,000007832689768,GEN REGISTER OFFICE,9399,Hardship,14.00,0.00,14.00
Neighbourhoods and Climate Change,Environmental Services,031238,North Pennines - Tees Swale,Supplies and Services,304403,Equipment and Materials,08-Dec-2021,000007832689782,AMZ TopToolsDirect,5999,Other consumables,-2.22,-0.37,-1.85
Children and Young Peoples Services,Head of Childrens Social Care,085331,New Lea Childrens Home,Supplies and Services,304403,Equipment and Materials,08-Dec-2021,000007832689808,AMZNMktplace,5999,Other consumables,59.97,0.00,59.97
Children and Young Peoples Services,Head of Childrens Social Care,085352,New Childrens Home (previously Tow Law),Supplies and Services,328041,Clothing uniforms and laundry E328,08-Dec-2021,000007832689874,ROF59,7996,Clothing uniforms and laundry,26.00,0.00,26.00
Dedicated Schools Grant BG0015,DSG Schools Block,418507,Belmont Community School 004185 - Performing Arts,Supplies and Services,304403,Equipment and Materials,08-Dec-2021,000007832689898,AMZNMktplace,5999,Other consumables,7.48,1.25,6.23
Dedicated Schools Grant BG0015,DSG Schools Block,418507,Belmont Community School 004185 - Performing Arts,Supplies and Services,304403,Equipment and Materials,08-Dec-2021,000007832689902,AMZNMktplace,5999,Other consumables,5.48,0.92,4.56
Children and Young Peoples Services,Head of Early Help Inclusion & Vulnerable Children.,088108,Spennymoor & Shildon Intensive Family Support Team,Supplies and Services,340001,Postages E340,08-Dec-2021,000007832689910,POST OFFICE COUNTER,9402,Postages,6.85,0.00,6.85
Children and Young Peoples Services,Head of Early Help Inclusion & Vulnerable Children.,088104,BA/BC/Crook Intensive Family Support Team,Supplies and Services,364301,Grants to Voluntary Organisations,08-Dec-2021,000007832689912,ASDA GEORGE COM LEEDS,5411,Hardship,26.95,0.00,26.95
Children and Young Peoples Services,Head of Early Help Inclusion & Vulnerable Children.,088104,BA/BC/Crook Intensive Family Support Team,Supplies and Services,384302,Miscellaneous Expenses,08-Dec-2021,000007832689918,Amazon.co.uk K45XR1OU5,5969,Activity expenses,13.99,0.00,13.99
Children and Young Peoples Services,Head of Education and Skills,071732,Dean Bank Childcare,Supplies and Services,324117,Provisions E324,08-Dec-2021,000007832690096,B&M 147 - FERRYHILL,5399,Catering costs - provisions,11.97,0.00,11.97
Regeneration Economy and Growth,Culture Sport and Tourism,010599,Newton Aycliffe Leisure Ctr-General,Supplies and Services,304259,Equipment and Materials,08-Dec-2021,000007832690116,SP RLSS UK SHOP,5691,Equipment-purchase and rental,75.00,0.00,75.00
Regeneration Economy and Growth,Culture Sport and Tourism,011291,Peterlee Leisure Centre,Supplies and Services,304259,Equipment and Materials,08-Dec-2021,000007832690122,SP RLSS UK SHOP,5691,Equipment-purchase and rental,19.50,0.00,19.50
Children and Young Peoples Services,Head of Early Help Inclusion & Vulnerable Children.,088103,Stanley & Moorside Family Centre,Supplies and Services,384302,Miscellaneous Expenses,08-Dec-2021,000007832690178,ULTIMATE BOUNCE ZONE,7399,Activity expenses,495.00,0.00,495.00
Children and Young Peoples Services,Head of Early Help Inclusion & Vulnerable Children.,085957,Secure Management,Supplies and Services,304403,Equipment and Materials,08-Dec-2021,000007832690252,AMZNMktplace,5999,Other consumables,31.92,5.32,26.60
Children and Young Peoples Services,Head of Early Help Inclusion & Vulnerable Children.,085957,Secure Management,Supplies and Services,304403,Equipment and Materials,08-Dec-2021,000007832690252 - 1,AMZNMktplace,5999,Other consumables,0.04,,0.04
Children and Young Peoples Services,Head of Early Help Inclusion & Vulnerable Children.,085957,Secure Management,Supplies and Services,304403,Equipment and Materials,08-Dec-2021,000007832690260,AMZNMKTPLACE AMAZON.CO,5999,Other consumables,39.96,6.66,33.30
Children and Young Peoples Services,Head of Early Help Inclusion & Vulnerable Children.,085957,Secure Management,Supplies and Services,304403,Equipment and Materials,08-Dec-2021,000007832690260 - 1,AMZNMKTPLACE AMAZON.CO,5999,Other consumables,0.04,,0.04
Children and Young Peoples Services,Head of Early Help Inclusion & Vulnerable Children.,085957,Secure Management,Supplies and Services,384999,Miscellaneous Expenses,08-Dec-2021,000007832690262,Amazon.co.uk AF1900GD5,5969,Other expenses,3.99,0.67,3.32
Children and Young Peoples Services,Head of Early Help Inclusion & Vulnerable Children.,085957,Secure Management,Supplies and Services,304403,Equipment and Materials,08-Dec-2021,000007832690264,AMZNMktplace,5999,Other consumables,255.96,42.68,213.28
Children and Young Peoples Services,Head of Early Help Inclusion & Vulnerable Children.,085957,Secure Management,Supplies and Services,304403,Equipment and Materials,08-Dec-2021,000007832690268,AMZNMktplace,5999,Other consumables,23.96,4.00,19.96
Children and Young Peoples Services,Head of Early Help Inclusion & Vulnerable Children.,085957,Secure Management,Supplies and Services,384999,Miscellaneous Expenses,08-Dec-2021,000007832690274,Amazon.co.uk AU48V6Q85,5969,Other expenses,99.98,16.66,83.32
Children and Young Peoples Services,Head of Early Help Inclusion & Vulnerable Children.,085957,Secure Management,Supplies and Services,304403,Equipment and Materials,08-Dec-2021,000007832690276,AMZNMktplace,5999,Other consumables,11.99,0.00,11.99
Dedicated Schools Grant BG0015,DSG High Needs Block,079040,HNB Management and support,Supplies and Services,304403,Equipment and Materials,08-Dec-2021,000007832690288,AMZNMktplace,5999,Other consumables,19.90,3.32,16.58
Children and Young Peoples Services,Head of Childrens Social Care,085378,Young Persons Service Team 3,Supplies and Services,338045,Services,08-Dec-2021,000007832690296,HM PASSPORT OFFICE,9399,Legal expenses 338045,75.50,0.00,75.50
Resources BK0010,Procurement Sales & Business Services,065503,Business Support - Spectrum,Supplies and Services,324117,Provisions E324,08-Dec-2021,000007832690302,WILKO RETAIL LIMITED,5399,Catering costs - provisions,314.85,0.00,314.85
Resources BK0010,Procurement Sales & Business Services,065503,Business Support - Spectrum,Supplies and Services,324117,Provisions E324,08-Dec-2021,000007832690306,ASDA SUPERSTORE,5411,Catering costs - provisions,72.80,0.00,72.80
Children and Young Peoples Services,Head of Early Help Inclusion & Vulnerable Children.,085801,CDYJS - Support,Supplies and Services,384999,Miscellaneous Expenses,08-Dec-2021,000007832690346,Amazon.co.uk VH89Y73G5,5969,Other expenses,110.00,0.00,110.00
Children and Young Peoples Services,Head of Early Help Inclusion & Vulnerable Children.,085801,CDYJS - Support,Supplies and Services,384999,Miscellaneous Expenses,08-Dec-2021,000007832690350,Amazon.co.uk PZ54G40L5,5969,Other expenses,16.46,2.74,13.72
Children and Young Peoples Services,Head of Childrens Social Care,085333,Coxhoe Satelite Home,Supplies and Services,324117,Provisions E324,08-Dec-2021,000007832690408,TESCO STORES 2916,5411,Catering costs - provisions,23.78,0.00,23.78
Children and Young Peoples Services,Head of Childrens Social Care,085333,Coxhoe Satelite Home,Supplies and Services,324117,Provisions E324,08-Dec-2021,000007832690414,TESCO STORES 2916,5411,Catering costs - provisions,117.32,0.00,117.32
Resources BK0010,Resources Management CK0450,069000,Resources Management 069000,Supplies and Services,304259,Equipment and Materials,08-Dec-2021,000007832690566,APPLE.COM/BILL,5735,Equipment-purchase and rental,0.79,0.00,0.79
Resources BK0010,Finance & Transactional Services,065162,Resources and Regeneration Finance,Supplies and Services,372009,Subscriptions E372,08-Dec-2021,000007832690572,CREATIVE_FED,8699,Subscriptions 372009,25.00,0.00,25.00
Adult and Health Services,Head of Adults,055310,Positive Journeys (Tudhoe),Supplies and Services,324117,Provisions E324,08-Dec-2021,000007832690578,ASDA SUPERSTORE 4987,5411,Catering costs - provisions,7.94,0.00,7.94
Children and Young Peoples Services,Head of Childrens Social Care,085341,High Etherley Satelite Home,Supplies and Services,324117,Provisions E324,08-Dec-2021,000007832690620,TESCO STORES 2371,5411,Catering costs - provisions,188.96,0.00,188.96
Neighbourhoods and Climate Change,Environmental Services,031200,North Pennines Core,Supplies and Services,308011,Furniture,08-Dec-2021,000007832690686,WWW.PORTMEIRIONGROUP.C,5719,Furniture repair and replacement,51.49,0.00,51.49
Children and Young Peoples Services,Head of Childrens Social Care,085333,Coxhoe Satelite Home,Supplies and Services,324117,Provisions E324,08-Dec-2021,000007832690742,B&M 681 - DURHAM,5399,Catering costs - provisions,9.53,0.00,9.53
Children and Young Peoples Services,Head of Childrens Social Care,085333,Coxhoe Satelite Home,Supplies and Services,324117,Provisions E324,08-Dec-2021,000007832690748,B&M 681 - DURHAM,5399,Catering costs - provisions,6.49,0.00,6.49
Regeneration Economy and Growth,Corporate Property and Land,010525,Catering - Green Lane,Supplies and Services,324117,Provisions E324,08-Dec-2021,000007832795706,JR HOLLAND FOODSERVICE,5499,Catering costs - provisions,4.00,0.00,4.00
Regeneration Economy and Growth,Corporate Property and Land,010525,Catering - Green Lane,Supplies and Services,324117,Provisions E324,08-Dec-2021,000007832795710,JR HOLLAND FOODSERVICE,5499,Catering costs - provisions,17.94,0.00,17.94
Regeneration Economy and Growth,Corporate Property and Land,030691,Catering - Durham Dales Centre,Supplies and Services,324117,Provisions E324,08-Dec-2021,000007832795720,JR HOLLAND FOODSERVICE,5499,Catering costs - provisions,72.17,0.00,72.17
Regeneration Economy and Growth,Culture Sport and Tourism,054235,Bishop Auckland Town Hall Cafe,Supplies and Services,324117,Provisions E324,08-Dec-2021,000007832795726,JR HOLLAND FOODSERVICE,5499,Catering costs - provisions,-1.80,0.00,-1.80
Adult and Health Services,Head of Adults,055643,Hawthorn House LD Respite Unit,Supplies and Services,324117,Provisions E324,08-Dec-2021,000007832795730,JR HOLLAND FOODSERVICE,5499,Catering costs - provisions,17.25,0.00,17.25
Adult and Health Services,Head of Adults,055643,Hawthorn House LD Respite Unit,Supplies and Services,324117,Provisions E324,08-Dec-2021,000007832795732,JR HOLLAND FOODSERVICE,5499,Catering costs - provisions,11.11,0.00,11.11
Regeneration Economy and Growth,Corporate Property and Land,021234,Catering - Locomotion,Supplies and Services,324117,Provisions E324,08-Dec-2021,000007832795748,JR HOLLAND FOODSERVICE,5499,Catering costs - provisions,9.99,0.00,9.99
Regeneration Economy and Growth,Culture Sport and Tourism,054812,Gala Theatre - Catering etc,Supplies and Services,324117,Provisions E324,08-Dec-2021,000007832795756,JR HOLLAND FOODSERVICE,5499,Catering costs - provisions,17.49,0.00,17.49
